Workbook

Sheet Etusivu
B1: KERROSTALOJEN KORJAUSTOIMINNAN
B2: ENERGIATALOUDELLISTEN VALINTOJEN VERTAILU
B3: Rakenne- ja LVIS-teknisten energiansäästötoimenpiteiden
B4: valinta rakenne- ja laitetasolla
B6: Tekijä: Antti Kurvinen | Tampereen teknillinen yliopisto | Rakennusteknikkan laitos | RTT
B31: HUOM! | C31: - Tämän sovelluksen tekijä ei vastaa sovelluksen antamista tuloksista!
C32: - Sovellus on kuitenkin testattu case-kohteen tiedoilla ja sen on todettu tällöin antavan
C33: oikeita tuloksia. Kuvaajat on kuitenkin aina syytä tarkistaa, kun lähtötietoja muutetaan.
C34: - Sovelluksen toiminnan kannalta on välttämätöntä, että ActiveX-komponentit ja makrot sallitaan!
C35: - Taulukosta on suojattu ainoastaan ensimmäinen välilehti sekä VBA-projekti. Tämän vuoksi
C36: käyttäjän tulee olla tarkkana siitä, mitä soluja muokkaa: väärien solujen muokkaaminen
C37: voi johtaa sovelluksen virheelliseen toimintaan! Muokattavaksi tarkoitetut solut on merkitty
C38: vaaleansinisellä värillä ->
C39: - Havaituista virheistä voi ilmoittaa sähköpostilla osoitteeseen: antti.kurvinen@tut.fi.
C40: Osoitteeseen voi lähettää myös palautetta, kehitysehdotuksia sekä kysymyksiä.
C41: - Tämän sovelluksen toimintaa on esitelty tarkemmin diplomityössäni
C42: "Korjaustoiminnan energiataloudellisten valintojen systematiikka", joka on
C43: ladattavissa ympäristöministeriön lähiöohjelmaan kuuluvan EVAKO-hankkeen
C44: hankesivuilta. (Löytyy osoitteesta www.ara.fi/elavalahio, josta valitaan edelleen
C45: Hankkeet | Tutkimus- ja selvityshankkeet | EVAKO )
D47: Antti Kurvinen, DI
D48: Tampereen teknillinen yliopisto | Rakennustekniikan laitos | Rakennustuotanto ja -talous
D49: p. 040-1981887 | e-mail: antti.kurvinen@tut.fi

Sheet Lähtötiedot
C2: KERROSTALOJEN KORJAUSTOIMINNAN ENERGIATALOUDELLISTEN VALINTOJEN VERTAILU
E3: Rakenne- ja LVIS-teknisten energiansäästötoimenpiteiden valinta rakenne- ja laitetasolla
C5: Kohteen lähtötiedot
I6: LÄHTÖTIEDOT ENNEN REMONTTIA
C7: Laatija | D7: Antti Kurvinen | I7: Laskentakorko | K7: 0.05
C8: Päivämäärä | D8: =TODAY() -> 2010-07-29 | I8: Bruttopinta-ala [brm2] | K8: 5468 | L8: m2
C9: Hankkeen nimi | D9: SUREURO pilot: Kitiniitynkatu 2 | I9: Asuntopinta-ala [hum2] | K9: 3284 | L9: m2
I10: Normeerattu energiankulutus ennen korjausta | K10: 1179 | L10: MWh
I11: ET-luku ennen korjausta | K11: =IF(K10="","",(K10*1000)/K8) -> 215.6181419 | L11: kWh/brm2/vuosi
I12: ET-luokka ennen korjausta | K12: =IF(K11="","",IF(K11<=100,"A",IF(K11<=120,"B",IF(K11<=140,"C",IF(K11<=180,"D",IF(K11<=230,"E",IF(K11<=280,"F","G"))))))) -> E
F13: PINTA-ALATIEDOT REMONTIN JÄLKEEN | I13: Lämmitysenergian hinta | K13: 50 | L13: €/MWh
F14: Brutto-ala [brm2] | G14: 7236 | I14: Sähköenergian hinta | K14: 70 | L14: €/MWh
F15: Asuntopinta-ala [hum2] | G15: 4645
C16: TARKASTELTAVAT ENERGIANSÄÄSTÖTOIMENPITEET
C18: YLÄPOHJA
C19: TUNNUS | D19: HARKITTAVA ENERGIANSÄÄSTÖTOIMENPIDE | E19: RAKENNUS- KUSTANNUS [€] | F19: LÄMMITYSENERGIAN KULUTUKSEN MUUTOS [MWh/a] | G19: SÄHKÖENERGIAN KULUTUKSEN MUUTOS [MWh/a] | H19: MUUT KUSTANNUSMUUTOKSIA AIHEUTTAVAT ERÄT [€/a] | I19: PITOAIKA [a]
C20: PYP | D20: ERISTYS 150 + 50 mm | E20: 102828 | F20: -35 | G20: 0 | H20: 0 | I20: 40
C21: YP1 | D21: ERISTYS 200 + 50 mm | E21: 105456 | F21: -6 | G21: 0 | H21: 0 | I21: 40
D22: ERISTEMUUTOS 200 mm → 250 mm
C23: YP2 | D23: ERISTYS 250 + 50 mm | E23: 110864 | F23: -4 | G23: 0 | H23: 0 | I23: 40
D24: ERISTEMUUTOS 250 mm → 300 mm
C25: YP3
C29: ULKOSEINÄ
C30: TUNNUS | D30: HARKITTAVA ENERGIANSÄÄSTÖTOIMENPIDE | E30: RAKENNUS- KUSTANNUS [€] | F30: LÄMMITYSENERGIAN KULUTUKSEN MUUTOS [MWh/a] | G30: SÄHKÖENERGIAN KULUTUKSEN MUUTOS [MWh/a] | H30: MUUT KUSTANNUSMUUTOKSIA AIHEUTTAVAT ERÄT [€/a] | I30: PITOAIKA [a]
C31: PUS | D31: LISÄERISTYS 80 mm | E31: 484600 | F31: -87 | G31: 0 | H31: 0 | I31: 40
C32: US1 | D32: LISÄERISTYS 100 mm | E32: 489700 | F32: -9 | G32: 0 | H32: 0 | I32: 40
D33: ERISTEMUUTOS 80 mm → 100 mm
C34: US2 | D34: LISÄERISTYS 150 mm | E34: 538400 | F34: -17 | G34: 0 | H34: 0 | I34: 40
D35: ERISTEMUUTOS 100 mm → 150 mm
C36: US3
C40: IKKUNAT
C41: TUNNUS | D41: HARKITTAVA ENERGIANSÄÄSTÖTOIMENPIDE | E41: RAKENNUS- KUSTANNUS [€] | F41: LÄMMITYSENERGIAN KULUTUKSEN MUUTOS [MWh/a] | G41: SÄHKÖENERGIAN KULUTUKSEN MUUTOS [MWh/a] | H41: MUUT KUSTANNUSMUUTOKSIA AIHEUTTAVAT ERÄT [€/a] | I41: PITOAIKA [a]
C42: PIKK | D42: UUSI IKKUNA U=1,8 | E42: 359480 | F42: -104 | G42: 0 | H42: 0 | I42: 30
C43: IKK1 | D43: UUSI IKKUNA U=1,4 | E43: 372020 | F43: -46 | G43: 0 | H43: 0 | I43: 30
D44: U = 1,8 → U = 1,4
C45: IKK2 | D45: UUSI IKKUNA U=1,0 | E45: 382888 | F45: -45 | G45: 0 | H45: 0 | I45: 30
D46: U = 1,4 → U = 1,0
C47: IKK3
C51: VEDENKULUTUKSEN MITTAUS
C52: TUNNUS | D52: HARKITTAVA ENERGIANSÄÄSTÖTOIMENPIDE | E52: RAKENNUS- KUSTANNUS [€] | F52: LÄMMITYSENERGIAN KULUTUKSEN MUUTOS [MWh/a] | G52: SÄHKÖENERGIAN KULUTUKSEN MUUTOS [MWh/a] | H52: MUUT KUSTANNUSMUUTOKSIA AIHEUTTAVAT ERÄT [€/a] | I52: PITOAIKA [a]
C53: VKM | D53: ASUNTOKOHTAINEN MITTAUS | E53: 46800 | F53: -29 | G53: 0 | H53: -9857 | I53: 15
C56: ILMANVAIHTOJÄRJESTELMÄ
C57: TUNNUS | D57: HARKITTAVA ENERGIANSÄÄSTÖTOIMENPIDE | E57: RAKENNUS- KUSTANNUS [€] | F57: LÄMMITYSENERGIAN KULUTUKSEN MUUTOS [MWh/a] | G57: SÄHKÖENERGIAN KULUTUKSEN MUUTOS [MWh/a] | H57: MUUT KUSTANNUSMUUTOKSIA AIHEUTTAVAT ERÄT [€/a] | I57: PITOAIKA [a]
C58: PIV | D58: VANHAN KUNNOSTUS | E58: 39200 | F58: 0 | G58: 0 | H58: 784 | I58: 30
C59: IV1 | D59: KESKITETTY KONEELLINEN TULO- JA POISTOILMANVAIHTO LTO 50 % | E59: 117600 | F59: -259 | G59: 38.6 | H59: 1176 | I59: 30
C60: IV2 | D60: HAJAUTETTU KONEELLINEN TULO- JA POISTOILMANVAIHTO LTO 50 % | E60: 137200 | F60: -259 | G60: 38.6 | H60: 1960 | I60: 30
C61: IV3

Sheet Vertailu
C2: KERROSTALOJEN KORJAUSTOIMINNAN ENERGIATALOUDELLISTEN VALINTOJEN VERTAILU
F3: Rakenne- ja LVIS-teknisten energiansäästötoimenpiteiden valinta rakenne- ja laitetasolla
C5: Energiansäästötoimenpiteiden vertailu
C9: VALINTAJÄRJESTYS JÄRJESTETTYNÄ SISÄISEN KORON MUKAAN
C11: VALINTA- JÄRJESTYS | D11: SISÄINEN KORKO | E11: TOIMENPITEEN TUNNUS | F11: KUSTANNUSTEN MUUTOS [€] | G11: LÄMMITYSENERGIAN KULUTUKSEN MUUTOS [MWh/a] | H11: SÄHKÖENERGIAN KULUTUKSEN MUUTOS [MWh/a] | I11: VUOSITTAINEN KOKONAIS- ENERGIANSÄÄSTÖ [MWh/a] | J11: KUSTANNUSTEN VUOSIMUUTOS [€/a] | K11: PITOAIKA [a] | L11: KUSTANNUS / ENERGIANSÄÄSTÖ [€/(kWh/a)]
C12: =IF(ISNA(VLOOKUP(1,'Toimenpiteiden valitseminen'!$D$21:$O$50,1,FALSE)),"",VLOOKUP(1,'Toimenpiteiden valitseminen'!$D$21:$O$50,1,FALSE)) -> 1 | D12: =IF(ISNA(VLOOKUP(1,'Toimenpiteiden valitseminen'!$D$21:$O$50,3,FALSE)),"",VLOOKUP(1,'Toimenpiteiden valitseminen'!$D$21:$O$50,3,FALSE)) -> 0.2308922848 | E12: =IF(ISNA(VLOOKUP(1,'Toimenpiteiden valitseminen'!$D$21:$O$50,4,FALSE)),"",VLOOKUP(1,'Toimenpiteiden valitseminen'!$D$21:$O$50,4,FALSE)) -> VKM | F12: =IF(ISNA(VLOOKUP(1,'Toimenpiteiden valitseminen'!$D$21:$O$50,6,FALSE)),"",VLOOKUP(1,'Toimenpiteiden valitseminen'!$D$21:$O$50,6,FALSE)) -> 46800 | G12: =IF(ISNA(VLOOKUP(1,'Toimenpiteiden valitseminen'!$D$21:$O$50,7,FALSE)),"",VLOOKUP(1,'Toimenpiteiden valitseminen'!$D$21:$O$50,7,FALSE)) -> -29 | H12: =IF(ISNA(VLOOKUP(1,'Toimenpiteiden valitseminen'!$D$21:$O$50,8,FALSE)),"",VLOOKUP(1,'Toimenpiteiden valitseminen'!$D$21:$O$50,8,FALSE)) -> 0 | I12: =IF(AND(G12="",H12=""),"",-(G12+H12)) -> 29 | J12: =IF(ISNA(VLOOKUP(1,'Toimenpiteiden valitseminen'!$D$21:$O$50,9,FALSE)),"",VLOOKUP(1,'Toimenpiteiden valitseminen'!$D$21:$O$50,9,FALSE)) -> -11307 | K12: =IF(ISNA(VLOOKUP(1,'Toimenpiteiden valitseminen'!$D$21:$O$50,10,FALSE)),"",VLOOKUP(1,'Toimenpiteiden valitseminen'!$D$21:$O$50,10,FALSE)) -> 15 | L12: =IF(AND(G12="",H12=""),"",F12/(1000*I12)) -> 1.613793103
C13: =IF(ISNA(VLOOKUP(2,'Toimenpiteiden valitseminen'!$D$21:$O$50,1,FALSE)),"",VLOOKUP(2,'Toimenpiteiden valitseminen'!$D$21:$O$50,1,FALSE)) -> 2 | D13: =IF(ISNA(VLOOKUP(2,'Toimenpiteiden valitseminen'!$D$21:$O$50,3,FALSE)),"",VLOOKUP(2,'Toimenpiteiden valitseminen'!$D$21:$O$50,3,FALSE)) -> 0.2062841464 | E13: =IF(ISNA(VLOOKUP(2,'Toimenpiteiden valitseminen'!$D$21:$O$50,4,FALSE)),"",VLOOKUP(2,'Toimenpiteiden valitseminen'!$D$21:$O$50,4,FALSE)) -> IKK2 | F13: =IF(ISNA(VLOOKUP(2,'Toimenpiteiden valitseminen'!$D$21:$O$50,6,FALSE)),"",VLOOKUP(2,'Toimenpiteiden valitseminen'!$D$21:$O$50,6,FALSE)) -> 10868 | G13: =IF(ISNA(VLOOKUP(2,'Toimenpiteiden valitseminen'!$D$21:$O$50,7,FALSE)),"",VLOOKUP(2,'Toimenpiteiden valitseminen'!$D$21:$O$50,7,FALSE)) -> -45 | H13: =IF(ISNA(VLOOKUP(2,'Toimenpiteiden valitseminen'!$D$21:$O$50,8,FALSE)),"",VLOOKUP(2,'Toimenpiteiden valitseminen'!$D$21:$O$50,8,FALSE)) -> 0 | I13: =IF(AND(G13="",H13=""),"",-(G13+H13)) -> 45 | J13: =IF(ISNA(VLOOKUP(2,'Toimenpiteiden valitseminen'!$D$21:$O$50,9,FALSE)),"",VLOOKUP(2,'Toimenpiteiden valitseminen'!$D$21:$O$50,9,FALSE)) -> -2250 | K13: =IF(ISNA(VLOOKUP(2,'Toimenpiteiden valitseminen'!$D$21:$O$50,10,FALSE)),"",VLOOKUP(2,'Toimenpiteiden valitseminen'!$D$21:$O$50,10,FALSE)) -> 30 | L13: =IF(AND(G13="",H13=""),"",F13/(1000*I13)) -> 0.2415111111
C14: =IF(ISNA(VLOOKUP(3,'Toimenpiteiden valitseminen'!$D$21:$O$50,1,FALSE)),"",VLOOKUP(3,'Toimenpiteiden valitseminen'!$D$21:$O$50,1,FALSE)) -> 3 | D14: =IF(ISNA(VLOOKUP(3,'Toimenpiteiden valitseminen'!$D$21:$O$50,3,FALSE)),"",VLOOKUP(3,'Toimenpiteiden valitseminen'!$D$21:$O$50,3,FALSE)) -> 0.1822034163 | E14: =IF(ISNA(VLOOKUP(3,'Toimenpiteiden valitseminen'!$D$21:$O$50,4,FALSE)),"",VLOOKUP(3,'Toimenpiteiden valitseminen'!$D$21:$O$50,4,FALSE)) -> IKK1 | F14: =IF(ISNA(VLOOKUP(3,'Toimenpiteiden valitseminen'!$D$21:$O$50,6,FALSE)),"",VLOOKUP(3,'Toimenpiteiden valitseminen'!$D$21:$O$50,6,FALSE)) -> 12540 | G14: =IF(ISNA(VLOOKUP(3,'Toimenpiteiden valitseminen'!$D$21:$O$50,7,FALSE)),"",VLOOKUP(3,'Toimenpiteiden valitseminen'!$D$21:$O$50,7,FALSE)) -> -46 | H14: =IF(ISNA(VLOOKUP(3,'Toimenpiteiden valitseminen'!$D$21:$O$50,8,FALSE)),"",VLOOKUP(3,'Toimenpiteiden valitseminen'!$D$21:$O$50,8,FALSE)) -> 0 | I14: =IF(AND(G14="",H14=""),"",-(G14+H14)) -> 46 | J14: =IF(ISNA(VLOOKUP(3,'Toimenpiteiden valitseminen'!$D$21:$O$50,9,FALSE)),"",VLOOKUP(3,'Toimenpiteiden valitseminen'!$D$21:$O$50,9,FALSE)) -> -2300 | K14: =IF(ISNA(VLOOKUP(3,'Toimenpiteiden valitseminen'!$D$21:$O$50,10,FALSE)),"",VLOOKUP(3,'Toimenpiteiden valitseminen'!$D$21:$O$50,10,FALSE)) -> 30 | L14: 0.2726086957
C15: =IF(ISNA(VLOOKUP(4,'Toimenpiteiden valitseminen'!$D$21:$O$50,1,FALSE)),"",VLOOKUP(4,'Toimenpiteiden valitseminen'!$D$21:$O$50,1,FALSE)) -> 4 | D15: =IF(ISNA(VLOOKUP(4,'Toimenpiteiden valitseminen'!$D$21:$O$50,3,FALSE)),"",VLOOKUP(4,'Toimenpiteiden valitseminen'!$D$21:$O$50,3,FALSE)) -> 0.1125532469 | E15: =IF(ISNA(VLOOKUP(4,'Toimenpiteiden valitseminen'!$D$21:$O$50,4,FALSE)),"",VLOOKUP(4,'Toimenpiteiden valitseminen'!$D$21:$O$50,4,FALSE)) -> YP1 | F15: =IF(ISNA(VLOOKUP(4,'Toimenpiteiden valitseminen'!$D$21:$O$50,6,FALSE)),"",VLOOKUP(4,'Toimenpiteiden valitseminen'!$D$21:$O$50,6,FALSE)) -> 2628 | G15: =IF(ISNA(VLOOKUP(4,'Toimenpiteiden valitseminen'!$D$21:$O$50,7,FALSE)),"",VLOOKUP(4,'Toimenpiteiden valitseminen'!$D$21:$O$50,7,FALSE)) -> -6 | H15: =IF(ISNA(VLOOKUP(4,'Toimenpiteiden valitseminen'!$D$21:$O$50,8,FALSE)),"",VLOOKUP(4,'Toimenpiteiden valitseminen'!$D$21:$O$50,8,FALSE)) -> 0 | I15: 6 | J15: =IF(ISNA(VLOOKUP(4,'Toimenpiteiden valitseminen'!$D$21:$O$50,9,FALSE)),"",VLOOKUP(4,'Toimenpiteiden valitseminen'!$D$21:$O$50,9,FALSE)) -> -300 | K15: =IF(ISNA(VLOOKUP(4,'Toimenpiteiden valitseminen'!$D$21:$O$50,10,FALSE)),"",VLOOKUP(4,'Toimenpiteiden valitseminen'!$D$21:$O$50,10,FALSE)) -> 40 | L15: 0.438
C16: =IF(ISNA(VLOOKUP(5,'Toimenpiteiden valitseminen'!$D$21:$O$50,1,FALSE)),"",VLOOKUP(5,'Toimenpiteiden valitseminen'!$D$21:$O$50,1,FALSE)) -> 5 | D16: =IF(ISNA(VLOOKUP(5,'Toimenpiteiden valitseminen'!$D$21:$O$50,3,FALSE)),"",VLOOKUP(5,'Toimenpiteiden valitseminen'!$D$21:$O$50,3,FALSE)) -> 0.1107626467 | E16: =IF(ISNA(VLOOKUP(5,'Toimenpiteiden valitseminen'!$D$21:$O$50,4,FALSE)),"",VLOOKUP(5,'Toimenpiteiden valitseminen'!$D$21:$O$50,4,FALSE)) -> IV1 | F16: =IF(ISNA(VLOOKUP(5,'Toimenpiteiden valitseminen'!$D$21:$O$50,6,FALSE)),"",VLOOKUP(5,'Toimenpiteiden valitseminen'!$D$21:$O$50,6,FALSE)) -> 78400 | G16: =IF(ISNA(VLOOKUP(5,'Toimenpiteiden valitseminen'!$D$21:$O$50,7,FALSE)),"",VLOOKUP(5,'Toimenpiteiden valitseminen'!$D$21:$O$50,7,FALSE)) -> -259 | H16: =IF(ISNA(VLOOKUP(5,'Toimenpiteiden valitseminen'!$D$21:$O$50,8,FALSE)),"",VLOOKUP(5,'Toimenpiteiden valitseminen'!$D$21:$O$50,8,FALSE)) -> 38.6 | I16: 220.4 | J16: =IF(ISNA(VLOOKUP(5,'Toimenpiteiden valitseminen'!$D$21:$O$50,9,FALSE)),"",VLOOKUP(5,'Toimenpiteiden valitseminen'!$D$21:$O$50,9,FALSE)) -> -9072 | K16: =IF(ISNA(VLOOKUP(5,'Toimenpiteiden valitseminen'!$D$21:$O$50,10,FALSE)),"",VLOOKUP(5,'Toimenpiteiden valitseminen'!$D$21:$O$50,10,FALSE)) -> 30 | L16: 0.3557168784
C17: =IF(ISNA(VLOOKUP(6,'Toimenpiteiden valitseminen'!$D$21:$O$50,1,FALSE)),"",VLOOKUP(6,'Toimenpiteiden valitseminen'!$D$21:$O$50,1,FALSE)) -> 6 | D17: =IF(ISNA(VLOOKUP(6,'Toimenpiteiden valitseminen'!$D$21:$O$50,3,FALSE)),"",VLOOKUP(6,'Toimenpiteiden valitseminen'!$D$21:$O$50,3,FALSE)) -> 0.08483877242 | E17: =IF(ISNA(VLOOKUP(6,'Toimenpiteiden valitseminen'!$D$21:$O$50,4,FALSE)),"",VLOOKUP(6,'Toimenpiteiden valitseminen'!$D$21:$O$50,4,FALSE)) -> US1 | F17: =IF(ISNA(VLOOKUP(6,'Toimenpiteiden valitseminen'!$D$21:$O$50,6,FALSE)),"",VLOOKUP(6,'Toimenpiteiden valitseminen'!$D$21:$O$50,6,FALSE)) -> 5100 | G17: =IF(ISNA(VLOOKUP(6,'Toimenpiteiden valitseminen'!$D$21:$O$50,7,FALSE)),"",VLOOKUP(6,'Toimenpiteiden valitseminen'!$D$21:$O$50,7,FALSE)) -> -9 | H17: =IF(ISNA(VLOOKUP(6,'Toimenpiteiden valitseminen'!$D$21:$O$50,8,FALSE)),"",VLOOKUP(6,'Toimenpiteiden valitseminen'!$D$21:$O$50,8,FALSE)) -> 0 | I17: 9 | J17: =IF(ISNA(VLOOKUP(6,'Toimenpiteiden valitseminen'!$D$21:$O$50,9,FALSE)),"",VLOOKUP(6,'Toimenpiteiden valitseminen'!$D$21:$O$50,9,FALSE)) -> -450 | K17: =IF(ISNA(VLOOKUP(6,'Toimenpiteiden valitseminen'!$D$21:$O$50,10,FALSE)),"",VLOOKUP(6,'Toimenpiteiden valitseminen'!$D$21:$O$50,10,FALSE)) -> 40 | L17: 0.5666666667
C18: =IF(ISNA(VLOOKUP(7,'Toimenpiteiden valitseminen'!$D$21:$O$50,1,FALSE)),"",VLOOKUP(7,'Toimenpiteiden valitseminen'!$D$21:$O$50,1,FALSE)) -> 7 | D18: =IF(ISNA(VLOOKUP(7,'Toimenpiteiden valitseminen'!$D$21:$O$50,3,FALSE)),"",VLOOKUP(7,'Toimenpiteiden valitseminen'!$D$21:$O$50,3,FALSE)) -> 0.07487888638 | E18: =IF(ISNA(VLOOKUP(7,'Toimenpiteiden valitseminen'!$D$21:$O$50,4,FALSE)),"",VLOOKUP(7,'Toimenpiteiden valitseminen'!$D$21:$O$50,4,FALSE)) -> IV2 | F18: =IF(ISNA(VLOOKUP(7,'Toimenpiteiden valitseminen'!$D$21:$O$50,6,FALSE)),"",VLOOKUP(7,'Toimenpiteiden valitseminen'!$D$21:$O$50,6,FALSE)) -> 98000 | G18: =IF(ISNA(VLOOKUP(7,'Toimenpiteiden valitseminen'!$D$21:$O$50,7,FALSE)),"",VLOOKUP(7,'Toimenpiteiden valitseminen'!$D$21:$O$50,7,FALSE)) -> -259 | H18: =IF(ISNA(VLOOKUP(7,'Toimenpiteiden valitseminen'!$D$21:$O$50,8,FALSE)),"",VLOOKUP(7,'Toimenpiteiden valitseminen'!$D$21:$O$50,8,FALSE)) -> 38.6 | I18: 220.4 | J18: =IF(ISNA(VLOOKUP(7,'Toimenpiteiden valitseminen'!$D$21:$O$50,9,FALSE)),"",VLOOKUP(7,'Toimenpiteiden valitseminen'!$D$21:$O$50,9,FALSE)) -> -8288 | K18: =IF(ISNA(VLOOKUP(7,'Toimenpiteiden valitseminen'!$D$21:$O$50,10,FALSE)),"",VLOOKUP(7,'Toimenpiteiden valitseminen'!$D$21:$O$50,10,FALSE)) -> 30 | L18: 0.444646098
C19: =IF(ISNA(VLOOKUP(8,'Toimenpiteiden valitseminen'!$D$21:$O$50,1,FALSE)),"",VLOOKUP(8,'Toimenpiteiden valitseminen'!$D$21:$O$50,1,FALSE)) -> 8 | D19: =IF(ISNA(VLOOKUP(8,'Toimenpiteiden valitseminen'!$D$21:$O$50,3,FALSE)),"",VLOOKUP(8,'Toimenpiteiden valitseminen'!$D$21:$O$50,3,FALSE)) -> 0.02066317746 | E19: =IF(ISNA(VLOOKUP(8,'Toimenpiteiden valitseminen'!$D$21:$O$50,4,FALSE)),"",VLOOKUP(8,'Toimenpiteiden valitseminen'!$D$21:$O$50,4,FALSE)) -> YP2 | F19: =IF(ISNA(VLOOKUP(8,'Toimenpiteiden valitseminen'!$D$21:$O$50,6,FALSE)),"",VLOOKUP(8,'Toimenpiteiden valitseminen'!$D$21:$O$50,6,FALSE)) -> 5408 | G19: =IF(ISNA(VLOOKUP(8,'Toimenpiteiden valitseminen'!$D$21:$O$50,7,FALSE)),"",VLOOKUP(8,'Toimenpiteiden valitseminen'!$D$21:$O$50,7,FALSE)) -> -4 | H19: =IF(ISNA(VLOOKUP(8,'Toimenpiteiden valitseminen'!$D$21:$O$50,8,FALSE)),"",VLOOKUP(8,'Toimenpiteiden valitseminen'!$D$21:$O$50,8,FALSE)) -> 0 | I19: 4 | J19: =IF(ISNA(VLOOKUP(8,'Toimenpiteiden valitseminen'!$D$21:$O$50,9,FALSE)),"",VLOOKUP(8,'Toimenpiteiden valitseminen'!$D$21:$O$50,9,FALSE)) -> -200 | K19: =IF(ISNA(VLOOKUP(8,'Toimenpiteiden valitseminen'!$D$21:$O$50,10,FALSE)),"",VLOOKUP(8,'Toimenpiteiden valitseminen'!$D$21:$O$50,10,FALSE)) -> 40 | L19: 1.352
C20: =IF(ISNA(VLOOKUP(9,'Toimenpiteiden valitseminen'!$D$21:$O$50,1,FALSE)),"",VLOOKUP(9,'Toimenpiteiden valitseminen'!$D$21:$O$50,1,FALSE)) ->  | D20: =IF(ISNA(VLOOKUP(9,'Toimenpiteiden valitseminen'!$D$21:$O$50,3,FALSE)),"",VLOOKUP(9,'Toimenpiteiden valitseminen'!$D$21:$O$50,3,FALSE)) ->  | E20: =IF(ISNA(VLOOKUP(9,'Toimenpiteiden valitseminen'!$D$21:$O$50,4,FALSE)),"",VLOOKUP(9,'Toimenpiteiden valitseminen'!$D$21:$O$50,4,FALSE)) ->  | F20: =IF(ISNA(VLOOKUP(9,'Toimenpiteiden valitseminen'!$D$21:$O$50,6,FALSE)),"",VLOOKUP(9,'Toimenpiteiden valitseminen'!$D$21:$O$50,6,FALSE)) ->  | G20: =IF(ISNA(VLOOKUP(9,'Toimenpiteiden valitseminen'!$D$21:$O$50,7,FALSE)),"",VLOOKUP(9,'Toimenpiteiden valitseminen'!$D$21:$O$50,7,FALSE)) ->  | H20: =IF(ISNA(VLOOKUP(9,'Toimenpiteiden valitseminen'!$D$21:$O$50,8,FALSE)),"",VLOOKUP(9,'Toimenpiteiden valitseminen'!$D$21:$O$50,8,FALSE)) ->  | J20: =IF(ISNA(VLOOKUP(9,'Toimenpiteiden valitseminen'!$D$21:$O$50,9,FALSE)),"",VLOOKUP(9,'Toimenpiteiden valitseminen'!$D$21:$O$50,9,FALSE)) ->  | K20: =IF(ISNA(VLOOKUP(9,'Toimenpiteiden valitseminen'!$D$21:$O$50,10,FALSE)),"",VLOOKUP(9,'Toimenpiteiden valitseminen'!$D$21:$O$50,10,FALSE)) -> 
C21: =IF(ISNA(VLOOKUP(10,'Toimenpiteiden valitseminen'!$D$21:$O$50,1,FALSE)),"",VLOOKUP(10,'Toimenpiteiden valitseminen'!$D$21:$O$50,1,FALSE)) ->  | D21: =IF(ISNA(VLOOKUP(10,'Toimenpiteiden valitseminen'!$D$21:$O$50,3,FALSE)),"",VLOOKUP(10,'Toimenpiteiden valitseminen'!$D$21:$O$50,3,FALSE)) ->  | E21: =IF(ISNA(VLOOKUP(10,'Toimenpiteiden valitseminen'!$D$21:$O$50,4,FALSE)),"",VLOOKUP(10,'Toimenpiteiden valitseminen'!$D$21:$O$50,4,FALSE)) ->  | F21: =IF(ISNA(VLOOKUP(10,'Toimenpiteiden valitseminen'!$D$21:$O$50,6,FALSE)),"",VLOOKUP(10,'Toimenpiteiden valitseminen'!$D$21:$O$50,6,FALSE)) ->  | G21: =IF(ISNA(VLOOKUP(10,'Toimenpiteiden valitseminen'!$D$21:$O$50,7,FALSE)),"",VLOOKUP(10,'Toimenpiteiden valitseminen'!$D$21:$O$50,7,FALSE)) ->  | H21: =IF(ISNA(VLOOKUP(10,'Toimenpiteiden valitseminen'!$D$21:$O$50,8,FALSE)),"",VLOOKUP(10,'Toimenpiteiden valitseminen'!$D$21:$O$50,8,FALSE)) ->  | J21: =IF(ISNA(VLOOKUP(10,'Toimenpiteiden valitseminen'!$D$21:$O$50,9,FALSE)),"",VLOOKUP(10,'Toimenpiteiden valitseminen'!$D$21:$O$50,9,FALSE)) ->  | K21: =IF(ISNA(VLOOKUP(10,'Toimenpiteiden valitseminen'!$D$21:$O$50,10,FALSE)),"",VLOOKUP(10,'Toimenpiteiden valitseminen'!$D$21:$O$50,10,FALSE)) -> 
C22: =IF(ISNA(VLOOKUP(11,'Toimenpiteiden valitseminen'!$D$21:$O$50,1,FALSE)),"",VLOOKUP(11,'Toimenpiteiden valitseminen'!$D$21:$O$50,1,FALSE)) ->  | D22: =IF(ISNA(VLOOKUP(11,'Toimenpiteiden valitseminen'!$D$21:$O$50,3,FALSE)),"",VLOOKUP(11,'Toimenpiteiden valitseminen'!$D$21:$O$50,3,FALSE)) ->  | E22: =IF(ISNA(VLOOKUP(11,'Toimenpiteiden valitseminen'!$D$21:$O$50,4,FALSE)),"",VLOOKUP(11,'Toimenpiteiden valitseminen'!$D$21:$O$50,4,FALSE)) ->  | F22: =IF(ISNA(VLOOKUP(11,'Toimenpiteiden valitseminen'!$D$21:$O$50,6,FALSE)),"",VLOOKUP(11,'Toimenpiteiden valitseminen'!$D$21:$O$50,6,FALSE)) ->  | G22: =IF(ISNA(VLOOKUP(11,'Toimenpiteiden valitseminen'!$D$21:$O$50,7,FALSE)),"",VLOOKUP(11,'Toimenpiteiden valitseminen'!$D$21:$O$50,7,FALSE)) ->  | H22: =IF(ISNA(VLOOKUP(11,'Toimenpiteiden valitseminen'!$D$21:$O$50,8,FALSE)),"",VLOOKUP(11,'Toimenpiteiden valitseminen'!$D$21:$O$50,8,FALSE)) ->  | J22: =IF(ISNA(VLOOKUP(11,'Toimenpiteiden valitseminen'!$D$21:$O$50,9,FALSE)),"",VLOOKUP(11,'Toimenpiteiden valitseminen'!$D$21:$O$50,9,FALSE)) ->  | K22: =IF(ISNA(VLOOKUP(11,'Toimenpiteiden valitseminen'!$D$21:$O$50,10,FALSE)),"",VLOOKUP(11,'Toimenpiteiden valitseminen'!$D$21:$O$50,10,FALSE)) -> 
C23: =IF(ISNA(VLOOKUP(12,'Toimenpiteiden valitseminen'!$D$21:$O$50,1,FALSE)),"",VLOOKUP(12,'Toimenpiteiden valitseminen'!$D$21:$O$50,1,FALSE)) ->  | D23: =IF(ISNA(VLOOKUP(12,'Toimenpiteiden valitseminen'!$D$21:$O$50,3,FALSE)),"",VLOOKUP(12,'Toimenpiteiden valitseminen'!$D$21:$O$50,3,FALSE)) ->  | E23: =IF(ISNA(VLOOKUP(12,'Toimenpiteiden valitseminen'!$D$21:$O$50,4,FALSE)),"",VLOOKUP(12,'Toimenpiteiden valitseminen'!$D$21:$O$50,4,FALSE)) ->  | F23: =IF(ISNA(VLOOKUP(12,'Toimenpiteiden valitseminen'!$D$21:$O$50,6,FALSE)),"",VLOOKUP(12,'Toimenpiteiden valitseminen'!$D$21:$O$50,6,FALSE)) ->  | G23: =IF(ISNA(VLOOKUP(12,'Toimenpiteiden valitseminen'!$D$21:$O$50,7,FALSE)),"",VLOOKUP(12,'Toimenpiteiden valitseminen'!$D$21:$O$50,7,FALSE)) ->  | H23: =IF(ISNA(VLOOKUP(12,'Toimenpiteiden valitseminen'!$D$21:$O$50,8,FALSE)),"",VLOOKUP(12,'Toimenpiteiden valitseminen'!$D$21:$O$50,8,FALSE)) ->  | J23: =IF(ISNA(VLOOKUP(12,'Toimenpiteiden valitseminen'!$D$21:$O$50,9,FALSE)),"",VLOOKUP(12,'Toimenpiteiden valitseminen'!$D$21:$O$50,9,FALSE)) ->  | K23: =IF(ISNA(VLOOKUP(12,'Toimenpiteiden valitseminen'!$D$21:$O$50,10,FALSE)),"",VLOOKUP(12,'Toimenpiteiden valitseminen'!$D$21:$O$50,10,FALSE)) -> 
C24: =IF(ISNA(VLOOKUP(13,'Toimenpiteiden valitseminen'!$D$21:$O$50,1,FALSE)),"",VLOOKUP(13,'Toimenpiteiden valitseminen'!$D$21:$O$50,1,FALSE)) ->  | D24: =IF(ISNA(VLOOKUP(13,'Toimenpiteiden valitseminen'!$D$21:$O$50,3,FALSE)),"",VLOOKUP(13,'Toimenpiteiden valitseminen'!$D$21:$O$50,3,FALSE)) ->  | E24: =IF(ISNA(VLOOKUP(13,'Toimenpiteiden valitseminen'!$D$21:$O$50,4,FALSE)),"",VLOOKUP(13,'Toimenpiteiden valitseminen'!$D$21:$O$50,4,FALSE)) ->  | F24: =IF(ISNA(VLOOKUP(13,'Toimenpiteiden valitseminen'!$D$21:$O$50,6,FALSE)),"",VLOOKUP(13,'Toimenpiteiden valitseminen'!$D$21:$O$50,6,FALSE)) ->  | G24: =IF(ISNA(VLOOKUP(13,'Toimenpiteiden valitseminen'!$D$21:$O$50,7,FALSE)),"",VLOOKUP(13,'Toimenpiteiden valitseminen'!$D$21:$O$50,7,FALSE)) ->  | H24: =IF(ISNA(VLOOKUP(13,'Toimenpiteiden valitseminen'!$D$21:$O$50,8,FALSE)),"",VLOOKUP(13,'Toimenpiteiden valitseminen'!$D$21:$O$50,8,FALSE)) ->  | J24: =IF(ISNA(VLOOKUP(13,'Toimenpiteiden valitseminen'!$D$21:$O$50,9,FALSE)),"",VLOOKUP(13,'Toimenpiteiden valitseminen'!$D$21:$O$50,9,FALSE)) ->  | K24: =IF(ISNA(VLOOKUP(13,'Toimenpiteiden valitseminen'!$D$21:$O$50,10,FALSE)),"",VLOOKUP(13,'Toimenpiteiden valitseminen'!$D$21:$O$50,10,FALSE)) -> 
C25: =IF(ISNA(VLOOKUP(14,'Toimenpiteiden valitseminen'!$D$21:$O$50,1,FALSE)),"",VLOOKUP(14,'Toimenpiteiden valitseminen'!$D$21:$O$50,1,FALSE)) ->  | D25: =IF(ISNA(VLOOKUP(14,'Toimenpiteiden valitseminen'!$D$21:$O$50,3,FALSE)),"",VLOOKUP(14,'Toimenpiteiden valitseminen'!$D$21:$O$50,3,FALSE)) ->  | E25: =IF(ISNA(VLOOKUP(14,'Toimenpiteiden valitseminen'!$D$21:$O$50,4,FALSE)),"",VLOOKUP(14,'Toimenpiteiden valitseminen'!$D$21:$O$50,4,FALSE)) ->  | F25: =IF(ISNA(VLOOKUP(14,'Toimenpiteiden valitseminen'!$D$21:$O$50,6,FALSE)),"",VLOOKUP(14,'Toimenpiteiden valitseminen'!$D$21:$O$50,6,FALSE)) ->  | G25: =IF(ISNA(VLOOKUP(14,'Toimenpiteiden valitseminen'!$D$21:$O$50,7,FALSE)),"",VLOOKUP(14,'Toimenpiteiden valitseminen'!$D$21:$O$50,7,FALSE)) ->  | H25: =IF(ISNA(VLOOKUP(14,'Toimenpiteiden valitseminen'!$D$21:$O$50,8,FALSE)),"",VLOOKUP(14,'Toimenpiteiden valitseminen'!$D$21:$O$50,8,FALSE)) ->  | J25: =IF(ISNA(VLOOKUP(14,'Toimenpiteiden valitseminen'!$D$21:$O$50,9,FALSE)),"",VLOOKUP(14,'Toimenpiteiden valitseminen'!$D$21:$O$50,9,FALSE)) ->  | K25: =IF(ISNA(VLOOKUP(14,'Toimenpiteiden valitseminen'!$D$21:$O$50,10,FALSE)),"",VLOOKUP(14,'Toimenpiteiden valitseminen'!$D$21:$O$50,10,FALSE)) -> 
C26: =IF(ISNA(VLOOKUP(15,'Toimenpiteiden valitseminen'!$D$21:$O$50,1,FALSE)),"",VLOOKUP(15,'Toimenpiteiden valitseminen'!$D$21:$O$50,1,FALSE)) ->  | D26: =IF(ISNA(VLOOKUP(15,'Toimenpiteiden valitseminen'!$D$21:$O$50,3,FALSE)),"",VLOOKUP(15,'Toimenpiteiden valitseminen'!$D$21:$O$50,3,FALSE)) ->  | E26: =IF(ISNA(VLOOKUP(15,'Toimenpiteiden valitseminen'!$D$21:$O$50,4,FALSE)),"",VLOOKUP(15,'Toimenpiteiden valitseminen'!$D$21:$O$50,4,FALSE)) ->  | F26: =IF(ISNA(VLOOKUP(15,'Toimenpiteiden valitseminen'!$D$21:$O$50,6,FALSE)),"",VLOOKUP(15,'Toimenpiteiden valitseminen'!$D$21:$O$50,6,FALSE)) ->  | G26: =IF(ISNA(VLOOKUP(15,'Toimenpiteiden valitseminen'!$D$21:$O$50,7,FALSE)),"",VLOOKUP(15,'Toimenpiteiden valitseminen'!$D$21:$O$50,7,FALSE)) ->  | H26: =IF(ISNA(VLOOKUP(15,'Toimenpiteiden valitseminen'!$D$21:$O$50,8,FALSE)),"",VLOOKUP(15,'Toimenpiteiden valitseminen'!$D$21:$O$50,8,FALSE)) ->  | J26: =IF(ISNA(VLOOKUP(15,'Toimenpiteiden valitseminen'!$D$21:$O$50,9,FALSE)),"",VLOOKUP(15,'Toimenpiteiden valitseminen'!$D$21:$O$50,9,FALSE)) ->  | K26: =IF(ISNA(VLOOKUP(15,'Toimenpiteiden valitseminen'!$D$21:$O$50,10,FALSE)),"",VLOOKUP(15,'Toimenpiteiden valitseminen'!$D$21:$O$50,10,FALSE)) -> 
C27: =IF(ISNA(VLOOKUP(16,'Toimenpiteiden valitseminen'!$D$21:$O$50,1,FALSE)),"",VLOOKUP(16,'Toimenpiteiden valitseminen'!$D$21:$O$50,1,FALSE)) ->  | D27: =IF(ISNA(VLOOKUP(16,'Toimenpiteiden valitseminen'!$D$21:$O$50,3,FALSE)),"",VLOOKUP(16,'Toimenpiteiden valitseminen'!$D$21:$O$50,3,FALSE)) ->  | E27: =IF(ISNA(VLOOKUP(16,'Toimenpiteiden valitseminen'!$D$21:$O$50,4,FALSE)),"",VLOOKUP(16,'Toimenpiteiden valitseminen'!$D$21:$O$50,4,FALSE)) ->  | F27: =IF(ISNA(VLOOKUP(16,'Toimenpiteiden valitseminen'!$D$21:$O$50,6,FALSE)),"",VLOOKUP(16,'Toimenpiteiden valitseminen'!$D$21:$O$50,6,FALSE)) ->  | G27: =IF(ISNA(VLOOKUP(16,'Toimenpiteiden valitseminen'!$D$21:$O$50,7,FALSE)),"",VLOOKUP(16,'Toimenpiteiden valitseminen'!$D$21:$O$50,7,FALSE)) ->  | H27: =IF(ISNA(VLOOKUP(16,'Toimenpiteiden valitseminen'!$D$21:$O$50,8,FALSE)),"",VLOOKUP(16,'Toimenpiteiden valitseminen'!$D$21:$O$50,8,FALSE)) ->  | J27: =IF(ISNA(VLOOKUP(16,'Toimenpiteiden valitseminen'!$D$21:$O$50,9,FALSE)),"",VLOOKUP(16,'Toimenpiteiden valitseminen'!$D$21:$O$50,9,FALSE)) ->  | K27: =IF(ISNA(VLOOKUP(16,'Toimenpiteiden valitseminen'!$D$21:$O$50,10,FALSE)),"",VLOOKUP(16,'Toimenpiteiden valitseminen'!$D$21:$O$50,10,FALSE)) -> 
C28: =IF(ISNA(VLOOKUP(17,'Toimenpiteiden valitseminen'!$D$21:$O$50,1,FALSE)),"",VLOOKUP(17,'Toimenpiteiden valitseminen'!$D$21:$O$50,1,FALSE)) ->  | D28: =IF(ISNA(VLOOKUP(17,'Toimenpiteiden valitseminen'!$D$21:$O$50,3,FALSE)),"",VLOOKUP(17,'Toimenpiteiden valitseminen'!$D$21:$O$50,3,FALSE)) ->  | E28: =IF(ISNA(VLOOKUP(17,'Toimenpiteiden valitseminen'!$D$21:$O$50,4,FALSE)),"",VLOOKUP(17,'Toimenpiteiden valitseminen'!$D$21:$O$50,4,FALSE)) ->  | F28: =IF(ISNA(VLOOKUP(17,'Toimenpiteiden valitseminen'!$D$21:$O$50,6,FALSE)),"",VLOOKUP(17,'Toimenpiteiden valitseminen'!$D$21:$O$50,6,FALSE)) ->  | G28: =IF(ISNA(VLOOKUP(17,'Toimenpiteiden valitseminen'!$D$21:$O$50,7,FALSE)),"",VLOOKUP(17,'Toimenpiteiden valitseminen'!$D$21:$O$50,7,FALSE)) ->  | H28: =IF(ISNA(VLOOKUP(17,'Toimenpiteiden valitseminen'!$D$21:$O$50,8,FALSE)),"",VLOOKUP(17,'Toimenpiteiden valitseminen'!$D$21:$O$50,8,FALSE)) ->  | J28: =IF(ISNA(VLOOKUP(17,'Toimenpiteiden valitseminen'!$D$21:$O$50,9,FALSE)),"",VLOOKUP(17,'Toimenpiteiden valitseminen'!$D$21:$O$50,9,FALSE)) ->  | K28: =IF(ISNA(VLOOKUP(17,'Toimenpiteiden valitseminen'!$D$21:$O$50,10,FALSE)),"",VLOOKUP(17,'Toimenpiteiden valitseminen'!$D$21:$O$50,10,FALSE)) -> 
C31: VALINTAJÄRJESTYS JÄRJESTETTYNÄ TAKAISINMAKSUAJAN MUKAAN
C33: VALINTA- JÄRJESTYS | D33: TAKAISIN- MAKSU- AIKA | E33: TOIMENPITEEN TUNNUS | F33: KUSTANNUSTEN MUUTOS [€] | G33: LÄMMITYSENERGIAN KULUTUKSEN MUUTOS [MWh/a] | H33: SÄHKÖENERGIAN KULUTUKSEN MUUTOS [MWh/a] | I33: VUOSITTAINEN KOKONAIS- ENERGIANSÄÄSTÖ [MWh/a] | J33: KUSTANNUSTEN VUOSIMUUTOS [€/a] | K33: PITOAIKA [a] | L33: KUSTANNUS / ENERGIANSÄÄSTÖ [€/(kWh/a)]
C34: =IF(ISNA(VLOOKUP(1,'Toimenpiteiden valitseminen'!$B$21:$O$50,1,FALSE)),"",VLOOKUP(1,'Toimenpiteiden valitseminen'!$B$21:$O$50,1,FALSE)) -> 1 | D34: =IF(ISNA(VLOOKUP(1,'Toimenpiteiden valitseminen'!$B$21:$O$50,13,FALSE)),"",VLOOKUP(1,'Toimenpiteiden valitseminen'!$B$21:$O$50,13,FALSE)) -> 4.13902892 | E34: =IF(ISNA(VLOOKUP(1,'Toimenpiteiden valitseminen'!$B$21:$O$50,6,FALSE)),"",VLOOKUP(1,'Toimenpiteiden valitseminen'!$B$21:$O$50,6,FALSE)) -> VKM | F34: =IF(ISNA(VLOOKUP(1,'Toimenpiteiden valitseminen'!$B$21:$O$50,8,FALSE)),"",VLOOKUP(1,'Toimenpiteiden valitseminen'!$B$21:$O$50,8,FALSE)) -> 46800 | G34: =IF(ISNA(VLOOKUP(1,'Toimenpiteiden valitseminen'!$B$21:$O$50,9,FALSE)),"",VLOOKUP(1,'Toimenpiteiden valitseminen'!$B$21:$O$50,9,FALSE)) -> -29 | H34: =IF(ISNA(VLOOKUP(1,'Toimenpiteiden valitseminen'!$B$21:$O$50,10,FALSE)),"",VLOOKUP(1,'Toimenpiteiden valitseminen'!$B$21:$O$50,10,FALSE)) -> 0 | I34: =IF(AND(G34="",H34=""),"",-(G34+H34)) -> 29 | J34: =IF(ISNA(VLOOKUP(1,'Toimenpiteiden valitseminen'!$B$21:$O$50,11,FALSE)),"",VLOOKUP(1,'Toimenpiteiden valitseminen'!$B$21:$O$50,11,FALSE)) -> -11307 | K34: =IF(ISNA(VLOOKUP(1,'Toimenpiteiden valitseminen'!$B$21:$O$50,12,FALSE)),"",VLOOKUP(1,'Toimenpiteiden valitseminen'!$B$21:$O$50,12,FALSE)) -> 15 | L34: =IF(AND(G34="",H34=""),"",F34/(1000*I34)) -> 1.613793103
C35: =IF(ISNA(VLOOKUP(2,'Toimenpiteiden valitseminen'!$B$21:$O$50,1,FALSE)),"",VLOOKUP(2,'Toimenpiteiden valitseminen'!$B$21:$O$50,1,FALSE)) -> 2 | D35: =IF(ISNA(VLOOKUP(2,'Toimenpiteiden valitseminen'!$B$21:$O$50,13,FALSE)),"",VLOOKUP(2,'Toimenpiteiden valitseminen'!$B$21:$O$50,13,FALSE)) -> 4.830222222 | E35: =IF(ISNA(VLOOKUP(2,'Toimenpiteiden valitseminen'!$B$21:$O$50,6,FALSE)),"",VLOOKUP(2,'Toimenpiteiden valitseminen'!$B$21:$O$50,6,FALSE)) -> IKK2 | F35: =IF(ISNA(VLOOKUP(2,'Toimenpiteiden valitseminen'!$B$21:$O$50,8,FALSE)),"",VLOOKUP(2,'Toimenpiteiden valitseminen'!$B$21:$O$50,8,FALSE)) -> 10868 | G35: =IF(ISNA(VLOOKUP(2,'Toimenpiteiden valitseminen'!$B$21:$O$50,9,FALSE)),"",VLOOKUP(2,'Toimenpiteiden valitseminen'!$B$21:$O$50,9,FALSE)) -> -45 | H35: =IF(ISNA(VLOOKUP(2,'Toimenpiteiden valitseminen'!$B$21:$O$50,10,FALSE)),"",VLOOKUP(2,'Toimenpiteiden valitseminen'!$B$21:$O$50,10,FALSE)) -> 0 | I35: =IF(AND(G35="",H35=""),"",-(G35+H35)) -> 45 | J35: =IF(ISNA(VLOOKUP(2,'Toimenpiteiden valitseminen'!$B$21:$O$50,11,FALSE)),"",VLOOKUP(2,'Toimenpiteiden valitseminen'!$B$21:$O$50,11,FALSE)) -> -2250 | K35: =IF(ISNA(VLOOKUP(2,'Toimenpiteiden valitseminen'!$B$21:$O$50,12,FALSE)),"",VLOOKUP(2,'Toimenpiteiden valitseminen'!$B$21:$O$50,12,FALSE)) -> 30 | L35: =IF(AND(G35="",H35=""),"",F35/(1000*I35)) -> 0.2415111111
C36: =IF(ISNA(VLOOKUP(3,'Toimenpiteiden valitseminen'!$B$21:$O$50,1,FALSE)),"",VLOOKUP(3,'Toimenpiteiden valitseminen'!$B$21:$O$50,1,FALSE)) -> 3 | D36: =IF(ISNA(VLOOKUP(3,'Toimenpiteiden valitseminen'!$B$21:$O$50,13,FALSE)),"",VLOOKUP(3,'Toimenpiteiden valitseminen'!$B$21:$O$50,13,FALSE)) -> 5.452173913 | E36: =IF(ISNA(VLOOKUP(3,'Toimenpiteiden valitseminen'!$B$21:$O$50,6,FALSE)),"",VLOOKUP(3,'Toimenpiteiden valitseminen'!$B$21:$O$50,6,FALSE)) -> IKK1 | F36: =IF(ISNA(VLOOKUP(3,'Toimenpiteiden valitseminen'!$B$21:$O$50,8,FALSE)),"",VLOOKUP(3,'Toimenpiteiden valitseminen'!$B$21:$O$50,8,FALSE)) -> 12540 | G36: =IF(ISNA(VLOOKUP(3,'Toimenpiteiden valitseminen'!$B$21:$O$50,9,FALSE)),"",VLOOKUP(3,'Toimenpiteiden valitseminen'!$B$21:$O$50,9,FALSE)) -> -46 | H36: =IF(ISNA(VLOOKUP(3,'Toimenpiteiden valitseminen'!$B$21:$O$50,10,FALSE)),"",VLOOKUP(3,'Toimenpiteiden valitseminen'!$B$21:$O$50,10,FALSE)) -> 0 | I36: =IF(AND(G36="",H36=""),"",-(G36+H36)) -> 46 | J36: =IF(ISNA(VLOOKUP(3,'Toimenpiteiden valitseminen'!$B$21:$O$50,11,FALSE)),"",VLOOKUP(3,'Toimenpiteiden valitseminen'!$B$21:$O$50,11,FALSE)) -> -2300 | K36: =IF(ISNA(VLOOKUP(3,'Toimenpiteiden valitseminen'!$B$21:$O$50,12,FALSE)),"",VLOOKUP(3,'Toimenpiteiden valitseminen'!$B$21:$O$50,12,FALSE)) -> 30 | L36: 0.2726086957
C37: =IF(ISNA(VLOOKUP(4,'Toimenpiteiden valitseminen'!$B$21:$O$50,1,FALSE)),"",VLOOKUP(4,'Toimenpiteiden valitseminen'!$B$21:$O$50,1,FALSE)) -> 4 | D37: =IF(ISNA(VLOOKUP(4,'Toimenpiteiden valitseminen'!$B$21:$O$50,13,FALSE)),"",VLOOKUP(4,'Toimenpiteiden valitseminen'!$B$21:$O$50,13,FALSE)) -> 8.641975309 | E37: =IF(ISNA(VLOOKUP(4,'Toimenpiteiden valitseminen'!$B$21:$O$50,6,FALSE)),"",VLOOKUP(4,'Toimenpiteiden valitseminen'!$B$21:$O$50,6,FALSE)) -> IV1 | F37: =IF(ISNA(VLOOKUP(4,'Toimenpiteiden valitseminen'!$B$21:$O$50,8,FALSE)),"",VLOOKUP(4,'Toimenpiteiden valitseminen'!$B$21:$O$50,8,FALSE)) -> 78400 | G37: =IF(ISNA(VLOOKUP(4,'Toimenpiteiden valitseminen'!$B$21:$O$50,9,FALSE)),"",VLOOKUP(4,'Toimenpiteiden valitseminen'!$B$21:$O$50,9,FALSE)) -> -259 | H37: =IF(ISNA(VLOOKUP(4,'Toimenpiteiden valitseminen'!$B$21:$O$50,10,FALSE)),"",VLOOKUP(4,'Toimenpiteiden valitseminen'!$B$21:$O$50,10,FALSE)) -> 38.6 | I37: 220.4 | J37: =IF(ISNA(VLOOKUP(4,'Toimenpiteiden valitseminen'!$B$21:$O$50,11,FALSE)),"",VLOOKUP(4,'Toimenpiteiden valitseminen'!$B$21:$O$50,11,FALSE)) -> -9072 | K37: =IF(ISNA(VLOOKUP(4,'Toimenpiteiden valitseminen'!$B$21:$O$50,12,FALSE)),"",VLOOKUP(4,'Toimenpiteiden valitseminen'!$B$21:$O$50,12,FALSE)) -> 30 | L37: 0.3557168784
C38: =IF(ISNA(VLOOKUP(5,'Toimenpiteiden valitseminen'!$B$21:$O$50,1,FALSE)),"",VLOOKUP(5,'Toimenpiteiden valitseminen'!$B$21:$O$50,1,FALSE)) -> 5 | D38: =IF(ISNA(VLOOKUP(5,'Toimenpiteiden valitseminen'!$B$21:$O$50,13,FALSE)),"",VLOOKUP(5,'Toimenpiteiden valitseminen'!$B$21:$O$50,13,FALSE)) -> 8.76 | E38: =IF(ISNA(VLOOKUP(5,'Toimenpiteiden valitseminen'!$B$21:$O$50,6,FALSE)),"",VLOOKUP(5,'Toimenpiteiden valitseminen'!$B$21:$O$50,6,FALSE)) -> YP1 | F38: =IF(ISNA(VLOOKUP(5,'Toimenpiteiden valitseminen'!$B$21:$O$50,8,FALSE)),"",VLOOKUP(5,'Toimenpiteiden valitseminen'!$B$21:$O$50,8,FALSE)) -> 2628 | G38: =IF(ISNA(VLOOKUP(5,'Toimenpiteiden valitseminen'!$B$21:$O$50,9,FALSE)),"",VLOOKUP(5,'Toimenpiteiden valitseminen'!$B$21:$O$50,9,FALSE)) -> -6 | H38: =IF(ISNA(VLOOKUP(5,'Toimenpiteiden valitseminen'!$B$21:$O$50,10,FALSE)),"",VLOOKUP(5,'Toimenpiteiden valitseminen'!$B$21:$O$50,10,FALSE)) -> 0 | I38: 6 | J38: =IF(ISNA(VLOOKUP(5,'Toimenpiteiden valitseminen'!$B$21:$O$50,11,FALSE)),"",VLOOKUP(5,'Toimenpiteiden valitseminen'!$B$21:$O$50,11,FALSE)) -> -300 | K38: =IF(ISNA(VLOOKUP(5,'Toimenpiteiden valitseminen'!$B$21:$O$50,12,FALSE)),"",VLOOKUP(5,'Toimenpiteiden valitseminen'!$B$21:$O$50,12,FALSE)) -> 40 | L38: 0.438
C39: =IF(ISNA(VLOOKUP(6,'Toimenpiteiden valitseminen'!$B$21:$O$50,1,FALSE)),"",VLOOKUP(6,'Toimenpiteiden valitseminen'!$B$21:$O$50,1,FALSE)) -> 6 | D39: =IF(ISNA(VLOOKUP(6,'Toimenpiteiden valitseminen'!$B$21:$O$50,13,FALSE)),"",VLOOKUP(6,'Toimenpiteiden valitseminen'!$B$21:$O$50,13,FALSE)) -> 11.33333333 | E39: =IF(ISNA(VLOOKUP(6,'Toimenpiteiden valitseminen'!$B$21:$O$50,6,FALSE)),"",VLOOKUP(6,'Toimenpiteiden valitseminen'!$B$21:$O$50,6,FALSE)) -> US1 | F39: =IF(ISNA(VLOOKUP(6,'Toimenpiteiden valitseminen'!$B$21:$O$50,8,FALSE)),"",VLOOKUP(6,'Toimenpiteiden valitseminen'!$B$21:$O$50,8,FALSE)) -> 5100 | G39: =IF(ISNA(VLOOKUP(6,'Toimenpiteiden valitseminen'!$B$21:$O$50,9,FALSE)),"",VLOOKUP(6,'Toimenpiteiden valitseminen'!$B$21:$O$50,9,FALSE)) -> -9 | H39: =IF(ISNA(VLOOKUP(6,'Toimenpiteiden valitseminen'!$B$21:$O$50,10,FALSE)),"",VLOOKUP(6,'Toimenpiteiden valitseminen'!$B$21:$O$50,10,FALSE)) -> 0 | I39: 9 | J39: =IF(ISNA(VLOOKUP(6,'Toimenpiteiden valitseminen'!$B$21:$O$50,11,FALSE)),"",VLOOKUP(6,'Toimenpiteiden valitseminen'!$B$21:$O$50,11,FALSE)) -> -450 | K39: =IF(ISNA(VLOOKUP(6,'Toimenpiteiden valitseminen'!$B$21:$O$50,12,FALSE)),"",VLOOKUP(6,'Toimenpiteiden valitseminen'!$B$21:$O$50,12,FALSE)) -> 40 | L39: 0.5666666667
C40: =IF(ISNA(VLOOKUP(7,'Toimenpiteiden valitseminen'!$B$21:$O$50,1,FALSE)),"",VLOOKUP(7,'Toimenpiteiden valitseminen'!$B$21:$O$50,1,FALSE)) -> 7 | D40: =IF(ISNA(VLOOKUP(7,'Toimenpiteiden valitseminen'!$B$21:$O$50,13,FALSE)),"",VLOOKUP(7,'Toimenpiteiden valitseminen'!$B$21:$O$50,13,FALSE)) -> 11.82432432 | E40: =IF(ISNA(VLOOKUP(7,'Toimenpiteiden valitseminen'!$B$21:$O$50,6,FALSE)),"",VLOOKUP(7,'Toimenpiteiden valitseminen'!$B$21:$O$50,6,FALSE)) -> IV2 | F40: =IF(ISNA(VLOOKUP(7,'Toimenpiteiden valitseminen'!$B$21:$O$50,8,FALSE)),"",VLOOKUP(7,'Toimenpiteiden valitseminen'!$B$21:$O$50,8,FALSE)) -> 98000 | G40: =IF(ISNA(VLOOKUP(7,'Toimenpiteiden valitseminen'!$B$21:$O$50,9,FALSE)),"",VLOOKUP(7,'Toimenpiteiden valitseminen'!$B$21:$O$50,9,FALSE)) -> -259 | H40: =IF(ISNA(VLOOKUP(7,'Toimenpiteiden valitseminen'!$B$21:$O$50,10,FALSE)),"",VLOOKUP(7,'Toimenpiteiden valitseminen'!$B$21:$O$50,10,FALSE)) -> 38.6 | I40: 220.4 | J40: =IF(ISNA(VLOOKUP(7,'Toimenpiteiden valitseminen'!$B$21:$O$50,11,FALSE)),"",VLOOKUP(7,'Toimenpiteiden valitseminen'!$B$21:$O$50,11,FALSE)) -> -8288 | K40: =IF(ISNA(VLOOKUP(7,'Toimenpiteiden valitseminen'!$B$21:$O$50,12,FALSE)),"",VLOOKUP(7,'Toimenpiteiden valitseminen'!$B$21:$O$50,12,FALSE)) -> 30 | L40: 0.444646098
C41: =IF(ISNA(VLOOKUP(8,'Toimenpiteiden valitseminen'!$B$21:$O$50,1,FALSE)),"",VLOOKUP(8,'Toimenpiteiden valitseminen'!$B$21:$O$50,1,FALSE)) -> 8 | D41: =IF(ISNA(VLOOKUP(8,'Toimenpiteiden valitseminen'!$B$21:$O$50,13,FALSE)),"",VLOOKUP(8,'Toimenpiteiden valitseminen'!$B$21:$O$50,13,FALSE)) -> 27.04 | E41: =IF(ISNA(VLOOKUP(8,'Toimenpiteiden valitseminen'!$B$21:$O$50,6,FALSE)),"",VLOOKUP(8,'Toimenpiteiden valitseminen'!$B$21:$O$50,6,FALSE)) -> YP2 | F41: =IF(ISNA(VLOOKUP(8,'Toimenpiteiden valitseminen'!$B$21:$O$50,8,FALSE)),"",VLOOKUP(8,'Toimenpiteiden valitseminen'!$B$21:$O$50,8,FALSE)) -> 5408 | G41: =IF(ISNA(VLOOKUP(8,'Toimenpiteiden valitseminen'!$B$21:$O$50,9,FALSE)),"",VLOOKUP(8,'Toimenpiteiden valitseminen'!$B$21:$O$50,9,FALSE)) -> -4 | H41: =IF(ISNA(VLOOKUP(8,'Toimenpiteiden valitseminen'!$B$21:$O$50,10,FALSE)),"",VLOOKUP(8,'Toimenpiteiden valitseminen'!$B$21:$O$50,10,FALSE)) -> 0 | I41: 4 | J41: =IF(ISNA(VLOOKUP(8,'Toimenpiteiden valitseminen'!$B$21:$O$50,11,FALSE)),"",VLOOKUP(8,'Toimenpiteiden valitseminen'!$B$21:$O$50,11,FALSE)) -> -200 | K41: =IF(ISNA(VLOOKUP(8,'Toimenpiteiden valitseminen'!$B$21:$O$50,12,FALSE)),"",VLOOKUP(8,'Toimenpiteiden valitseminen'!$B$21:$O$50,12,FALSE)) -> 40 | L41: 1.352
C42: =IF(ISNA(VLOOKUP(9,'Toimenpiteiden valitseminen'!$B$21:$O$50,1,FALSE)),"",VLOOKUP(9,'Toimenpiteiden valitseminen'!$B$21:$O$50,1,FALSE)) -> 9 | D42: =IF(ISNA(VLOOKUP(9,'Toimenpiteiden valitseminen'!$B$21:$O$50,13,FALSE)),"",VLOOKUP(9,'Toimenpiteiden valitseminen'!$B$21:$O$50,13,FALSE)) -> 57.29411765 | E42: =IF(ISNA(VLOOKUP(9,'Toimenpiteiden valitseminen'!$B$21:$O$50,6,FALSE)),"",VLOOKUP(9,'Toimenpiteiden valitseminen'!$B$21:$O$50,6,FALSE)) -> US2 | F42: =IF(ISNA(VLOOKUP(9,'Toimenpiteiden valitseminen'!$B$21:$O$50,8,FALSE)),"",VLOOKUP(9,'Toimenpiteiden valitseminen'!$B$21:$O$50,8,FALSE)) -> 48700 | G42: =IF(ISNA(VLOOKUP(9,'Toimenpiteiden valitseminen'!$B$21:$O$50,9,FALSE)),"",VLOOKUP(9,'Toimenpiteiden valitseminen'!$B$21:$O$50,9,FALSE)) -> -17 | H42: =IF(ISNA(VLOOKUP(9,'Toimenpiteiden valitseminen'!$B$21:$O$50,10,FALSE)),"",VLOOKUP(9,'Toimenpiteiden valitseminen'!$B$21:$O$50,10,FALSE)) -> 0 | I42: 17 | J42: =IF(ISNA(VLOOKUP(9,'Toimenpiteiden valitseminen'!$B$21:$O$50,11,FALSE)),"",VLOOKUP(9,'Toimenpiteiden valitseminen'!$B$21:$O$50,11,FALSE)) -> -850 | K42: =IF(ISNA(VLOOKUP(9,'Toimenpiteiden valitseminen'!$B$21:$O$50,12,FALSE)),"",VLOOKUP(9,'Toimenpiteiden valitseminen'!$B$21:$O$50,12,FALSE)) -> 40 | L42: 2.864705882
C43: =IF(ISNA(VLOOKUP(10,'Toimenpiteiden valitseminen'!$B$21:$O$50,1,FALSE)),"",VLOOKUP(10,'Toimenpiteiden valitseminen'!$B$21:$O$50,1,FALSE)) ->  | D43: =IF(ISNA(VLOOKUP(10,'Toimenpiteiden valitseminen'!$B$21:$O$50,13,FALSE)),"",VLOOKUP(10,'Toimenpiteiden valitseminen'!$B$21:$O$50,13,FALSE)) ->  | E43: =IF(ISNA(VLOOKUP(10,'Toimenpiteiden valitseminen'!$B$21:$O$50,6,FALSE)),"",VLOOKUP(10,'Toimenpiteiden valitseminen'!$B$21:$O$50,6,FALSE)) ->  | F43: =IF(ISNA(VLOOKUP(10,'Toimenpiteiden valitseminen'!$B$21:$O$50,8,FALSE)),"",VLOOKUP(10,'Toimenpiteiden valitseminen'!$B$21:$O$50,8,FALSE)) ->  | G43: =IF(ISNA(VLOOKUP(10,'Toimenpiteiden valitseminen'!$B$21:$O$50,9,FALSE)),"",VLOOKUP(10,'Toimenpiteiden valitseminen'!$B$21:$O$50,9,FALSE)) ->  | H43: =IF(ISNA(VLOOKUP(10,'Toimenpiteiden valitseminen'!$B$21:$O$50,10,FALSE)),"",VLOOKUP(10,'Toimenpiteiden valitseminen'!$B$21:$O$50,10,FALSE)) ->  | J43: =IF(ISNA(VLOOKUP(10,'Toimenpiteiden valitseminen'!$B$21:$O$50,11,FALSE)),"",VLOOKUP(10,'Toimenpiteiden valitseminen'!$B$21:$O$50,11,FALSE)) ->  | K43: =IF(ISNA(VLOOKUP(10,'Toimenpiteiden valitseminen'!$B$21:$O$50,12,FALSE)),"",VLOOKUP(10,'Toimenpiteiden valitseminen'!$B$21:$O$50,12,FALSE)) -> 
C44: =IF(ISNA(VLOOKUP(11,'Toimenpiteiden valitseminen'!$B$21:$O$50,1,FALSE)),"",VLOOKUP(11,'Toimenpiteiden valitseminen'!$B$21:$O$50,1,FALSE)) ->  | D44: =IF(ISNA(VLOOKUP(11,'Toimenpiteiden valitseminen'!$B$21:$O$50,13,FALSE)),"",VLOOKUP(11,'Toimenpiteiden valitseminen'!$B$21:$O$50,13,FALSE)) ->  | E44: =IF(ISNA(VLOOKUP(11,'Toimenpiteiden valitseminen'!$B$21:$O$50,6,FALSE)),"",VLOOKUP(11,'Toimenpiteiden valitseminen'!$B$21:$O$50,6,FALSE)) ->  | F44: =IF(ISNA(VLOOKUP(11,'Toimenpiteiden valitseminen'!$B$21:$O$50,8,FALSE)),"",VLOOKUP(11,'Toimenpiteiden valitseminen'!$B$21:$O$50,8,FALSE)) ->  | G44: =IF(ISNA(VLOOKUP(11,'Toimenpiteiden valitseminen'!$B$21:$O$50,9,FALSE)),"",VLOOKUP(11,'Toimenpiteiden valitseminen'!$B$21:$O$50,9,FALSE)) ->  | H44: =IF(ISNA(VLOOKUP(11,'Toimenpiteiden valitseminen'!$B$21:$O$50,10,FALSE)),"",VLOOKUP(11,'Toimenpiteiden valitseminen'!$B$21:$O$50,10,FALSE)) ->  | J44: =IF(ISNA(VLOOKUP(11,'Toimenpiteiden valitseminen'!$B$21:$O$50,11,FALSE)),"",VLOOKUP(11,'Toimenpiteiden valitseminen'!$B$21:$O$50,11,FALSE)) ->  | K44: =IF(ISNA(VLOOKUP(11,'Toimenpiteiden valitseminen'!$B$21:$O$50,12,FALSE)),"",VLOOKUP(11,'Toimenpiteiden valitseminen'!$B$21:$O$50,12,FALSE)) -> 
C45: =IF(ISNA(VLOOKUP(12,'Toimenpiteiden valitseminen'!$B$21:$O$50,1,FALSE)),"",VLOOKUP(12,'Toimenpiteiden valitseminen'!$B$21:$O$50,1,FALSE)) ->  | D45: =IF(ISNA(VLOOKUP(12,'Toimenpiteiden valitseminen'!$B$21:$O$50,13,FALSE)),"",VLOOKUP(12,'Toimenpiteiden valitseminen'!$B$21:$O$50,13,FALSE)) ->  | E45: =IF(ISNA(VLOOKUP(12,'Toimenpiteiden valitseminen'!$B$21:$O$50,6,FALSE)),"",VLOOKUP(12,'Toimenpiteiden valitseminen'!$B$21:$O$50,6,FALSE)) ->  | F45: =IF(ISNA(VLOOKUP(12,'Toimenpiteiden valitseminen'!$B$21:$O$50,8,FALSE)),"",VLOOKUP(12,'Toimenpiteiden valitseminen'!$B$21:$O$50,8,FALSE)) ->  | G45: =IF(ISNA(VLOOKUP(12,'Toimenpiteiden valitseminen'!$B$21:$O$50,9,FALSE)),"",VLOOKUP(12,'Toimenpiteiden valitseminen'!$B$21:$O$50,9,FALSE)) ->  | H45: =IF(ISNA(VLOOKUP(12,'Toimenpiteiden valitseminen'!$B$21:$O$50,10,FALSE)),"",VLOOKUP(12,'Toimenpiteiden valitseminen'!$B$21:$O$50,10,FALSE)) ->  | J45: =IF(ISNA(VLOOKUP(12,'Toimenpiteiden valitseminen'!$B$21:$O$50,11,FALSE)),"",VLOOKUP(12,'Toimenpiteiden valitseminen'!$B$21:$O$50,11,FALSE)) ->  | K45: =IF(ISNA(VLOOKUP(12,'Toimenpiteiden valitseminen'!$B$21:$O$50,12,FALSE)),"",VLOOKUP(12,'Toimenpiteiden valitseminen'!$B$21:$O$50,12,FALSE)) -> 
C46: =IF(ISNA(VLOOKUP(13,'Toimenpiteiden valitseminen'!$B$21:$O$50,1,FALSE)),"",VLOOKUP(13,'Toimenpiteiden valitseminen'!$B$21:$O$50,1,FALSE)) ->  | D46: =IF(ISNA(VLOOKUP(13,'Toimenpiteiden valitseminen'!$B$21:$O$50,13,FALSE)),"",VLOOKUP(13,'Toimenpiteiden valitseminen'!$B$21:$O$50,13,FALSE)) ->  | E46: =IF(ISNA(VLOOKUP(13,'Toimenpiteiden valitseminen'!$B$21:$O$50,6,FALSE)),"",VLOOKUP(13,'Toimenpiteiden valitseminen'!$B$21:$O$50,6,FALSE)) ->  | F46: =IF(ISNA(VLOOKUP(13,'Toimenpiteiden valitseminen'!$B$21:$O$50,8,FALSE)),"",VLOOKUP(13,'Toimenpiteiden valitseminen'!$B$21:$O$50,8,FALSE)) ->  | G46: =IF(ISNA(VLOOKUP(13,'Toimenpiteiden valitseminen'!$B$21:$O$50,9,FALSE)),"",VLOOKUP(13,'Toimenpiteiden valitseminen'!$B$21:$O$50,9,FALSE)) ->  | H46: =IF(ISNA(VLOOKUP(13,'Toimenpiteiden valitseminen'!$B$21:$O$50,10,FALSE)),"",VLOOKUP(13,'Toimenpiteiden valitseminen'!$B$21:$O$50,10,FALSE)) ->  | J46: =IF(ISNA(VLOOKUP(13,'Toimenpiteiden valitseminen'!$B$21:$O$50,11,FALSE)),"",VLOOKUP(13,'Toimenpiteiden valitseminen'!$B$21:$O$50,11,FALSE)) ->  | K46: =IF(ISNA(VLOOKUP(13,'Toimenpiteiden valitseminen'!$B$21:$O$50,12,FALSE)),"",VLOOKUP(13,'Toimenpiteiden valitseminen'!$B$21:$O$50,12,FALSE)) -> 
C47: =IF(ISNA(VLOOKUP(14,'Toimenpiteiden valitseminen'!$B$21:$O$50,1,FALSE)),"",VLOOKUP(14,'Toimenpiteiden valitseminen'!$B$21:$O$50,1,FALSE)) ->  | D47: =IF(ISNA(VLOOKUP(14,'Toimenpiteiden valitseminen'!$B$21:$O$50,13,FALSE)),"",VLOOKUP(14,'Toimenpiteiden valitseminen'!$B$21:$O$50,13,FALSE)) ->  | E47: =IF(ISNA(VLOOKUP(14,'Toimenpiteiden valitseminen'!$B$21:$O$50,6,FALSE)),"",VLOOKUP(14,'Toimenpiteiden valitseminen'!$B$21:$O$50,6,FALSE)) ->  | F47: =IF(ISNA(VLOOKUP(14,'Toimenpiteiden valitseminen'!$B$21:$O$50,8,FALSE)),"",VLOOKUP(14,'Toimenpiteiden valitseminen'!$B$21:$O$50,8,FALSE)) ->  | G47: =IF(ISNA(VLOOKUP(14,'Toimenpiteiden valitseminen'!$B$21:$O$50,9,FALSE)),"",VLOOKUP(14,'Toimenpiteiden valitseminen'!$B$21:$O$50,9,FALSE)) ->  | H47: =IF(ISNA(VLOOKUP(14,'Toimenpiteiden valitseminen'!$B$21:$O$50,10,FALSE)),"",VLOOKUP(14,'Toimenpiteiden valitseminen'!$B$21:$O$50,10,FALSE)) ->  | J47: =IF(ISNA(VLOOKUP(14,'Toimenpiteiden valitseminen'!$B$21:$O$50,11,FALSE)),"",VLOOKUP(14,'Toimenpiteiden valitseminen'!$B$21:$O$50,11,FALSE)) ->  | K47: =IF(ISNA(VLOOKUP(14,'Toimenpiteiden valitseminen'!$B$21:$O$50,12,FALSE)),"",VLOOKUP(14,'Toimenpiteiden valitseminen'!$B$21:$O$50,12,FALSE)) -> 
C48: =IF(ISNA(VLOOKUP(15,'Toimenpiteiden valitseminen'!$B$21:$O$50,1,FALSE)),"",VLOOKUP(15,'Toimenpiteiden valitseminen'!$B$21:$O$50,1,FALSE)) ->  | D48: =IF(ISNA(VLOOKUP(15,'Toimenpiteiden valitseminen'!$B$21:$O$50,13,FALSE)),"",VLOOKUP(15,'Toimenpiteiden valitseminen'!$B$21:$O$50,13,FALSE)) ->  | E48: =IF(ISNA(VLOOKUP(15,'Toimenpiteiden valitseminen'!$B$21:$O$50,6,FALSE)),"",VLOOKUP(15,'Toimenpiteiden valitseminen'!$B$21:$O$50,6,FALSE)) ->  | F48: =IF(ISNA(VLOOKUP(15,'Toimenpiteiden valitseminen'!$B$21:$O$50,8,FALSE)),"",VLOOKUP(15,'Toimenpiteiden valitseminen'!$B$21:$O$50,8,FALSE)) ->  | G48: =IF(ISNA(VLOOKUP(15,'Toimenpiteiden valitseminen'!$B$21:$O$50,9,FALSE)),"",VLOOKUP(15,'Toimenpiteiden valitseminen'!$B$21:$O$50,9,FALSE)) ->  | H48: =IF(ISNA(VLOOKUP(15,'Toimenpiteiden valitseminen'!$B$21:$O$50,10,FALSE)),"",VLOOKUP(15,'Toimenpiteiden valitseminen'!$B$21:$O$50,10,FALSE)) ->  | J48: =IF(ISNA(VLOOKUP(15,'Toimenpiteiden valitseminen'!$B$21:$O$50,11,FALSE)),"",VLOOKUP(15,'Toimenpiteiden valitseminen'!$B$21:$O$50,11,FALSE)) ->  | K48: =IF(ISNA(VLOOKUP(15,'Toimenpiteiden valitseminen'!$B$21:$O$50,12,FALSE)),"",VLOOKUP(15,'Toimenpiteiden valitseminen'!$B$21:$O$50,12,FALSE)) -> 
C49: =IF(ISNA(VLOOKUP(16,'Toimenpiteiden valitseminen'!$B$21:$O$50,1,FALSE)),"",VLOOKUP(16,'Toimenpiteiden valitseminen'!$B$21:$O$50,1,FALSE)) ->  | D49: =IF(ISNA(VLOOKUP(16,'Toimenpiteiden valitseminen'!$B$21:$O$50,13,FALSE)),"",VLOOKUP(16,'Toimenpiteiden valitseminen'!$B$21:$O$50,13,FALSE)) ->  | E49: =IF(ISNA(VLOOKUP(16,'Toimenpiteiden valitseminen'!$B$21:$O$50,6,FALSE)),"",VLOOKUP(16,'Toimenpiteiden valitseminen'!$B$21:$O$50,6,FALSE)) ->  | F49: =IF(ISNA(VLOOKUP(16,'Toimenpiteiden valitseminen'!$B$21:$O$50,8,FALSE)),"",VLOOKUP(16,'Toimenpiteiden valitseminen'!$B$21:$O$50,8,FALSE)) ->  | G49: =IF(ISNA(VLOOKUP(16,'Toimenpiteiden valitseminen'!$B$21:$O$50,9,FALSE)),"",VLOOKUP(16,'Toimenpiteiden valitseminen'!$B$21:$O$50,9,FALSE)) ->  | H49: =IF(ISNA(VLOOKUP(16,'Toimenpiteiden valitseminen'!$B$21:$O$50,10,FALSE)),"",VLOOKUP(16,'Toimenpiteiden valitseminen'!$B$21:$O$50,10,FALSE)) ->  | J49: =IF(ISNA(VLOOKUP(16,'Toimenpiteiden valitseminen'!$B$21:$O$50,11,FALSE)),"",VLOOKUP(16,'Toimenpiteiden valitseminen'!$B$21:$O$50,11,FALSE)) ->  | K49: =IF(ISNA(VLOOKUP(16,'Toimenpiteiden valitseminen'!$B$21:$O$50,12,FALSE)),"",VLOOKUP(16,'Toimenpiteiden valitseminen'!$B$21:$O$50,12,FALSE)) -> 
C50: =IF(ISNA(VLOOKUP(17,'Toimenpiteiden valitseminen'!$B$21:$O$50,1,FALSE)),"",VLOOKUP(17,'Toimenpiteiden valitseminen'!$B$21:$O$50,1,FALSE)) ->  | D50: =IF(ISNA(VLOOKUP(17,'Toimenpiteiden valitseminen'!$B$21:$O$50,13,FALSE)),"",VLOOKUP(17,'Toimenpiteiden valitseminen'!$B$21:$O$50,13,FALSE)) ->  | E50: =IF(ISNA(VLOOKUP(17,'Toimenpiteiden valitseminen'!$B$21:$O$50,6,FALSE)),"",VLOOKUP(17,'Toimenpiteiden valitseminen'!$B$21:$O$50,6,FALSE)) ->  | F50: =IF(ISNA(VLOOKUP(17,'Toimenpiteiden valitseminen'!$B$21:$O$50,8,FALSE)),"",VLOOKUP(17,'Toimenpiteiden valitseminen'!$B$21:$O$50,8,FALSE)) ->  | G50: =IF(ISNA(VLOOKUP(17,'Toimenpiteiden valitseminen'!$B$21:$O$50,9,FALSE)),"",VLOOKUP(17,'Toimenpiteiden valitseminen'!$B$21:$O$50,9,FALSE)) ->  | H50: =IF(ISNA(VLOOKUP(17,'Toimenpiteiden valitseminen'!$B$21:$O$50,10,FALSE)),"",VLOOKUP(17,'Toimenpiteiden valitseminen'!$B$21:$O$50,10,FALSE)) ->  | J50: =IF(ISNA(VLOOKUP(17,'Toimenpiteiden valitseminen'!$B$21:$O$50,11,FALSE)),"",VLOOKUP(17,'Toimenpiteiden valitseminen'!$B$21:$O$50,11,FALSE)) ->  | K50: =IF(ISNA(VLOOKUP(17,'Toimenpiteiden valitseminen'!$B$21:$O$50,12,FALSE)),"",VLOOKUP(17,'Toimenpiteiden valitseminen'!$B$21:$O$50,12,FALSE)) -> 
C53: VALINTAJÄRJESTYS JÄRJESTETTYNÄ TAKAISINMAKSUKERTOJEN MUKAAN
C55: VALINTA- JÄRJESTYS | D55: TAKAISIN- MAKSU- KERRAT PITOAIKANA | E55: TOIMENPITEEN TUNNUS | F55: KUSTANNUSTEN MUUTOS [€] | G55: LÄMMITYSENERGIAN KULUTUKSEN MUUTOS [MWh/a] | H55: SÄHKÖENERGIAN KULUTUKSEN MUUTOS [MWh/a] | I55: VUOSITTAINEN KOKONAIS- ENERGIANSÄÄSTÖ [MWh/a] | J55: KUSTANNUSTEN VUOSIMUUTOS [€/a] | K55: PITOAIKA [a] | L55: KUSTANNUS / ENERGIANSÄÄSTÖ [€/(kWh/a)]
C56: =IF(ISNA(VLOOKUP(1,'Toimenpiteiden valitseminen'!$C$21:$O$50,1,FALSE)),"",VLOOKUP(1,'Toimenpiteiden valitseminen'!$C$21:$O$50,1,FALSE)) -> 1 | D56: =IF(ISNA(VLOOKUP(1,'Toimenpiteiden valitseminen'!$C$21:$O$50,13,FALSE)),"",VLOOKUP(1,'Toimenpiteiden valitseminen'!$C$21:$O$50,13,FALSE)) -> 6.210894369 | E56: =IF(ISNA(VLOOKUP(1,'Toimenpiteiden valitseminen'!$C$21:$O$50,5,FALSE)),"",VLOOKUP(1,'Toimenpiteiden valitseminen'!$C$21:$O$50,5,FALSE)) -> IKK2 | F56: =IF(ISNA(VLOOKUP(1,'Toimenpiteiden valitseminen'!$C$21:$O$50,7,FALSE)),"",VLOOKUP(1,'Toimenpiteiden valitseminen'!$C$21:$O$50,7,FALSE)) -> 10868 | G56: =IF(ISNA(VLOOKUP(1,'Toimenpiteiden valitseminen'!$C$21:$O$50,8,FALSE)),"",VLOOKUP(1,'Toimenpiteiden valitseminen'!$C$21:$O$50,8,FALSE)) -> -45 | H56: =IF(ISNA(VLOOKUP(1,'Toimenpiteiden valitseminen'!$C$21:$O$50,9,FALSE)),"",VLOOKUP(1,'Toimenpiteiden valitseminen'!$C$21:$O$50,9,FALSE)) -> 0 | I56: =IF(AND(G56="",H56=""),"",-(G56+H56)) -> 45 | J56: =IF(ISNA(VLOOKUP(1,'Toimenpiteiden valitseminen'!$C$21:$O$50,10,FALSE)),"",VLOOKUP(1,'Toimenpiteiden valitseminen'!$C$21:$O$50,10,FALSE)) -> -2250 | K56: =IF(ISNA(VLOOKUP(1,'Toimenpiteiden valitseminen'!$C$21:$O$50,11,FALSE)),"",VLOOKUP(1,'Toimenpiteiden valitseminen'!$C$21:$O$50,11,FALSE)) -> 30 | L56: =IF(AND(G56="",H56=""),"",F56/(1000*I56)) -> 0.2415111111
C57: =IF(ISNA(VLOOKUP(2,'Toimenpiteiden valitseminen'!$C$21:$O$50,1,FALSE)),"",VLOOKUP(2,'Toimenpiteiden valitseminen'!$C$21:$O$50,1,FALSE)) -> 2 | D57: =IF(ISNA(VLOOKUP(2,'Toimenpiteiden valitseminen'!$C$21:$O$50,13,FALSE)),"",VLOOKUP(2,'Toimenpiteiden valitseminen'!$C$21:$O$50,13,FALSE)) -> 5.502392344 | E57: =IF(ISNA(VLOOKUP(2,'Toimenpiteiden valitseminen'!$C$21:$O$50,5,FALSE)),"",VLOOKUP(2,'Toimenpiteiden valitseminen'!$C$21:$O$50,5,FALSE)) -> IKK1 | F57: =IF(ISNA(VLOOKUP(2,'Toimenpiteiden valitseminen'!$C$21:$O$50,7,FALSE)),"",VLOOKUP(2,'Toimenpiteiden valitseminen'!$C$21:$O$50,7,FALSE)) -> 12540 | G57: =IF(ISNA(VLOOKUP(2,'Toimenpiteiden valitseminen'!$C$21:$O$50,8,FALSE)),"",VLOOKUP(2,'Toimenpiteiden valitseminen'!$C$21:$O$50,8,FALSE)) -> -46 | H57: =IF(ISNA(VLOOKUP(2,'Toimenpiteiden valitseminen'!$C$21:$O$50,9,FALSE)),"",VLOOKUP(2,'Toimenpiteiden valitseminen'!$C$21:$O$50,9,FALSE)) -> 0 | I57: =IF(AND(G57="",H57=""),"",-(G57+H57)) -> 46 | J57: =IF(ISNA(VLOOKUP(2,'Toimenpiteiden valitseminen'!$C$21:$O$50,10,FALSE)),"",VLOOKUP(2,'Toimenpiteiden valitseminen'!$C$21:$O$50,10,FALSE)) -> -2300 | K57: =IF(ISNA(VLOOKUP(2,'Toimenpiteiden valitseminen'!$C$21:$O$50,11,FALSE)),"",VLOOKUP(2,'Toimenpiteiden valitseminen'!$C$21:$O$50,11,FALSE)) -> 30 | L57: =IF(AND(G57="",H57=""),"",F57/(1000*I57)) -> 0.2726086957
C58: =IF(ISNA(VLOOKUP(3,'Toimenpiteiden valitseminen'!$C$21:$O$50,1,FALSE)),"",VLOOKUP(3,'Toimenpiteiden valitseminen'!$C$21:$O$50,1,FALSE)) -> 3 | D58: =IF(ISNA(VLOOKUP(3,'Toimenpiteiden valitseminen'!$C$21:$O$50,13,FALSE)),"",VLOOKUP(3,'Toimenpiteiden valitseminen'!$C$21:$O$50,13,FALSE)) -> 4.566210046 | E58: =IF(ISNA(VLOOKUP(3,'Toimenpiteiden valitseminen'!$C$21:$O$50,5,FALSE)),"",VLOOKUP(3,'Toimenpiteiden valitseminen'!$C$21:$O$50,5,FALSE)) -> YP1 | F58: =IF(ISNA(VLOOKUP(3,'Toimenpiteiden valitseminen'!$C$21:$O$50,7,FALSE)),"",VLOOKUP(3,'Toimenpiteiden valitseminen'!$C$21:$O$50,7,FALSE)) -> 2628 | G58: =IF(ISNA(VLOOKUP(3,'Toimenpiteiden valitseminen'!$C$21:$O$50,8,FALSE)),"",VLOOKUP(3,'Toimenpiteiden valitseminen'!$C$21:$O$50,8,FALSE)) -> -6 | H58: =IF(ISNA(VLOOKUP(3,'Toimenpiteiden valitseminen'!$C$21:$O$50,9,FALSE)),"",VLOOKUP(3,'Toimenpiteiden valitseminen'!$C$21:$O$50,9,FALSE)) -> 0 | I58: =IF(AND(G58="",H58=""),"",-(G58+H58)) -> 6 | J58: =IF(ISNA(VLOOKUP(3,'Toimenpiteiden valitseminen'!$C$21:$O$50,10,FALSE)),"",VLOOKUP(3,'Toimenpiteiden valitseminen'!$C$21:$O$50,10,FALSE)) -> -300 | K58: =IF(ISNA(VLOOKUP(3,'Toimenpiteiden valitseminen'!$C$21:$O$50,11,FALSE)),"",VLOOKUP(3,'Toimenpiteiden valitseminen'!$C$21:$O$50,11,FALSE)) -> 40 | L58: 0.438
C59: =IF(ISNA(VLOOKUP(4,'Toimenpiteiden valitseminen'!$C$21:$O$50,1,FALSE)),"",VLOOKUP(4,'Toimenpiteiden valitseminen'!$C$21:$O$50,1,FALSE)) -> 4 | D59: =IF(ISNA(VLOOKUP(4,'Toimenpiteiden valitseminen'!$C$21:$O$50,13,FALSE)),"",VLOOKUP(4,'Toimenpiteiden valitseminen'!$C$21:$O$50,13,FALSE)) -> 3.624038462 | E59: =IF(ISNA(VLOOKUP(4,'Toimenpiteiden valitseminen'!$C$21:$O$50,5,FALSE)),"",VLOOKUP(4,'Toimenpiteiden valitseminen'!$C$21:$O$50,5,FALSE)) -> VKM | F59: =IF(ISNA(VLOOKUP(4,'Toimenpiteiden valitseminen'!$C$21:$O$50,7,FALSE)),"",VLOOKUP(4,'Toimenpiteiden valitseminen'!$C$21:$O$50,7,FALSE)) -> 46800 | G59: =IF(ISNA(VLOOKUP(4,'Toimenpiteiden valitseminen'!$C$21:$O$50,8,FALSE)),"",VLOOKUP(4,'Toimenpiteiden valitseminen'!$C$21:$O$50,8,FALSE)) -> -29 | H59: =IF(ISNA(VLOOKUP(4,'Toimenpiteiden valitseminen'!$C$21:$O$50,9,FALSE)),"",VLOOKUP(4,'Toimenpiteiden valitseminen'!$C$21:$O$50,9,FALSE)) -> 0 | I59: 29 | J59: =IF(ISNA(VLOOKUP(4,'Toimenpiteiden valitseminen'!$C$21:$O$50,10,FALSE)),"",VLOOKUP(4,'Toimenpiteiden valitseminen'!$C$21:$O$50,10,FALSE)) -> -11307 | K59: =IF(ISNA(VLOOKUP(4,'Toimenpiteiden valitseminen'!$C$21:$O$50,11,FALSE)),"",VLOOKUP(4,'Toimenpiteiden valitseminen'!$C$21:$O$50,11,FALSE)) -> 15 | L59: 1.613793103
C60: =IF(ISNA(VLOOKUP(5,'Toimenpiteiden valitseminen'!$C$21:$O$50,1,FALSE)),"",VLOOKUP(5,'Toimenpiteiden valitseminen'!$C$21:$O$50,1,FALSE)) -> 5 | D60: =IF(ISNA(VLOOKUP(5,'Toimenpiteiden valitseminen'!$C$21:$O$50,13,FALSE)),"",VLOOKUP(5,'Toimenpiteiden valitseminen'!$C$21:$O$50,13,FALSE)) -> 3.529411765 | E60: =IF(ISNA(VLOOKUP(5,'Toimenpiteiden valitseminen'!$C$21:$O$50,5,FALSE)),"",VLOOKUP(5,'Toimenpiteiden valitseminen'!$C$21:$O$50,5,FALSE)) -> US1 | F60: =IF(ISNA(VLOOKUP(5,'Toimenpiteiden valitseminen'!$C$21:$O$50,7,FALSE)),"",VLOOKUP(5,'Toimenpiteiden valitseminen'!$C$21:$O$50,7,FALSE)) -> 5100 | G60: =IF(ISNA(VLOOKUP(5,'Toimenpiteiden valitseminen'!$C$21:$O$50,8,FALSE)),"",VLOOKUP(5,'Toimenpiteiden valitseminen'!$C$21:$O$50,8,FALSE)) -> -9 | H60: =IF(ISNA(VLOOKUP(5,'Toimenpiteiden valitseminen'!$C$21:$O$50,9,FALSE)),"",VLOOKUP(5,'Toimenpiteiden valitseminen'!$C$21:$O$50,9,FALSE)) -> 0 | I60: 9 | J60: =IF(ISNA(VLOOKUP(5,'Toimenpiteiden valitseminen'!$C$21:$O$50,10,FALSE)),"",VLOOKUP(5,'Toimenpiteiden valitseminen'!$C$21:$O$50,10,FALSE)) -> -450 | K60: =IF(ISNA(VLOOKUP(5,'Toimenpiteiden valitseminen'!$C$21:$O$50,11,FALSE)),"",VLOOKUP(5,'Toimenpiteiden valitseminen'!$C$21:$O$50,11,FALSE)) -> 40 | L60: 0.5666666667
C61: =IF(ISNA(VLOOKUP(6,'Toimenpiteiden valitseminen'!$C$21:$O$50,1,FALSE)),"",VLOOKUP(6,'Toimenpiteiden valitseminen'!$C$21:$O$50,1,FALSE)) -> 6 | D61: =IF(ISNA(VLOOKUP(6,'Toimenpiteiden valitseminen'!$C$21:$O$50,13,FALSE)),"",VLOOKUP(6,'Toimenpiteiden valitseminen'!$C$21:$O$50,13,FALSE)) -> 3.471428571 | E61: =IF(ISNA(VLOOKUP(6,'Toimenpiteiden valitseminen'!$C$21:$O$50,5,FALSE)),"",VLOOKUP(6,'Toimenpiteiden valitseminen'!$C$21:$O$50,5,FALSE)) -> IV1 | F61: =IF(ISNA(VLOOKUP(6,'Toimenpiteiden valitseminen'!$C$21:$O$50,7,FALSE)),"",VLOOKUP(6,'Toimenpiteiden valitseminen'!$C$21:$O$50,7,FALSE)) -> 78400 | G61: =IF(ISNA(VLOOKUP(6,'Toimenpiteiden valitseminen'!$C$21:$O$50,8,FALSE)),"",VLOOKUP(6,'Toimenpiteiden valitseminen'!$C$21:$O$50,8,FALSE)) -> -259 | H61: =IF(ISNA(VLOOKUP(6,'Toimenpiteiden valitseminen'!$C$21:$O$50,9,FALSE)),"",VLOOKUP(6,'Toimenpiteiden valitseminen'!$C$21:$O$50,9,FALSE)) -> 38.6 | I61: 220.4 | J61: =IF(ISNA(VLOOKUP(6,'Toimenpiteiden valitseminen'!$C$21:$O$50,10,FALSE)),"",VLOOKUP(6,'Toimenpiteiden valitseminen'!$C$21:$O$50,10,FALSE)) -> -9072 | K61: =IF(ISNA(VLOOKUP(6,'Toimenpiteiden valitseminen'!$C$21:$O$50,11,FALSE)),"",VLOOKUP(6,'Toimenpiteiden valitseminen'!$C$21:$O$50,11,FALSE)) -> 30 | L61: 0.3557168784
C62: =IF(ISNA(VLOOKUP(7,'Toimenpiteiden valitseminen'!$C$21:$O$50,1,FALSE)),"",VLOOKUP(7,'Toimenpiteiden valitseminen'!$C$21:$O$50,1,FALSE)) -> 7 | D62: =IF(ISNA(VLOOKUP(7,'Toimenpiteiden valitseminen'!$C$21:$O$50,13,FALSE)),"",VLOOKUP(7,'Toimenpiteiden valitseminen'!$C$21:$O$50,13,FALSE)) -> 2.537142857 | E62: =IF(ISNA(VLOOKUP(7,'Toimenpiteiden valitseminen'!$C$21:$O$50,5,FALSE)),"",VLOOKUP(7,'Toimenpiteiden valitseminen'!$C$21:$O$50,5,FALSE)) -> IV2 | F62: =IF(ISNA(VLOOKUP(7,'Toimenpiteiden valitseminen'!$C$21:$O$50,7,FALSE)),"",VLOOKUP(7,'Toimenpiteiden valitseminen'!$C$21:$O$50,7,FALSE)) -> 98000 | G62: =IF(ISNA(VLOOKUP(7,'Toimenpiteiden valitseminen'!$C$21:$O$50,8,FALSE)),"",VLOOKUP(7,'Toimenpiteiden valitseminen'!$C$21:$O$50,8,FALSE)) -> -259 | H62: =IF(ISNA(VLOOKUP(7,'Toimenpiteiden valitseminen'!$C$21:$O$50,9,FALSE)),"",VLOOKUP(7,'Toimenpiteiden valitseminen'!$C$21:$O$50,9,FALSE)) -> 38.6 | I62: 220.4 | J62: =IF(ISNA(VLOOKUP(7,'Toimenpiteiden valitseminen'!$C$21:$O$50,10,FALSE)),"",VLOOKUP(7,'Toimenpiteiden valitseminen'!$C$21:$O$50,10,FALSE)) -> -8288 | K62: =IF(ISNA(VLOOKUP(7,'Toimenpiteiden valitseminen'!$C$21:$O$50,11,FALSE)),"",VLOOKUP(7,'Toimenpiteiden valitseminen'!$C$21:$O$50,11,FALSE)) -> 30 | L62: 0.444646098
C63: =IF(ISNA(VLOOKUP(8,'Toimenpiteiden valitseminen'!$C$21:$O$50,1,FALSE)),"",VLOOKUP(8,'Toimenpiteiden valitseminen'!$C$21:$O$50,1,FALSE)) -> 8 | D63: =IF(ISNA(VLOOKUP(8,'Toimenpiteiden valitseminen'!$C$21:$O$50,13,FALSE)),"",VLOOKUP(8,'Toimenpiteiden valitseminen'!$C$21:$O$50,13,FALSE)) -> 1.479289941 | E63: =IF(ISNA(VLOOKUP(8,'Toimenpiteiden valitseminen'!$C$21:$O$50,5,FALSE)),"",VLOOKUP(8,'Toimenpiteiden valitseminen'!$C$21:$O$50,5,FALSE)) -> YP2 | F63: =IF(ISNA(VLOOKUP(8,'Toimenpiteiden valitseminen'!$C$21:$O$50,7,FALSE)),"",VLOOKUP(8,'Toimenpiteiden valitseminen'!$C$21:$O$50,7,FALSE)) -> 5408 | G63: =IF(ISNA(VLOOKUP(8,'Toimenpiteiden valitseminen'!$C$21:$O$50,8,FALSE)),"",VLOOKUP(8,'Toimenpiteiden valitseminen'!$C$21:$O$50,8,FALSE)) -> -4 | H63: =IF(ISNA(VLOOKUP(8,'Toimenpiteiden valitseminen'!$C$21:$O$50,9,FALSE)),"",VLOOKUP(8,'Toimenpiteiden valitseminen'!$C$21:$O$50,9,FALSE)) -> 0 | I63: 4 | J63: =IF(ISNA(VLOOKUP(8,'Toimenpiteiden valitseminen'!$C$21:$O$50,10,FALSE)),"",VLOOKUP(8,'Toimenpiteiden valitseminen'!$C$21:$O$50,10,FALSE)) -> -200 | K63: =IF(ISNA(VLOOKUP(8,'Toimenpiteiden valitseminen'!$C$21:$O$50,11,FALSE)),"",VLOOKUP(8,'Toimenpiteiden valitseminen'!$C$21:$O$50,11,FALSE)) -> 40 | L63: 1.352
C64: =IF(ISNA(VLOOKUP(9,'Toimenpiteiden valitseminen'!$C$21:$O$50,1,FALSE)),"",VLOOKUP(9,'Toimenpiteiden valitseminen'!$C$21:$O$50,1,FALSE)) -> 9 | D64: =IF(ISNA(VLOOKUP(9,'Toimenpiteiden valitseminen'!$C$21:$O$50,13,FALSE)),"",VLOOKUP(9,'Toimenpiteiden valitseminen'!$C$21:$O$50,13,FALSE)) -> 0.6981519507 | E64: =IF(ISNA(VLOOKUP(9,'Toimenpiteiden valitseminen'!$C$21:$O$50,5,FALSE)),"",VLOOKUP(9,'Toimenpiteiden valitseminen'!$C$21:$O$50,5,FALSE)) -> US2 | F64: =IF(ISNA(VLOOKUP(9,'Toimenpiteiden valitseminen'!$C$21:$O$50,7,FALSE)),"",VLOOKUP(9,'Toimenpiteiden valitseminen'!$C$21:$O$50,7,FALSE)) -> 48700 | G64: =IF(ISNA(VLOOKUP(9,'Toimenpiteiden valitseminen'!$C$21:$O$50,8,FALSE)),"",VLOOKUP(9,'Toimenpiteiden valitseminen'!$C$21:$O$50,8,FALSE)) -> -17 | H64: =IF(ISNA(VLOOKUP(9,'Toimenpiteiden valitseminen'!$C$21:$O$50,9,FALSE)),"",VLOOKUP(9,'Toimenpiteiden valitseminen'!$C$21:$O$50,9,FALSE)) -> 0 | I64: 17 | J64: =IF(ISNA(VLOOKUP(9,'Toimenpiteiden valitseminen'!$C$21:$O$50,10,FALSE)),"",VLOOKUP(9,'Toimenpiteiden valitseminen'!$C$21:$O$50,10,FALSE)) -> -850 | K64: =IF(ISNA(VLOOKUP(9,'Toimenpiteiden valitseminen'!$C$21:$O$50,11,FALSE)),"",VLOOKUP(9,'Toimenpiteiden valitseminen'!$C$21:$O$50,11,FALSE)) -> 40 | L64: 2.864705882
C65: =IF(ISNA(VLOOKUP(10,'Toimenpiteiden valitseminen'!$C$21:$O$50,1,FALSE)),"",VLOOKUP(10,'Toimenpiteiden valitseminen'!$C$21:$O$50,1,FALSE)) ->  | D65: =IF(ISNA(VLOOKUP(10,'Toimenpiteiden valitseminen'!$C$21:$O$50,13,FALSE)),"",VLOOKUP(10,'Toimenpiteiden valitseminen'!$C$21:$O$50,13,FALSE)) ->  | E65: =IF(ISNA(VLOOKUP(10,'Toimenpiteiden valitseminen'!$C$21:$O$50,5,FALSE)),"",VLOOKUP(10,'Toimenpiteiden valitseminen'!$C$21:$O$50,5,FALSE)) ->  | F65: =IF(ISNA(VLOOKUP(10,'Toimenpiteiden valitseminen'!$C$21:$O$50,7,FALSE)),"",VLOOKUP(10,'Toimenpiteiden valitseminen'!$C$21:$O$50,7,FALSE)) ->  | G65: =IF(ISNA(VLOOKUP(10,'Toimenpiteiden valitseminen'!$C$21:$O$50,8,FALSE)),"",VLOOKUP(10,'Toimenpiteiden valitseminen'!$C$21:$O$50,8,FALSE)) ->  | H65: =IF(ISNA(VLOOKUP(10,'Toimenpiteiden valitseminen'!$C$21:$O$50,9,FALSE)),"",VLOOKUP(10,'Toimenpiteiden valitseminen'!$C$21:$O$50,9,FALSE)) ->  | J65: =IF(ISNA(VLOOKUP(10,'Toimenpiteiden valitseminen'!$C$21:$O$50,10,FALSE)),"",VLOOKUP(10,'Toimenpiteiden valitseminen'!$C$21:$O$50,10,FALSE)) ->  | K65: =IF(ISNA(VLOOKUP(10,'Toimenpiteiden valitseminen'!$C$21:$O$50,11,FALSE)),"",VLOOKUP(10,'Toimenpiteiden valitseminen'!$C$21:$O$50,11,FALSE)) -> 
C66: =IF(ISNA(VLOOKUP(11,'Toimenpiteiden valitseminen'!$C$21:$O$50,1,FALSE)),"",VLOOKUP(11,'Toimenpiteiden valitseminen'!$C$21:$O$50,1,FALSE)) ->  | D66: =IF(ISNA(VLOOKUP(11,'Toimenpiteiden valitseminen'!$C$21:$O$50,13,FALSE)),"",VLOOKUP(11,'Toimenpiteiden valitseminen'!$C$21:$O$50,13,FALSE)) ->  | E66: =IF(ISNA(VLOOKUP(11,'Toimenpiteiden valitseminen'!$C$21:$O$50,5,FALSE)),"",VLOOKUP(11,'Toimenpiteiden valitseminen'!$C$21:$O$50,5,FALSE)) ->  | F66: =IF(ISNA(VLOOKUP(11,'Toimenpiteiden valitseminen'!$C$21:$O$50,7,FALSE)),"",VLOOKUP(11,'Toimenpiteiden valitseminen'!$C$21:$O$50,7,FALSE)) ->  | G66: =IF(ISNA(VLOOKUP(11,'Toimenpiteiden valitseminen'!$C$21:$O$50,8,FALSE)),"",VLOOKUP(11,'Toimenpiteiden valitseminen'!$C$21:$O$50,8,FALSE)) ->  | H66: =IF(ISNA(VLOOKUP(11,'Toimenpiteiden valitseminen'!$C$21:$O$50,9,FALSE)),"",VLOOKUP(11,'Toimenpiteiden valitseminen'!$C$21:$O$50,9,FALSE)) ->  | J66: =IF(ISNA(VLOOKUP(11,'Toimenpiteiden valitseminen'!$C$21:$O$50,10,FALSE)),"",VLOOKUP(11,'Toimenpiteiden valitseminen'!$C$21:$O$50,10,FALSE)) ->  | K66: =IF(ISNA(VLOOKUP(11,'Toimenpiteiden valitseminen'!$C$21:$O$50,11,FALSE)),"",VLOOKUP(11,'Toimenpiteiden valitseminen'!$C$21:$O$50,11,FALSE)) -> 
C67: =IF(ISNA(VLOOKUP(12,'Toimenpiteiden valitseminen'!$C$21:$O$50,1,FALSE)),"",VLOOKUP(12,'Toimenpiteiden valitseminen'!$C$21:$O$50,1,FALSE)) ->  | D67: =IF(ISNA(VLOOKUP(12,'Toimenpiteiden valitseminen'!$C$21:$O$50,13,FALSE)),"",VLOOKUP(12,'Toimenpiteiden valitseminen'!$C$21:$O$50,13,FALSE)) ->  | E67: =IF(ISNA(VLOOKUP(12,'Toimenpiteiden valitseminen'!$C$21:$O$50,5,FALSE)),"",VLOOKUP(12,'Toimenpiteiden valitseminen'!$C$21:$O$50,5,FALSE)) ->  | F67: =IF(ISNA(VLOOKUP(12,'Toimenpiteiden valitseminen'!$C$21:$O$50,7,FALSE)),"",VLOOKUP(12,'Toimenpiteiden valitseminen'!$C$21:$O$50,7,FALSE)) ->  | G67: =IF(ISNA(VLOOKUP(12,'Toimenpiteiden valitseminen'!$C$21:$O$50,8,FALSE)),"",VLOOKUP(12,'Toimenpiteiden valitseminen'!$C$21:$O$50,8,FALSE)) ->  | H67: =IF(ISNA(VLOOKUP(12,'Toimenpiteiden valitseminen'!$C$21:$O$50,9,FALSE)),"",VLOOKUP(12,'Toimenpiteiden valitseminen'!$C$21:$O$50,9,FALSE)) ->  | J67: =IF(ISNA(VLOOKUP(12,'Toimenpiteiden valitseminen'!$C$21:$O$50,10,FALSE)),"",VLOOKUP(12,'Toimenpiteiden valitseminen'!$C$21:$O$50,10,FALSE)) ->  | K67: =IF(ISNA(VLOOKUP(12,'Toimenpiteiden valitseminen'!$C$21:$O$50,11,FALSE)),"",VLOOKUP(12,'Toimenpiteiden valitseminen'!$C$21:$O$50,11,FALSE)) -> 
C68: =IF(ISNA(VLOOKUP(13,'Toimenpiteiden valitseminen'!$C$21:$O$50,1,FALSE)),"",VLOOKUP(13,'Toimenpiteiden valitseminen'!$C$21:$O$50,1,FALSE)) ->  | D68: =IF(ISNA(VLOOKUP(13,'Toimenpiteiden valitseminen'!$C$21:$O$50,13,FALSE)),"",VLOOKUP(13,'Toimenpiteiden valitseminen'!$C$21:$O$50,13,FALSE)) ->  | E68: =IF(ISNA(VLOOKUP(13,'Toimenpiteiden valitseminen'!$C$21:$O$50,5,FALSE)),"",VLOOKUP(13,'Toimenpiteiden valitseminen'!$C$21:$O$50,5,FALSE)) ->  | F68: =IF(ISNA(VLOOKUP(13,'Toimenpiteiden valitseminen'!$C$21:$O$50,7,FALSE)),"",VLOOKUP(13,'Toimenpiteiden valitseminen'!$C$21:$O$50,7,FALSE)) ->  | G68: =IF(ISNA(VLOOKUP(13,'Toimenpiteiden valitseminen'!$C$21:$O$50,8,FALSE)),"",VLOOKUP(13,'Toimenpiteiden valitseminen'!$C$21:$O$50,8,FALSE)) ->  | H68: =IF(ISNA(VLOOKUP(13,'Toimenpiteiden valitseminen'!$C$21:$O$50,9,FALSE)),"",VLOOKUP(13,'Toimenpiteiden valitseminen'!$C$21:$O$50,9,FALSE)) ->  | J68: =IF(ISNA(VLOOKUP(13,'Toimenpiteiden valitseminen'!$C$21:$O$50,10,FALSE)),"",VLOOKUP(13,'Toimenpiteiden valitseminen'!$C$21:$O$50,10,FALSE)) ->  | K68: =IF(ISNA(VLOOKUP(13,'Toimenpiteiden valitseminen'!$C$21:$O$50,11,FALSE)),"",VLOOKUP(13,'Toimenpiteiden valitseminen'!$C$21:$O$50,11,FALSE)) -> 
C69: =IF(ISNA(VLOOKUP(14,'Toimenpiteiden valitseminen'!$C$21:$O$50,1,FALSE)),"",VLOOKUP(14,'Toimenpiteiden valitseminen'!$C$21:$O$50,1,FALSE)) ->  | D69: =IF(ISNA(VLOOKUP(14,'Toimenpiteiden valitseminen'!$C$21:$O$50,13,FALSE)),"",VLOOKUP(14,'Toimenpiteiden valitseminen'!$C$21:$O$50,13,FALSE)) ->  | E69: =IF(ISNA(VLOOKUP(14,'Toimenpiteiden valitseminen'!$C$21:$O$50,5,FALSE)),"",VLOOKUP(14,'Toimenpiteiden valitseminen'!$C$21:$O$50,5,FALSE)) ->  | F69: =IF(ISNA(VLOOKUP(14,'Toimenpiteiden valitseminen'!$C$21:$O$50,7,FALSE)),"",VLOOKUP(14,'Toimenpiteiden valitseminen'!$C$21:$O$50,7,FALSE)) ->  | G69: =IF(ISNA(VLOOKUP(14,'Toimenpiteiden valitseminen'!$C$21:$O$50,8,FALSE)),"",VLOOKUP(14,'Toimenpiteiden valitseminen'!$C$21:$O$50,8,FALSE)) ->  | H69: =IF(ISNA(VLOOKUP(14,'Toimenpiteiden valitseminen'!$C$21:$O$50,9,FALSE)),"",VLOOKUP(14,'Toimenpiteiden valitseminen'!$C$21:$O$50,9,FALSE)) ->  | J69: =IF(ISNA(VLOOKUP(14,'Toimenpiteiden valitseminen'!$C$21:$O$50,10,FALSE)),"",VLOOKUP(14,'Toimenpiteiden valitseminen'!$C$21:$O$50,10,FALSE)) ->  | K69: =IF(ISNA(VLOOKUP(14,'Toimenpiteiden valitseminen'!$C$21:$O$50,11,FALSE)),"",VLOOKUP(14,'Toimenpiteiden valitseminen'!$C$21:$O$50,11,FALSE)) -> 
C70: =IF(ISNA(VLOOKUP(15,'Toimenpiteiden valitseminen'!$C$21:$O$50,1,FALSE)),"",VLOOKUP(15,'Toimenpiteiden valitseminen'!$C$21:$O$50,1,FALSE)) ->  | D70: =IF(ISNA(VLOOKUP(15,'Toimenpiteiden valitseminen'!$C$21:$O$50,13,FALSE)),"",VLOOKUP(15,'Toimenpiteiden valitseminen'!$C$21:$O$50,13,FALSE)) ->  | E70: =IF(ISNA(VLOOKUP(15,'Toimenpiteiden valitseminen'!$C$21:$O$50,5,FALSE)),"",VLOOKUP(15,'Toimenpiteiden valitseminen'!$C$21:$O$50,5,FALSE)) ->  | F70: =IF(ISNA(VLOOKUP(15,'Toimenpiteiden valitseminen'!$C$21:$O$50,7,FALSE)),"",VLOOKUP(15,'Toimenpiteiden valitseminen'!$C$21:$O$50,7,FALSE)) ->  | G70: =IF(ISNA(VLOOKUP(15,'Toimenpiteiden valitseminen'!$C$21:$O$50,8,FALSE)),"",VLOOKUP(15,'Toimenpiteiden valitseminen'!$C$21:$O$50,8,FALSE)) ->  | H70: =IF(ISNA(VLOOKUP(15,'Toimenpiteiden valitseminen'!$C$21:$O$50,9,FALSE)),"",VLOOKUP(15,'Toimenpiteiden valitseminen'!$C$21:$O$50,9,FALSE)) ->  | J70: =IF(ISNA(VLOOKUP(15,'Toimenpiteiden valitseminen'!$C$21:$O$50,10,FALSE)),"",VLOOKUP(15,'Toimenpiteiden valitseminen'!$C$21:$O$50,10,FALSE)) ->  | K70: =IF(ISNA(VLOOKUP(15,'Toimenpiteiden valitseminen'!$C$21:$O$50,11,FALSE)),"",VLOOKUP(15,'Toimenpiteiden valitseminen'!$C$21:$O$50,11,FALSE)) -> 
C71: =IF(ISNA(VLOOKUP(16,'Toimenpiteiden valitseminen'!$C$21:$O$50,1,FALSE)),"",VLOOKUP(16,'Toimenpiteiden valitseminen'!$C$21:$O$50,1,FALSE)) ->  | D71: =IF(ISNA(VLOOKUP(16,'Toimenpiteiden valitseminen'!$C$21:$O$50,13,FALSE)),"",VLOOKUP(16,'Toimenpiteiden valitseminen'!$C$21:$O$50,13,FALSE)) ->  | E71: =IF(ISNA(VLOOKUP(16,'Toimenpiteiden valitseminen'!$C$21:$O$50,5,FALSE)),"",VLOOKUP(16,'Toimenpiteiden valitseminen'!$C$21:$O$50,5,FALSE)) ->  | F71: =IF(ISNA(VLOOKUP(16,'Toimenpiteiden valitseminen'!$C$21:$O$50,7,FALSE)),"",VLOOKUP(16,'Toimenpiteiden valitseminen'!$C$21:$O$50,7,FALSE)) ->  | G71: =IF(ISNA(VLOOKUP(16,'Toimenpiteiden valitseminen'!$C$21:$O$50,8,FALSE)),"",VLOOKUP(16,'Toimenpiteiden valitseminen'!$C$21:$O$50,8,FALSE)) ->  | H71: =IF(ISNA(VLOOKUP(16,'Toimenpiteiden valitseminen'!$C$21:$O$50,9,FALSE)),"",VLOOKUP(16,'Toimenpiteiden valitseminen'!$C$21:$O$50,9,FALSE)) ->  | J71: =IF(ISNA(VLOOKUP(16,'Toimenpiteiden valitseminen'!$C$21:$O$50,10,FALSE)),"",VLOOKUP(16,'Toimenpiteiden valitseminen'!$C$21:$O$50,10,FALSE)) ->  | K71: =IF(ISNA(VLOOKUP(16,'Toimenpiteiden valitseminen'!$C$21:$O$50,11,FALSE)),"",VLOOKUP(16,'Toimenpiteiden valitseminen'!$C$21:$O$50,11,FALSE)) -> 
C72: =IF(ISNA(VLOOKUP(17,'Toimenpiteiden valitseminen'!$C$21:$O$50,1,FALSE)),"",VLOOKUP(17,'Toimenpiteiden valitseminen'!$C$21:$O$50,1,FALSE)) ->  | D72: =IF(ISNA(VLOOKUP(17,'Toimenpiteiden valitseminen'!$C$21:$O$50,13,FALSE)),"",VLOOKUP(17,'Toimenpiteiden valitseminen'!$C$21:$O$50,13,FALSE)) ->  | E72: =IF(ISNA(VLOOKUP(17,'Toimenpiteiden valitseminen'!$C$21:$O$50,5,FALSE)),"",VLOOKUP(17,'Toimenpiteiden valitseminen'!$C$21:$O$50,5,FALSE)) ->  | F72: =IF(ISNA(VLOOKUP(17,'Toimenpiteiden valitseminen'!$C$21:$O$50,7,FALSE)),"",VLOOKUP(17,'Toimenpiteiden valitseminen'!$C$21:$O$50,7,FALSE)) ->  | G72: =IF(ISNA(VLOOKUP(17,'Toimenpiteiden valitseminen'!$C$21:$O$50,8,FALSE)),"",VLOOKUP(17,'Toimenpiteiden valitseminen'!$C$21:$O$50,8,FALSE)) ->  | H72: =IF(ISNA(VLOOKUP(17,'Toimenpiteiden valitseminen'!$C$21:$O$50,9,FALSE)),"",VLOOKUP(17,'Toimenpiteiden valitseminen'!$C$21:$O$50,9,FALSE)) ->  | J72: =IF(ISNA(VLOOKUP(17,'Toimenpiteiden valitseminen'!$C$21:$O$50,10,FALSE)),"",VLOOKUP(17,'Toimenpiteiden valitseminen'!$C$21:$O$50,10,FALSE)) ->  | K72: =IF(ISNA(VLOOKUP(17,'Toimenpiteiden valitseminen'!$C$21:$O$50,11,FALSE)),"",VLOOKUP(17,'Toimenpiteiden valitseminen'!$C$21:$O$50,11,FALSE)) -> 
C75: VALINTAJÄRJESTYS JÄRJESTETTYNÄ KRITEERIN KUSTANNUS/ENERGIANSÄÄSTÖ MUKAAN
C77: VALINTA- JÄRJESTYS | D77: SISÄINEN KORKO | E77: TOIMENPITEEN TUNNUS | F77: KUSTANNUSTEN MUUTOS [€] | G77: LÄMMITYSENERGIAN KULUTUKSEN MUUTOS [MWh/a] | H77: SÄHKÖENERGIAN KULUTUKSEN MUUTOS [MWh/a] | I77: VUOSITTAINEN KOKONAIS- ENERGIANSÄÄSTÖ [MWh/a] | J77: KUSTANNUSTEN VUOSIMUUTOS [€/a] | K77: PITOAIKA [a] | L77: KUSTANNUS / ENERGIANSÄÄSTÖ [€/(kWh/a)]
C78: =IF(OR(L78="",L78<0),"",RANK(L78,$L$78:$L$94,1)) -> 1 | D78: =IF(ISNA(VLOOKUP(2,'Toimenpiteiden valitseminen'!$D$21:$O$50,3,FALSE)),"",VLOOKUP(2,'Toimenpiteiden valitseminen'!$D$21:$O$50,3,FALSE)) -> 0.2062841464 | E78: =IF(ISNA(VLOOKUP(2,'Toimenpiteiden valitseminen'!$D$21:$O$50,4,FALSE)),"",VLOOKUP(2,'Toimenpiteiden valitseminen'!$D$21:$O$50,4,FALSE)) -> IKK2 | F78: =IF(ISNA(VLOOKUP(2,'Toimenpiteiden valitseminen'!$D$21:$O$50,6,FALSE)),"",VLOOKUP(2,'Toimenpiteiden valitseminen'!$D$21:$O$50,6,FALSE)) -> 10868 | G78: =IF(ISNA(VLOOKUP(2,'Toimenpiteiden valitseminen'!$D$21:$O$50,7,FALSE)),"",VLOOKUP(2,'Toimenpiteiden valitseminen'!$D$21:$O$50,7,FALSE)) -> -45 | H78: =IF(ISNA(VLOOKUP(2,'Toimenpiteiden valitseminen'!$D$21:$O$50,8,FALSE)),"",VLOOKUP(2,'Toimenpiteiden valitseminen'!$D$21:$O$50,8,FALSE)) -> 0 | I78: =IF(AND(G78="",H78=""),"",-(G78+H78)) -> 45 | J78: =IF(ISNA(VLOOKUP(2,'Toimenpiteiden valitseminen'!$D$21:$O$50,9,FALSE)),"",VLOOKUP(2,'Toimenpiteiden valitseminen'!$D$21:$O$50,9,FALSE)) -> -2250 | K78: =IF(ISNA(VLOOKUP(2,'Toimenpiteiden valitseminen'!$D$21:$O$50,10,FALSE)),"",VLOOKUP(2,'Toimenpiteiden valitseminen'!$D$21:$O$50,10,FALSE)) -> 30 | L78: =IF(AND(G78="",H78=""),"",F78/(1000*I78)) -> 0.2415111111
C79: =IF(OR(L79="",L79<0),"",RANK(L79,$L$78:$L$94,1)) -> 2 | D79: =IF(ISNA(VLOOKUP(3,'Toimenpiteiden valitseminen'!$D$21:$O$50,3,FALSE)),"",VLOOKUP(3,'Toimenpiteiden valitseminen'!$D$21:$O$50,3,FALSE)) -> 0.1822034163 | E79: =IF(ISNA(VLOOKUP(3,'Toimenpiteiden valitseminen'!$D$21:$O$50,4,FALSE)),"",VLOOKUP(3,'Toimenpiteiden valitseminen'!$D$21:$O$50,4,FALSE)) -> IKK1 | F79: =IF(ISNA(VLOOKUP(3,'Toimenpiteiden valitseminen'!$D$21:$O$50,6,FALSE)),"",VLOOKUP(3,'Toimenpiteiden valitseminen'!$D$21:$O$50,6,FALSE)) -> 12540 | G79: =IF(ISNA(VLOOKUP(3,'Toimenpiteiden valitseminen'!$D$21:$O$50,7,FALSE)),"",VLOOKUP(3,'Toimenpiteiden valitseminen'!$D$21:$O$50,7,FALSE)) -> -46 | H79: =IF(ISNA(VLOOKUP(3,'Toimenpiteiden valitseminen'!$D$21:$O$50,8,FALSE)),"",VLOOKUP(3,'Toimenpiteiden valitseminen'!$D$21:$O$50,8,FALSE)) -> 0 | I79: =IF(AND(G79="",H79=""),"",-(G79+H79)) -> 46 | J79: =IF(ISNA(VLOOKUP(3,'Toimenpiteiden valitseminen'!$D$21:$O$50,9,FALSE)),"",VLOOKUP(3,'Toimenpiteiden valitseminen'!$D$21:$O$50,9,FALSE)) -> -2300 | K79: =IF(ISNA(VLOOKUP(3,'Toimenpiteiden valitseminen'!$D$21:$O$50,10,FALSE)),"",VLOOKUP(3,'Toimenpiteiden valitseminen'!$D$21:$O$50,10,FALSE)) -> 30 | L79: =IF(AND(G79="",H79=""),"",F79/(1000*I79)) -> 0.2726086957
C80: =IF(OR(L80="",L80<0),"",RANK(L80,$L$78:$L$94,1)) -> 3 | D80: =IF(ISNA(VLOOKUP(5,'Toimenpiteiden valitseminen'!$D$21:$O$50,3,FALSE)),"",VLOOKUP(5,'Toimenpiteiden valitseminen'!$D$21:$O$50,3,FALSE)) -> 0.1107626467 | E80: =IF(ISNA(VLOOKUP(5,'Toimenpiteiden valitseminen'!$D$21:$O$50,4,FALSE)),"",VLOOKUP(5,'Toimenpiteiden valitseminen'!$D$21:$O$50,4,FALSE)) -> IV1 | F80: =IF(ISNA(VLOOKUP(5,'Toimenpiteiden valitseminen'!$D$21:$O$50,6,FALSE)),"",VLOOKUP(5,'Toimenpiteiden valitseminen'!$D$21:$O$50,6,FALSE)) -> 78400 | G80: =IF(ISNA(VLOOKUP(5,'Toimenpiteiden valitseminen'!$D$21:$O$50,7,FALSE)),"",VLOOKUP(5,'Toimenpiteiden valitseminen'!$D$21:$O$50,7,FALSE)) -> -259 | H80: =IF(ISNA(VLOOKUP(5,'Toimenpiteiden valitseminen'!$D$21:$O$50,8,FALSE)),"",VLOOKUP(5,'Toimenpiteiden valitseminen'!$D$21:$O$50,8,FALSE)) -> 38.6 | I80: =IF(AND(G80="",H80=""),"",-(G80+H80)) -> 220.4 | J80: =IF(ISNA(VLOOKUP(5,'Toimenpiteiden valitseminen'!$D$21:$O$50,9,FALSE)),"",VLOOKUP(5,'Toimenpiteiden valitseminen'!$D$21:$O$50,9,FALSE)) -> -9072 | K80: =IF(ISNA(VLOOKUP(5,'Toimenpiteiden valitseminen'!$D$21:$O$50,10,FALSE)),"",VLOOKUP(5,'Toimenpiteiden valitseminen'!$D$21:$O$50,10,FALSE)) -> 30 | L80: =IF(AND(G80="",H80=""),"",F80/(1000*I80)) -> 0.3557168784
C81: =IF(OR(L81="",L81<0),"",RANK(L81,$L$78:$L$94,1)) -> 4 | D81: =IF(ISNA(VLOOKUP(4,'Toimenpiteiden valitseminen'!$D$21:$O$50,3,FALSE)),"",VLOOKUP(4,'Toimenpiteiden valitseminen'!$D$21:$O$50,3,FALSE)) -> 0.1125532469 | E81: =IF(ISNA(VLOOKUP(4,'Toimenpiteiden valitseminen'!$D$21:$O$50,4,FALSE)),"",VLOOKUP(4,'Toimenpiteiden valitseminen'!$D$21:$O$50,4,FALSE)) -> YP1 | F81: =IF(ISNA(VLOOKUP(4,'Toimenpiteiden valitseminen'!$D$21:$O$50,6,FALSE)),"",VLOOKUP(4,'Toimenpiteiden valitseminen'!$D$21:$O$50,6,FALSE)) -> 2628 | G81: =IF(ISNA(VLOOKUP(4,'Toimenpiteiden valitseminen'!$D$21:$O$50,7,FALSE)),"",VLOOKUP(4,'Toimenpiteiden valitseminen'!$D$21:$O$50,7,FALSE)) -> -6 | H81: =IF(ISNA(VLOOKUP(4,'Toimenpiteiden valitseminen'!$D$21:$O$50,8,FALSE)),"",VLOOKUP(4,'Toimenpiteiden valitseminen'!$D$21:$O$50,8,FALSE)) -> 0 | I81: =IF(AND(G81="",H81=""),"",-(G81+H81)) -> 6 | J81: =IF(ISNA(VLOOKUP(4,'Toimenpiteiden valitseminen'!$D$21:$O$50,9,FALSE)),"",VLOOKUP(4,'Toimenpiteiden valitseminen'!$D$21:$O$50,9,FALSE)) -> -300 | K81: =IF(ISNA(VLOOKUP(4,'Toimenpiteiden valitseminen'!$D$21:$O$50,10,FALSE)),"",VLOOKUP(4,'Toimenpiteiden valitseminen'!$D$21:$O$50,10,FALSE)) -> 40 | L81: =IF(AND(G81="",H81=""),"",F81/(1000*I81)) -> 0.438
C82: =IF(OR(L82="",L82<0),"",RANK(L82,$L$78:$L$94,1)) -> 5 | D82: =IF(ISNA(VLOOKUP(7,'Toimenpiteiden valitseminen'!$D$21:$O$50,3,FALSE)),"",VLOOKUP(7,'Toimenpiteiden valitseminen'!$D$21:$O$50,3,FALSE)) -> 0.07487888638 | E82: =IF(ISNA(VLOOKUP(7,'Toimenpiteiden valitseminen'!$D$21:$O$50,4,FALSE)),"",VLOOKUP(7,'Toimenpiteiden valitseminen'!$D$21:$O$50,4,FALSE)) -> IV2 | F82: =IF(ISNA(VLOOKUP(7,'Toimenpiteiden valitseminen'!$D$21:$O$50,6,FALSE)),"",VLOOKUP(7,'Toimenpiteiden valitseminen'!$D$21:$O$50,6,FALSE)) -> 98000 | G82: =IF(ISNA(VLOOKUP(7,'Toimenpiteiden valitseminen'!$D$21:$O$50,7,FALSE)),"",VLOOKUP(7,'Toimenpiteiden valitseminen'!$D$21:$O$50,7,FALSE)) -> -259 | H82: =IF(ISNA(VLOOKUP(7,'Toimenpiteiden valitseminen'!$D$21:$O$50,8,FALSE)),"",VLOOKUP(7,'Toimenpiteiden valitseminen'!$D$21:$O$50,8,FALSE)) -> 38.6 | I82: =IF(AND(G82="",H82=""),"",-(G82+H82)) -> 220.4 | J82: =IF(ISNA(VLOOKUP(7,'Toimenpiteiden valitseminen'!$D$21:$O$50,9,FALSE)),"",VLOOKUP(7,'Toimenpiteiden valitseminen'!$D$21:$O$50,9,FALSE)) -> -8288 | K82: =IF(ISNA(VLOOKUP(7,'Toimenpiteiden valitseminen'!$D$21:$O$50,10,FALSE)),"",VLOOKUP(7,'Toimenpiteiden valitseminen'!$D$21:$O$50,10,FALSE)) -> 30 | L82: =IF(AND(G82="",H82=""),"",F82/(1000*I82)) -> 0.444646098
C83: =IF(OR(L83="",L83<0),"",RANK(L83,$L$78:$L$94,1)) -> 6 | D83: =IF(ISNA(VLOOKUP(6,'Toimenpiteiden valitseminen'!$D$21:$O$50,3,FALSE)),"",VLOOKUP(6,'Toimenpiteiden valitseminen'!$D$21:$O$50,3,FALSE)) -> 0.08483877242 | E83: =IF(ISNA(VLOOKUP(6,'Toimenpiteiden valitseminen'!$D$21:$O$50,4,FALSE)),"",VLOOKUP(6,'Toimenpiteiden valitseminen'!$D$21:$O$50,4,FALSE)) -> US1 | F83: =IF(ISNA(VLOOKUP(6,'Toimenpiteiden valitseminen'!$D$21:$O$50,6,FALSE)),"",VLOOKUP(6,'Toimenpiteiden valitseminen'!$D$21:$O$50,6,FALSE)) -> 5100 | G83: =IF(ISNA(VLOOKUP(6,'Toimenpiteiden valitseminen'!$D$21:$O$50,7,FALSE)),"",VLOOKUP(6,'Toimenpiteiden valitseminen'!$D$21:$O$50,7,FALSE)) -> -9 | H83: =IF(ISNA(VLOOKUP(6,'Toimenpiteiden valitseminen'!$D$21:$O$50,8,FALSE)),"",VLOOKUP(6,'Toimenpiteiden valitseminen'!$D$21:$O$50,8,FALSE)) -> 0 | I83: =IF(AND(G83="",H83=""),"",-(G83+H83)) -> 9 | J83: =IF(ISNA(VLOOKUP(6,'Toimenpiteiden valitseminen'!$D$21:$O$50,9,FALSE)),"",VLOOKUP(6,'Toimenpiteiden valitseminen'!$D$21:$O$50,9,FALSE)) -> -450 | K83: =IF(ISNA(VLOOKUP(6,'Toimenpiteiden valitseminen'!$D$21:$O$50,10,FALSE)),"",VLOOKUP(6,'Toimenpiteiden valitseminen'!$D$21:$O$50,10,FALSE)) -> 40 | L83: =IF(AND(G83="",H83=""),"",F83/(1000*I83)) -> 0.5666666667
C84: =IF(OR(L84="",L84<0),"",RANK(L84,$L$78:$L$94,1)) -> 7 | D84: =IF(ISNA(VLOOKUP(8,'Toimenpiteiden valitseminen'!$D$21:$O$50,3,FALSE)),"",VLOOKUP(8,'Toimenpiteiden valitseminen'!$D$21:$O$50,3,FALSE)) -> 0.02066317746 | E84: =IF(ISNA(VLOOKUP(8,'Toimenpiteiden valitseminen'!$D$21:$O$50,4,FALSE)),"",VLOOKUP(8,'Toimenpiteiden valitseminen'!$D$21:$O$50,4,FALSE)) -> YP2 | F84: =IF(ISNA(VLOOKUP(8,'Toimenpiteiden valitseminen'!$D$21:$O$50,6,FALSE)),"",VLOOKUP(8,'Toimenpiteiden valitseminen'!$D$21:$O$50,6,FALSE)) -> 5408 | G84: =IF(ISNA(VLOOKUP(8,'Toimenpiteiden valitseminen'!$D$21:$O$50,7,FALSE)),"",VLOOKUP(8,'Toimenpiteiden valitseminen'!$D$21:$O$50,7,FALSE)) -> -4 | H84: =IF(ISNA(VLOOKUP(8,'Toimenpiteiden valitseminen'!$D$21:$O$50,8,FALSE)),"",VLOOKUP(8,'Toimenpiteiden valitseminen'!$D$21:$O$50,8,FALSE)) -> 0 | I84: =IF(AND(G84="",H84=""),"",-(G84+H84)) -> 4 | J84: =IF(ISNA(VLOOKUP(8,'Toimenpiteiden valitseminen'!$D$21:$O$50,9,FALSE)),"",VLOOKUP(8,'Toimenpiteiden valitseminen'!$D$21:$O$50,9,FALSE)) -> -200 | K84: =IF(ISNA(VLOOKUP(8,'Toimenpiteiden valitseminen'!$D$21:$O$50,10,FALSE)),"",VLOOKUP(8,'Toimenpiteiden valitseminen'!$D$21:$O$50,10,FALSE)) -> 40 | L84: =IF(AND(G84="",H84=""),"",F84/(1000*I84)) -> 1.352
C85: =IF(OR(L85="",L85<0),"",RANK(L85,$L$78:$L$94,1)) -> 8 | D85: =IF(ISNA(VLOOKUP(1,'Toimenpiteiden valitseminen'!$D$21:$O$50,3,FALSE)),"",VLOOKUP(1,'Toimenpiteiden valitseminen'!$D$21:$O$50,3,FALSE)) -> 0.2308922848 | E85: =IF(ISNA(VLOOKUP(1,'Toimenpiteiden valitseminen'!$D$21:$O$50,4,FALSE)),"",VLOOKUP(1,'Toimenpiteiden valitseminen'!$D$21:$O$50,4,FALSE)) -> VKM | F85: =IF(ISNA(VLOOKUP(1,'Toimenpiteiden valitseminen'!$D$21:$O$50,6,FALSE)),"",VLOOKUP(1,'Toimenpiteiden valitseminen'!$D$21:$O$50,6,FALSE)) -> 46800 | G85: =IF(ISNA(VLOOKUP(1,'Toimenpiteiden valitseminen'!$D$21:$O$50,7,FALSE)),"",VLOOKUP(1,'Toimenpiteiden valitseminen'!$D$21:$O$50,7,FALSE)) -> -29 | H85: =IF(ISNA(VLOOKUP(1,'Toimenpiteiden valitseminen'!$D$21:$O$50,8,FALSE)),"",VLOOKUP(1,'Toimenpiteiden valitseminen'!$D$21:$O$50,8,FALSE)) -> 0 | I85: =IF(AND(G85="",H85=""),"",-(G85+H85)) -> 29 | J85: =IF(ISNA(VLOOKUP(1,'Toimenpiteiden valitseminen'!$D$21:$O$50,9,FALSE)),"",VLOOKUP(1,'Toimenpiteiden valitseminen'!$D$21:$O$50,9,FALSE)) -> -11307 | K85: =IF(ISNA(VLOOKUP(1,'Toimenpiteiden valitseminen'!$D$21:$O$50,10,FALSE)),"",VLOOKUP(1,'Toimenpiteiden valitseminen'!$D$21:$O$50,10,FALSE)) -> 15 | L85: =IF(AND(G85="",H85=""),"",F85/(1000*I85)) -> 1.613793103
C86: =IF(OR(L86="",L86<0),"",RANK(L86,$L$78:$L$94,1)) ->  | D86: =IF(ISNA(VLOOKUP(9,'Toimenpiteiden valitseminen'!$D$21:$O$50,3,FALSE)),"",VLOOKUP(9,'Toimenpiteiden valitseminen'!$D$21:$O$50,3,FALSE)) ->  | E86: =IF(ISNA(VLOOKUP(9,'Toimenpiteiden valitseminen'!$D$21:$O$50,4,FALSE)),"",VLOOKUP(9,'Toimenpiteiden valitseminen'!$D$21:$O$50,4,FALSE)) ->  | F86: =IF(ISNA(VLOOKUP(9,'Toimenpiteiden valitseminen'!$D$21:$O$50,6,FALSE)),"",VLOOKUP(9,'Toimenpiteiden valitseminen'!$D$21:$O$50,6,FALSE)) ->  | G86: =IF(ISNA(VLOOKUP(9,'Toimenpiteiden valitseminen'!$D$21:$O$50,7,FALSE)),"",VLOOKUP(9,'Toimenpiteiden valitseminen'!$D$21:$O$50,7,FALSE)) ->  | H86: =IF(ISNA(VLOOKUP(9,'Toimenpiteiden valitseminen'!$D$21:$O$50,8,FALSE)),"",VLOOKUP(9,'Toimenpiteiden valitseminen'!$D$21:$O$50,8,FALSE)) ->  | I86: =IF(AND(G86="",H86=""),"",-(G86+H86)) ->  | J86: =IF(ISNA(VLOOKUP(9,'Toimenpiteiden valitseminen'!$D$21:$O$50,9,FALSE)),"",VLOOKUP(9,'Toimenpiteiden valitseminen'!$D$21:$O$50,9,FALSE)) ->  | K86: =IF(ISNA(VLOOKUP(9,'Toimenpiteiden valitseminen'!$D$21:$O$50,10,FALSE)),"",VLOOKUP(9,'Toimenpiteiden valitseminen'!$D$21:$O$50,10,FALSE)) ->  | L86: =IF(AND(G86="",H86=""),"",F86/(1000*I86)) -> 
C87: =IF(OR(L87="",L87<0),"",RANK(L87,$L$78:$L$94,1)) ->  | D87: =IF(ISNA(VLOOKUP(10,'Toimenpiteiden valitseminen'!$D$21:$O$50,3,FALSE)),"",VLOOKUP(10,'Toimenpiteiden valitseminen'!$D$21:$O$50,3,FALSE)) ->  | E87: =IF(ISNA(VLOOKUP(10,'Toimenpiteiden valitseminen'!$D$21:$O$50,4,FALSE)),"",VLOOKUP(10,'Toimenpiteiden valitseminen'!$D$21:$O$50,4,FALSE)) ->  | F87: =IF(ISNA(VLOOKUP(10,'Toimenpiteiden valitseminen'!$D$21:$O$50,6,FALSE)),"",VLOOKUP(10,'Toimenpiteiden valitseminen'!$D$21:$O$50,6,FALSE)) ->  | G87: =IF(ISNA(VLOOKUP(10,'Toimenpiteiden valitseminen'!$D$21:$O$50,7,FALSE)),"",VLOOKUP(10,'Toimenpiteiden valitseminen'!$D$21:$O$50,7,FALSE)) ->  | H87: =IF(ISNA(VLOOKUP(10,'Toimenpiteiden valitseminen'!$D$21:$O$50,8,FALSE)),"",VLOOKUP(10,'Toimenpiteiden valitseminen'!$D$21:$O$50,8,FALSE)) ->  | I87: =IF(AND(G87="",H87=""),"",-(G87+H87)) ->  | J87: =IF(ISNA(VLOOKUP(10,'Toimenpiteiden valitseminen'!$D$21:$O$50,9,FALSE)),"",VLOOKUP(10,'Toimenpiteiden valitseminen'!$D$21:$O$50,9,FALSE)) ->  | K87: =IF(ISNA(VLOOKUP(10,'Toimenpiteiden valitseminen'!$D$21:$O$50,10,FALSE)),"",VLOOKUP(10,'Toimenpiteiden valitseminen'!$D$21:$O$50,10,FALSE)) ->  | L87: =IF(AND(G87="",H87=""),"",F87/(1000*I87)) -> 
C88: =IF(OR(L88="",L88<0),"",RANK(L88,$L$78:$L$94,1)) ->  | D88: =IF(ISNA(VLOOKUP(11,'Toimenpiteiden valitseminen'!$D$21:$O$50,3,FALSE)),"",VLOOKUP(11,'Toimenpiteiden valitseminen'!$D$21:$O$50,3,FALSE)) ->  | E88: =IF(ISNA(VLOOKUP(11,'Toimenpiteiden valitseminen'!$D$21:$O$50,4,FALSE)),"",VLOOKUP(11,'Toimenpiteiden valitseminen'!$D$21:$O$50,4,FALSE)) ->  | F88: =IF(ISNA(VLOOKUP(11,'Toimenpiteiden valitseminen'!$D$21:$O$50,6,FALSE)),"",VLOOKUP(11,'Toimenpiteiden valitseminen'!$D$21:$O$50,6,FALSE)) ->  | G88: =IF(ISNA(VLOOKUP(11,'Toimenpiteiden valitseminen'!$D$21:$O$50,7,FALSE)),"",VLOOKUP(11,'Toimenpiteiden valitseminen'!$D$21:$O$50,7,FALSE)) ->  | H88: =IF(ISNA(VLOOKUP(11,'Toimenpiteiden valitseminen'!$D$21:$O$50,8,FALSE)),"",VLOOKUP(11,'Toimenpiteiden valitseminen'!$D$21:$O$50,8,FALSE)) ->  | I88: =IF(AND(G88="",H88=""),"",-(G88+H88)) ->  | J88: =IF(ISNA(VLOOKUP(11,'Toimenpiteiden valitseminen'!$D$21:$O$50,9,FALSE)),"",VLOOKUP(11,'Toimenpiteiden valitseminen'!$D$21:$O$50,9,FALSE)) ->  | K88: =IF(ISNA(VLOOKUP(11,'Toimenpiteiden valitseminen'!$D$21:$O$50,10,FALSE)),"",VLOOKUP(11,'Toimenpiteiden valitseminen'!$D$21:$O$50,10,FALSE)) ->  | L88: =IF(AND(G88="",H88=""),"",F88/(1000*I88)) -> 
C89: =IF(OR(L89="",L89<0),"",RANK(L89,$L$78:$L$94,1)) ->  | D89: =IF(ISNA(VLOOKUP(12,'Toimenpiteiden valitseminen'!$D$21:$O$50,3,FALSE)),"",VLOOKUP(12,'Toimenpiteiden valitseminen'!$D$21:$O$50,3,FALSE)) ->  | E89: =IF(ISNA(VLOOKUP(12,'Toimenpiteiden valitseminen'!$D$21:$O$50,4,FALSE)),"",VLOOKUP(12,'Toimenpiteiden valitseminen'!$D$21:$O$50,4,FALSE)) ->  | F89: =IF(ISNA(VLOOKUP(12,'Toimenpiteiden valitseminen'!$D$21:$O$50,6,FALSE)),"",VLOOKUP(12,'Toimenpiteiden valitseminen'!$D$21:$O$50,6,FALSE)) ->  | G89: =IF(ISNA(VLOOKUP(12,'Toimenpiteiden valitseminen'!$D$21:$O$50,7,FALSE)),"",VLOOKUP(12,'Toimenpiteiden valitseminen'!$D$21:$O$50,7,FALSE)) ->  | H89: =IF(ISNA(VLOOKUP(12,'Toimenpiteiden valitseminen'!$D$21:$O$50,8,FALSE)),"",VLOOKUP(12,'Toimenpiteiden valitseminen'!$D$21:$O$50,8,FALSE)) ->  | I89: =IF(AND(G89="",H89=""),"",-(G89+H89)) ->  | J89: =IF(ISNA(VLOOKUP(12,'Toimenpiteiden valitseminen'!$D$21:$O$50,9,FALSE)),"",VLOOKUP(12,'Toimenpiteiden valitseminen'!$D$21:$O$50,9,FALSE)) ->  | K89: =IF(ISNA(VLOOKUP(12,'Toimenpiteiden valitseminen'!$D$21:$O$50,10,FALSE)),"",VLOOKUP(12,'Toimenpiteiden valitseminen'!$D$21:$O$50,10,FALSE)) ->  | L89: =IF(AND(G89="",H89=""),"",F89/(1000*I89)) -> 
C90: =IF(OR(L90="",L90<0),"",RANK(L90,$L$78:$L$94,1)) ->  | D90: =IF(ISNA(VLOOKUP(13,'Toimenpiteiden valitseminen'!$D$21:$O$50,3,FALSE)),"",VLOOKUP(13,'Toimenpiteiden valitseminen'!$D$21:$O$50,3,FALSE)) ->  | E90: =IF(ISNA(VLOOKUP(13,'Toimenpiteiden valitseminen'!$D$21:$O$50,4,FALSE)),"",VLOOKUP(13,'Toimenpiteiden valitseminen'!$D$21:$O$50,4,FALSE)) ->  | F90: =IF(ISNA(VLOOKUP(13,'Toimenpiteiden valitseminen'!$D$21:$O$50,6,FALSE)),"",VLOOKUP(13,'Toimenpiteiden valitseminen'!$D$21:$O$50,6,FALSE)) ->  | G90: =IF(ISNA(VLOOKUP(13,'Toimenpiteiden valitseminen'!$D$21:$O$50,7,FALSE)),"",VLOOKUP(13,'Toimenpiteiden valitseminen'!$D$21:$O$50,7,FALSE)) ->  | H90: =IF(ISNA(VLOOKUP(13,'Toimenpiteiden valitseminen'!$D$21:$O$50,8,FALSE)),"",VLOOKUP(13,'Toimenpiteiden valitseminen'!$D$21:$O$50,8,FALSE)) ->  | I90: =IF(AND(G90="",H90=""),"",-(G90+H90)) ->  | J90: =IF(ISNA(VLOOKUP(13,'Toimenpiteiden valitseminen'!$D$21:$O$50,9,FALSE)),"",VLOOKUP(13,'Toimenpiteiden valitseminen'!$D$21:$O$50,9,FALSE)) ->  | K90: =IF(ISNA(VLOOKUP(13,'Toimenpiteiden valitseminen'!$D$21:$O$50,10,FALSE)),"",VLOOKUP(13,'Toimenpiteiden valitseminen'!$D$21:$O$50,10,FALSE)) ->  | L90: =IF(AND(G90="",H90=""),"",F90/(1000*I90)) -> 
C91: =IF(OR(L91="",L91<0),"",RANK(L91,$L$78:$L$94,1)) ->  | D91: =IF(ISNA(VLOOKUP(14,'Toimenpiteiden valitseminen'!$D$21:$O$50,3,FALSE)),"",VLOOKUP(14,'Toimenpiteiden valitseminen'!$D$21:$O$50,3,FALSE)) ->  | E91: =IF(ISNA(VLOOKUP(14,'Toimenpiteiden valitseminen'!$D$21:$O$50,4,FALSE)),"",VLOOKUP(14,'Toimenpiteiden valitseminen'!$D$21:$O$50,4,FALSE)) ->  | F91: =IF(ISNA(VLOOKUP(14,'Toimenpiteiden valitseminen'!$D$21:$O$50,6,FALSE)),"",VLOOKUP(14,'Toimenpiteiden valitseminen'!$D$21:$O$50,6,FALSE)) ->  | G91: =IF(ISNA(VLOOKUP(14,'Toimenpiteiden valitseminen'!$D$21:$O$50,7,FALSE)),"",VLOOKUP(14,'Toimenpiteiden valitseminen'!$D$21:$O$50,7,FALSE)) ->  | H91: =IF(ISNA(VLOOKUP(14,'Toimenpiteiden valitseminen'!$D$21:$O$50,8,FALSE)),"",VLOOKUP(14,'Toimenpiteiden valitseminen'!$D$21:$O$50,8,FALSE)) ->  | I91: =IF(AND(G91="",H91=""),"",-(G91+H91)) ->  | J91: =IF(ISNA(VLOOKUP(14,'Toimenpiteiden valitseminen'!$D$21:$O$50,9,FALSE)),"",VLOOKUP(14,'Toimenpiteiden valitseminen'!$D$21:$O$50,9,FALSE)) ->  | K91: =IF(ISNA(VLOOKUP(14,'Toimenpiteiden valitseminen'!$D$21:$O$50,10,FALSE)),"",VLOOKUP(14,'Toimenpiteiden valitseminen'!$D$21:$O$50,10,FALSE)) ->  | L91: =IF(AND(G91="",H91=""),"",F91/(1000*I91)) -> 
C92: =IF(OR(L92="",L92<0),"",RANK(L92,$L$78:$L$94,1)) ->  | D92: =IF(ISNA(VLOOKUP(15,'Toimenpiteiden valitseminen'!$D$21:$O$50,3,FALSE)),"",VLOOKUP(15,'Toimenpiteiden valitseminen'!$D$21:$O$50,3,FALSE)) ->  | E92: =IF(ISNA(VLOOKUP(15,'Toimenpiteiden valitseminen'!$D$21:$O$50,4,FALSE)),"",VLOOKUP(15,'Toimenpiteiden valitseminen'!$D$21:$O$50,4,FALSE)) ->  | F92: =IF(ISNA(VLOOKUP(15,'Toimenpiteiden valitseminen'!$D$21:$O$50,6,FALSE)),"",VLOOKUP(15,'Toimenpiteiden valitseminen'!$D$21:$O$50,6,FALSE)) ->  | G92: =IF(ISNA(VLOOKUP(15,'Toimenpiteiden valitseminen'!$D$21:$O$50,7,FALSE)),"",VLOOKUP(15,'Toimenpiteiden valitseminen'!$D$21:$O$50,7,FALSE)) ->  | H92: =IF(ISNA(VLOOKUP(15,'Toimenpiteiden valitseminen'!$D$21:$O$50,8,FALSE)),"",VLOOKUP(15,'Toimenpiteiden valitseminen'!$D$21:$O$50,8,FALSE)) ->  | I92: =IF(AND(G92="",H92=""),"",-(G92+H92)) ->  | J92: =IF(ISNA(VLOOKUP(15,'Toimenpiteiden valitseminen'!$D$21:$O$50,9,FALSE)),"",VLOOKUP(15,'Toimenpiteiden valitseminen'!$D$21:$O$50,9,FALSE)) ->  | K92: =IF(ISNA(VLOOKUP(15,'Toimenpiteiden valitseminen'!$D$21:$O$50,10,FALSE)),"",VLOOKUP(15,'Toimenpiteiden valitseminen'!$D$21:$O$50,10,FALSE)) ->  | L92: =IF(AND(G92="",H92=""),"",F92/(1000*I92)) -> 
C93: =IF(OR(L93="",L93<0),"",RANK(L93,$L$78:$L$94,1)) ->  | D93: =IF(ISNA(VLOOKUP(16,'Toimenpiteiden valitseminen'!$D$21:$O$50,3,FALSE)),"",VLOOKUP(16,'Toimenpiteiden valitseminen'!$D$21:$O$50,3,FALSE)) ->  | E93: =IF(ISNA(VLOOKUP(16,'Toimenpiteiden valitseminen'!$D$21:$O$50,4,FALSE)),"",VLOOKUP(16,'Toimenpiteiden valitseminen'!$D$21:$O$50,4,FALSE)) ->  | F93: =IF(ISNA(VLOOKUP(16,'Toimenpiteiden valitseminen'!$D$21:$O$50,6,FALSE)),"",VLOOKUP(16,'Toimenpiteiden valitseminen'!$D$21:$O$50,6,FALSE)) ->  | G93: =IF(ISNA(VLOOKUP(16,'Toimenpiteiden valitseminen'!$D$21:$O$50,7,FALSE)),"",VLOOKUP(16,'Toimenpiteiden valitseminen'!$D$21:$O$50,7,FALSE)) ->  | H93: =IF(ISNA(VLOOKUP(16,'Toimenpiteiden valitseminen'!$D$21:$O$50,8,FALSE)),"",VLOOKUP(16,'Toimenpiteiden valitseminen'!$D$21:$O$50,8,FALSE)) ->  | I93: =IF(AND(G93="",H93=""),"",-(G93+H93)) ->  | J93: =IF(ISNA(VLOOKUP(16,'Toimenpiteiden valitseminen'!$D$21:$O$50,9,FALSE)),"",VLOOKUP(16,'Toimenpiteiden valitseminen'!$D$21:$O$50,9,FALSE)) ->  | K93: =IF(ISNA(VLOOKUP(16,'Toimenpiteiden valitseminen'!$D$21:$O$50,10,FALSE)),"",VLOOKUP(16,'Toimenpiteiden valitseminen'!$D$21:$O$50,10,FALSE)) ->  | L93: =IF(AND(G93="",H93=""),"",F93/(1000*I93)) -> 
C94: =IF(OR(L94="",L94<0),"",RANK(L94,$L$78:$L$94,1)) ->  | D94: =IF(ISNA(VLOOKUP(17,'Toimenpiteiden valitseminen'!$D$21:$O$50,3,FALSE)),"",VLOOKUP(17,'Toimenpiteiden valitseminen'!$D$21:$O$50,3,FALSE)) ->  | E94: =IF(ISNA(VLOOKUP(17,'Toimenpiteiden valitseminen'!$D$21:$O$50,4,FALSE)),"",VLOOKUP(17,'Toimenpiteiden valitseminen'!$D$21:$O$50,4,FALSE)) ->  | F94: =IF(ISNA(VLOOKUP(17,'Toimenpiteiden valitseminen'!$D$21:$O$50,6,FALSE)),"",VLOOKUP(17,'Toimenpiteiden valitseminen'!$D$21:$O$50,6,FALSE)) ->  | G94: =IF(ISNA(VLOOKUP(17,'Toimenpiteiden valitseminen'!$D$21:$O$50,7,FALSE)),"",VLOOKUP(17,'Toimenpiteiden valitseminen'!$D$21:$O$50,7,FALSE)) ->  | H94: =IF(ISNA(VLOOKUP(17,'Toimenpiteiden valitseminen'!$D$21:$O$50,8,FALSE)),"",VLOOKUP(17,'Toimenpiteiden valitseminen'!$D$21:$O$50,8,FALSE)) ->  | I94: =IF(AND(G94="",H94=""),"",-(G94+H94)) ->  | J94: =IF(ISNA(VLOOKUP(17,'Toimenpiteiden valitseminen'!$D$21:$O$50,9,FALSE)),"",VLOOKUP(17,'Toimenpiteiden valitseminen'!$D$21:$O$50,9,FALSE)) ->  | K94: =IF(ISNA(VLOOKUP(17,'Toimenpiteiden valitseminen'!$D$21:$O$50,10,FALSE)),"",VLOOKUP(17,'Toimenpiteiden valitseminen'!$D$21:$O$50,10,FALSE)) ->  | L94: =IF(AND(G94="",H94=""),"",F94/(1000*I94)) -> 

Sheet Toimenpiteiden valitseminen
C2: KERROSTALOJEN KORJAUSTOIMINNAN ENERGIATALOUDELLISTEN VALINTOJEN VERTAILU
F3: Rakenne- ja LVIS-teknisten energiansäästötoimenpiteiden valinta rakenne- ja laitetasolla
C5: Energiansäästötoimenpiteiden valitseminen
I7: PAREMPIIN ET-LUOKKIIN PÄÄSEMIKSEKSI TARVITTAVA ENERGIANSÄÄSTÖ ENNEN VALINTOJA
C8: Laskentakorko | E8: =Lähtötiedot!K7 -> 0.05 | I8: ET-LUOKKA | J8: TARVITTAVA ENERGIANSÄÄSTÖ [MWh] | L8: Bruttopinta-ala [brm2] | N8: =Lähtötiedot!G14 -> 7236 | O8: m2
C9: Bruttopinta-ala [brm2] | E9: =Lähtötiedot!K8 -> 5468 | F9: m2 | I9: A | J9: =IF(E12<=100,"NYKYINEN ET-LUOKKA",((100-$E$12)*$N$8)/1000) -> -836.6128749 | L9: Asuntopinta-ala [hum2] | N9: =Lähtötiedot!G15 -> 4645 | O9: m2
C10: Asuntopinta-ala [hum2] | E10: =Lähtötiedot!K9 -> 3284 | F10: m2 | I10: B | J10: =IF(AND($E$12>=101,$E$12<=120),"NYKYINEN ET-LUOKKA",IF($E$12>120,(((120-$E$12)*$N$8)/1000),"")) -> -691.8928749 | L10: Valintojen kokonaiskustannukset (hum2) | N10: =IF(I53="","",I53) -> 1142444 | O10: €
C11: Normeerattu energiankulutus ennen korjausta | E11: =Lähtötiedot!K10 -> 1179 | F11: MWh | I11: C | J11: =IF(AND($E$12>=121,$E$12<=140),"NYKYINEN ET-LUOKKA",IF($E$12>140,(((140-$E$12)*$N$8)/1000),"")) -> -547.1728749 | L11: Normeerattu energiankulutus valintojen jälkeen | N11: =((E12*Lähtötiedot!G14)/1000)+(J53+K53) -> 978.8128749 | O11: MWh
C12: ET-luku ennen korjausta | E12: =IF(E11="","",(E11*1000)/E9) -> 215.6181419 | F12: kWh/brm2/vuosi | I12: D | J12: =IF(AND($E$12>=141,$E$12<=180),"NYKYINEN ET-LUOKKA",IF($E$12>180,(((180-$E$12)*$N$8)/1000),"")) -> -257.7328749 | L12: ET-luku valintojen jälkeen | N12: =IF(N11="","",(N11*1000)/N8) -> 135.2698832 | O12: kWh/brm2/a
C13: ET-luokka ennen korjausta | E13: =IF(E12="","",IF(E12<=100,"A",IF(E12<=120,"B",IF(E12<=140,"C",IF(E12<=180,"D",IF(E12<=230,"E",IF(E12<=280,"F","G"))))))) -> E | I13: E | J13: =IF(AND($E$12>=181,$E$12<=230),"NYKYINEN ET-LUOKKA",IF($E$12>230,(((230-$E$12)*$N$8)/1000),"")) -> NYKYINEN ET-LUOKKA | L13: ET-luokka valintojen jälkeen | N13: =IF(N12="","",IF(N12<=100,"A",IF(N12<=120,"B",IF(N12<=140,"C",IF(N12<=180,"D",IF(N12<=230,"E",IF(N12<=280,"F","G"))))))) -> C
C14: Lämmitysenergian hinta | E14: =Lähtötiedot!K13 -> 50 | F14: €/MWh | I14: F | J14: =IF(AND($E$12>=231,$E$12<=280),"NYKYINEN ET-LUOKKA",IF($E$12>280,(((280-$E$12)*$N$8)/1000),"")) ->  | L14: Kokonaisenergiankulutuksen muutos hinta | N14: =IF(AND(J53="",K53=""),"",J53+K53) -> -581.4 | O14: MWh/a
C15: Sähköenergian hinta | E15: =Lähtötiedot!K14 -> 70 | F15: €/MWh | I15: G | J15: =IF($E$12>=281,"NYKYINEN ET-LUOKKA","") ->  | L15: Kustannusten vuosimuutos | N15: =IF(L53="","",L53) -> -36195 | O15: €/a
B18: VALINTAJÄRJESTYS | E18: VALINTA | F18: VALINNAN SISÄINEN KORKO [%] | G18: TOIMEN- PITEEN TUNNUS | H18: HARKITTAVA ENERGIANSÄÄSTÖTOIMENPIDE | I18: RAKENNUS- KUSTANNUSERO [€] | J18: LÄMMITYSENERGIAN KULUTUKSEN MUUTOS [MWh/a] | K18: SÄHKÖENERGIAN KULUTUKSEN MUUTOS [MWh/a] | L18: KUSTANNUSTEN VUOSIMUUTOS [€/a] | M18: PITOAIKA [a] | N18: TAKAISIN- MAKSUAIKA [a] | O18: TAKAISIN- MAKSU- KERRAT PITOAIKANA
B19: TAKAISIN- MAKSU- AJAN MUKAAN | C19: TAKAISIN- MAKSU- KERTOJEN MUKAAN | D19: SISÄISEN KORON MUKAAN
B20: =Lähtötiedot!C18 -> YLÄPOHJA
F21: =IF($L$21>=0,"",RATE($M$21,$L$21,$I$21,,,0.9)) -> -0.01758410553 | G21: =Lähtötiedot!$C$20 -> PYP | H21: =IF(Lähtötiedot!$D$20="","",Lähtötiedot!$D$20) -> ERISTYS 150 + 50 mm | I21: =IF(Lähtötiedot!$E$20="","",Lähtötiedot!$E$20) -> 102828 | J21: =IF(Lähtötiedot!$F$20="","",Lähtötiedot!$F$20) -> -35 | K21: =IF(Lähtötiedot!$G$20="","",Lähtötiedot!$G$20) -> 0 | L21: =IF(AND($J$21="",$K$21="",Lähtötiedot!$H$20=""),"",($E$14*$J$21+$E$15*$K$21+Lähtötiedot!$H$20)) -> -1750 | M21: =IF(Lähtötiedot!$I$20="","",Lähtötiedot!$I$20) -> 40 | N21: =IF(AND($I$21="",$L$21=""),"",$I$21/-$L$21) -> 58.75885714 | O21: =IF($N$21="","",$M$21/$N$21) -> 0.6807484343
B22: =IF(OR($N$22="",$N$22<0),"",RANK(Temp!$A$3,Temp!$A$3:$A$15,1)) -> 5 | C22: =IF(OR($O$22="",$O$22<0),"",RANK(Temp!$B$3,Temp!$B$3:$B$15,0)) -> 3 | D22: =IF($F$22>0,RANK(Temp!$C$3,Temp!$C$3:$C$15,0),"") -> 4 | F22: =IF($L$22="",0,RATE($M$22,$L$22,$I$22,,,0.9)) -> 0.1125532469 | G22: =Lähtötiedot!$C$21 -> YP1 | H22: =IF(Lähtötiedot!$D$21="","",Lähtötiedot!$D$21) -> ERISTYS 200 + 50 mm | I22: =IF(Lähtötiedot!$E$21="","",Lähtötiedot!$E$21-Lähtötiedot!$E$20) -> 2628 | J22: =IF(Lähtötiedot!$F$21="","",Lähtötiedot!$F$21) -> -6 | K22: =IF(Lähtötiedot!$G$21="","",Lähtötiedot!$G$21) -> 0 | L22: =IF(AND($J$22="",$K$22="",Lähtötiedot!$H$21=""),"",($E$14*$J$22+$E$15*$K$22+Lähtötiedot!$H$21)) -> -300 | M22: =IF(Lähtötiedot!$I$21="","",Lähtötiedot!$I$21) -> 40 | N22: =IF(AND($I$22="",$L$22=""),"",$I$22/-$L$22) -> 8.76 | O22: =IF($N$22="","",$M$22/$N$22) -> 4.566210046
H23: =IF(Lähtötiedot!$D$22="","",Lähtötiedot!$D$22) -> ERISTEMUUTOS 200 mm → 250 mm
B24: =IF(OR($N$24="",$N$24<0),"",RANK(Temp!$A$4,Temp!$A$3:$A$15,1)) -> 8 | C24: =IF(OR($O$24="",$O$24<0),"",RANK(Temp!$B$4,Temp!$B$3:$B$15,0)) -> 8 | D24: =IF($F$24>0,RANK(Temp!$C$4,Temp!$C$3:$C$15,0),"") -> 8 | F24: =IF($L$24="",0,RATE($M$24,$L$24,$I$24,,,0.9)) -> 0.02066317746 | G24: =Lähtötiedot!$C$23 -> YP2 | H24: =IF(Lähtötiedot!$D$23="","",Lähtötiedot!$D$23) -> ERISTYS 250 + 50 mm | I24: =IF(Lähtötiedot!$E$23="","",Lähtötiedot!$E$23-Lähtötiedot!$E$21) -> 5408 | J24: =IF(Lähtötiedot!$F$23="","",Lähtötiedot!$F$23) -> -4 | K24: =IF(Lähtötiedot!$G$23="","",Lähtötiedot!$G$23) -> 0 | L24: =IF(AND($J$24="",$K$24="",Lähtötiedot!$H$23=""),"",($E$14*$J$24+$E$15*$K$24+Lähtötiedot!$H$23)) -> -200 | M24: =IF(Lähtötiedot!$I$23="","",Lähtötiedot!$I$23) -> 40 | N24: =IF(AND($I$24="",$L$24=""),"",$I$24/-$L$24) -> 27.04 | O24: =IF($N$24="","",$M$24/$N$24) -> 1.479289941
H25: =IF(Lähtötiedot!$D$24="","",Lähtötiedot!$D$24) -> ERISTEMUUTOS 250 mm → 300 mm
B26: =IF(OR($N$26="",$N$26<0),"",RANK(Temp!$A$5,Temp!$A$3:$A$15,1)) ->  | C26: =IF(OR($O$26="",$O$26<0),"",RANK(Temp!$B$5,Temp!$B$3:$B$15,0)) ->  | D26: =IF($F$26>0,RANK(Temp!$C$5,Temp!$C$3:$C$15,0),"") ->  | F26: =IF($L$26="",0,RATE($M$26,$L$26,$I$26,,,0.9)) -> 0 | G26: =Lähtötiedot!$C$25 -> YP3 | H26: =IF(Lähtötiedot!$D$25="","",Lähtötiedot!$D$25) ->  | I26: =IF(Lähtötiedot!$E$25="","",Lähtötiedot!$E$25-Lähtötiedot!$E$23) ->  | J26: =IF(Lähtötiedot!$F$25="","",Lähtötiedot!$F$25) ->  | K26: =IF(Lähtötiedot!$G$25="","",Lähtötiedot!$G$25) ->  | L26: =IF(AND($J$26="",$K$26="",Lähtötiedot!$H$25=""),"",($E$14*$J$26+$E$15*$K$26+Lähtötiedot!$H$25)) ->  | M26: =IF(Lähtötiedot!$I$25="","",Lähtötiedot!$I$25) ->  | N26: =IF(AND($I$26="",$L$26=""),"",$I$26/-$L$26) ->  | O26: =IF($N$26="","",$M$26/$N$26) -> 
H27: =IF(Lähtötiedot!$D$26="","",Lähtötiedot!$D$26) -> 
B28: =Lähtötiedot!C29 -> ULKOSEINÄ
F29: =IF($L$29>0,"",RATE($M$29,$L$29,$I$29,,,0.9)) -> -0.04291607986 | G29: =Lähtötiedot!$C$31 -> PUS | H29: =IF(Lähtötiedot!$D$31="","",Lähtötiedot!$D$31) -> LISÄERISTYS 80 mm | I29: =IF(Lähtötiedot!$E$31="","",Lähtötiedot!$E$31) -> 484600 | J29: =IF(Lähtötiedot!$F$31="","",Lähtötiedot!$F$31) -> -87 | K29: =IF(Lähtötiedot!$G$31="","",Lähtötiedot!$G$31) -> 0 | L29: =IF(AND($J$29="",$K$29="",Lähtötiedot!$H$31=""),"",($E$14*$J$29+$E$15*$K$29+Lähtötiedot!$H$31)) -> -4350 | M29: =IF(Lähtötiedot!$I$31="","",Lähtötiedot!$I$31) -> 40 | N29: =IF(AND($I$29="",$L$29=""),"",$I$29/-$L$29) -> 111.4022989 | O29: =IF($N$29="","",$M$29/$N$29) -> 0.3590590177
B30: =IF(OR($N$30="",$N$30<0),"",RANK(Temp!$A$6,Temp!$A$3:$A$15,1)) -> 6 | C30: =IF($O$30="","",RANK(Temp!$B$6,Temp!$B$3:$B$15,0)) -> 5 | D30: =IF($F$30>0,RANK(Temp!$C$6,Temp!$C$3:$C$15,0),"") -> 6 | F30: =IF($L$30="",0,RATE($M$30,$L$30,$I$30,,,0.9)) -> 0.08483877242 | G30: =Lähtötiedot!$C$32 -> US1 | H30: =IF(Lähtötiedot!$D$32="","",Lähtötiedot!$D$32) -> LISÄERISTYS 100 mm | I30: =IF(Lähtötiedot!$E$32="","",Lähtötiedot!$E$32-Lähtötiedot!$E$31) -> 5100 | J30: =IF(Lähtötiedot!$F$32="","",Lähtötiedot!$F$32) -> -9 | K30: =IF(Lähtötiedot!$G$32="","",Lähtötiedot!$G$32) -> 0 | L30: =IF(AND($J$30="",$K$30="",Lähtötiedot!$H$32=""),"",($E$14*$J$30+$E$15*$K$30+Lähtötiedot!$H$32)) -> -450 | M30: =IF(Lähtötiedot!$I$32="","",Lähtötiedot!$I$32) -> 40 | N30: =IF(AND($I$30="",$L$30=""),"",$I$30/-$L$30) -> 11.33333333 | O30: =IF($N$30="","",$M$30/$N$30) -> 3.529411765
H31: =IF(Lähtötiedot!$D$33="","",Lähtötiedot!$D$33) -> ERISTEMUUTOS 80 mm → 100 mm
B32: =IF(OR($N$32="",$N$32<0),"",RANK(Temp!$A$7,Temp!$A$3:$A$15,1)) -> 9 | C32: =IF(OR($O$32="",$O$32<0),"",RANK(Temp!$B$7,Temp!$B$3:$B$15,0)) -> 9 | D32: =IF($F$32>0,RANK(Temp!$C$7,Temp!$C$3:$C$15,0),"") ->  | F32: =IF($L$32="",0,RATE($M$32,$L$32,$I$32,,,0.9)) -> -0.01649445252 | G32: =Lähtötiedot!$C$34 -> US2 | H32: =IF(Lähtötiedot!$D$34="","",Lähtötiedot!$D$34) -> LISÄERISTYS 150 mm | I32: =IF(Lähtötiedot!$E$34="","",Lähtötiedot!$E$34-Lähtötiedot!$E$32) -> 48700 | J32: =IF(Lähtötiedot!$F$34="","",Lähtötiedot!$F$34) -> -17 | K32: =IF(Lähtötiedot!$G$34="","",Lähtötiedot!$G$34) -> 0 | L32: =IF(AND($J$32="",$K$32="",Lähtötiedot!$H$34=""),"",($E$14*$J$32+$E$15*$K$32+Lähtötiedot!$H$34)) -> -850 | M32: =IF(Lähtötiedot!$I$34="","",Lähtötiedot!$I$34) -> 40 | N32: =IF(AND($I$32="",$L$32=""),"",$I$32/-$L$32) -> 57.29411765 | O32: =IF($N$32="","",$M$32/$N$32) -> 0.6981519507
H33: =IF(Lähtötiedot!$D$35="","",Lähtötiedot!$D$35) -> ERISTEMUUTOS 100 mm → 150 mm
B34: =IF(OR($N$34="",$N$34<0),"",RANK(Temp!$A$8,Temp!$A$3:$A$15,1)) ->  | C34: =IF(OR($O$34="",$O$34<0),"",RANK(Temp!$B$8,Temp!$B$3:$B$15,0)) ->  | D34: =IF($F$34>0,RANK(Temp!$C$8,Temp!$C$3:$C$15,0),"") ->  | F34: =IF($L$34="",0,RATE($M$34,$L$34,$I$34,,,0.9)) -> 0 | G34: =Lähtötiedot!$C$36 -> US3 | H34: =IF(Lähtötiedot!$D$36="","",Lähtötiedot!$D$36) ->  | I34: =IF(Lähtötiedot!$E$36="","",Lähtötiedot!$E$36-Lähtötiedot!$E$34) ->  | J34: =IF(Lähtötiedot!$F$36="","",Lähtötiedot!$F$36) ->  | K34: =IF(Lähtötiedot!$G$36="","",Lähtötiedot!$G$36) ->  | L34: =IF(AND($J$34="",$K$34="",Lähtötiedot!$H$36=""),"",($E$14*$J$34+$E$15*$K$34+Lähtötiedot!$H$36)) ->  | M34: =IF(Lähtötiedot!$I$36="","",Lähtötiedot!$I$36) ->  | N34: =IF(AND($I$34="",$L$34=""),"",$I$34/-$L$34) ->  | O34: =IF($N$34="","",$M$34/$N$34) -> 
H35: =IF(Lähtötiedot!$D$37="","",Lähtötiedot!$D$37) -> 
B36: =Lähtötiedot!C40 -> IKKUNAT
F37: =IF($L$37>=0,"",RATE($M$37,$L$37,$I$37,,,0.9)) -> -0.04716454568 | G37: =Lähtötiedot!$C$42 -> PIKK | H37: =IF(Lähtötiedot!$D$42="","",Lähtötiedot!$D$42) -> UUSI IKKUNA U=1,8 | I37: =IF(Lähtötiedot!$E$42="","",Lähtötiedot!$E$42) -> 359480 | J37: =IF(Lähtötiedot!$F$42="","",Lähtötiedot!$F$42) -> -104 | K37: =IF(Lähtötiedot!$G$42="","",Lähtötiedot!$G$42) -> 0 | L37: =IF(AND($J$37="",$K$37="",Lähtötiedot!$H$42=""),"",($E$14*$J$37+$E$15*$K$37+Lähtötiedot!$H$42)) -> -5200 | M37: =IF(Lähtötiedot!$I$42="","",Lähtötiedot!$I$42) -> 30 | N37: =IF(AND($I$37="",$L$37=""),"",$I$37/-$L$37) -> 69.13076923 | O37: =IF($N$37="","",$M$37/$N$37) -> 0.4339601647
B38: =IF(OR($N$38="",$N$38<0),"",RANK(Temp!$A$9,Temp!$A$3:$A$15,1)) -> 3 | C38: =IF(OR($O$38="",$O$38<0),"",RANK(Temp!$B$9,Temp!$B$3:$B$15,0)) -> 2 | D38: =IF($F$38>0,RANK(Temp!$C$9,Temp!$C$3:$C$15,0),"") -> 3 | F38: =IF($L$38="",0,RATE($M$38,$L$38,$I$38,,,0.9)) -> 0.1822034163 | G38: =Lähtötiedot!$C$43 -> IKK1 | H38: =IF(Lähtötiedot!$D$43="","",Lähtötiedot!$D$43) -> UUSI IKKUNA U=1,4 | I38: =IF(Lähtötiedot!$E$43="","",Lähtötiedot!$E$43-Lähtötiedot!$E$42) -> 12540 | J38: =IF(Lähtötiedot!$F$43="","",Lähtötiedot!$F$43) -> -46 | K38: =IF(Lähtötiedot!$G$43="","",Lähtötiedot!$G$43) -> 0 | L38: =IF(AND($J$38="",$K$38="",Lähtötiedot!$H$43=""),"",($E$14*$J$38+$E$15*$K$38+Lähtötiedot!$H$43)) -> -2300 | M38: =IF(Lähtötiedot!$I$43="","",Lähtötiedot!$I$43) -> 30 | N38: =IF(AND($I$38="",$L$38=""),"",$I$38/-$L$38) -> 5.452173913 | O38: =IF($N$38="","",$M$38/$N$38) -> 5.502392344
H39: =IF(Lähtötiedot!$D$44="","",Lähtötiedot!$D$44) -> U = 1,8 → U = 1,4
B40: =IF(OR($N$40="",$N$40<0),"",RANK(Temp!$A$10,Temp!$A$3:$A$15,1)) -> 2 | C40: =IF(OR($O$40="",$O$40<0),"",RANK(Temp!$B$10,Temp!$B$3:$B$15,0)) -> 1 | D40: =IF($F$40>0,RANK(Temp!$C$10,Temp!$C$3:$C$15,0),"") -> 2 | F40: =IF($L$40="",0,RATE($M$40,$L$40,$I$40,,,0.9)) -> 0.2062841464 | G40: =Lähtötiedot!$C$45 -> IKK2 | H40: =IF(Lähtötiedot!$D$45="","",Lähtötiedot!$D$45) -> UUSI IKKUNA U=1,0 | I40: =IF(Lähtötiedot!$E$45="","",Lähtötiedot!$E$45-Lähtötiedot!$E$43) -> 10868 | J40: =IF(Lähtötiedot!$F$45="","",Lähtötiedot!$F$45) -> -45 | K40: =IF(Lähtötiedot!$G$45="","",Lähtötiedot!$G$45) -> 0 | L40: =IF(AND($J$40="",$K$40="",Lähtötiedot!$H$45=""),"",($E$14*$J$40+$E$15*$K$40+Lähtötiedot!$H$45)) -> -2250 | M40: =IF(Lähtötiedot!$I$45="","",Lähtötiedot!$I$45) -> 30 | N40: =IF(AND($I$40="",$L$40=""),"",$I$40/-$L$40) -> 4.830222222 | O40: =IF($N$40="","",$M$40/$N$40) -> 6.210894369
H41: =IF(Lähtötiedot!$D$46="","",Lähtötiedot!$D$46) -> U = 1,4 → U = 1,0
B42: =IF(OR($N$42="",$N$42<0),"",RANK(Temp!$A$11,Temp!$A$3:$A$15,1)) ->  | C42: =IF(OR($O$42="",$O$42<0),"",RANK(Temp!$B$11,Temp!$B$3:$B$15,0)) ->  | D42: =IF($F$42>0,RANK(Temp!$C$11,Temp!$C$3:$C$15,0),"") ->  | F42: =IF($L$42="",0,RATE($M$42,$L$42,$I$42,,,0.9)) -> 0 | G42: =Lähtötiedot!$C$47 -> IKK3 | H42: =IF(Lähtötiedot!$D$47="","",Lähtötiedot!$D$47) ->  | I42: =IF(Lähtötiedot!$E$47="","",Lähtötiedot!$E$47-Lähtötiedot!$E$45) ->  | J42: =IF(Lähtötiedot!$F$47="","",Lähtötiedot!$F$47) ->  | K42: =IF(Lähtötiedot!$G$47="","",Lähtötiedot!$G$47) ->  | L42: =IF(AND($J$42="",$K$42="",Lähtötiedot!$H$47=""),"",($E$14*$J$42+$E$15*$K$42+Lähtötiedot!$H$47)) ->  | M42: =IF(Lähtötiedot!$I$47="","",Lähtötiedot!$I$47) ->  | N42: =IF(AND($I$42="",$L$42=""),"",$I$42/-$L$42) ->  | O42: =IF($N$42="","",$M$42/$N$42) -> 
H43: =IF(Lähtötiedot!$D$48="","",Lähtötiedot!$D$48) -> 
B44: =Lähtötiedot!C51 -> VEDENKULUTUKSEN MITTAUS
B45: =IF(OR($N$45="",$N$45<0),"",RANK(Temp!$A$12,Temp!$A$3:$A$15,1)) -> 1 | C45: =IF(OR($O$45="",$O$45<0),"",RANK(Temp!$B$12,Temp!$B$3:$B$15,0)) -> 4 | D45: =IF($F$45>0,RANK(Temp!$C$12,Temp!$C$3:$C$15,0),"") -> 1 | F45: =IF($L$45="",0,RATE($M$45,$L$45,$I$45,,,0.9)) -> 0.2308922848 | G45: =Lähtötiedot!$C$53 -> VKM | H45: =IF(Lähtötiedot!$D$53="","",Lähtötiedot!$D$53) -> ASUNTOKOHTAINEN MITTAUS | I45: =IF(Lähtötiedot!$E$53="","",Lähtötiedot!$E$53) -> 46800 | J45: =IF(Lähtötiedot!$F$53="","",Lähtötiedot!$F$53) -> -29 | K45: =IF(Lähtötiedot!$G$53="","",Lähtötiedot!$G$53) -> 0 | L45: =IF(AND($J$45="",$K$45="",Lähtötiedot!$H$53=""),"",($E$14*$J$45+$E$15*$K$45+Lähtötiedot!$H$53)) -> -11307 | M45: =IF(Lähtötiedot!$I$53="","",Lähtötiedot!$I$53) -> 15 | N45: =IF(AND($I$45="",$L$45=""),"",$I$45/-$L$45) -> 4.13902892 | O45: =IF($N$45="","",$M$45/$N$45) -> 3.624038462
B46: =Lähtötiedot!C56 -> ILMANVAIHTOJÄRJESTELMÄ
F47: =IF($L$47>=0,"",RATE($M$47,$L$47,$I$47)) ->  | G47: =Lähtötiedot!$C$58 -> PIV | H47: =Lähtötiedot!$D$58 -> VANHAN KUNNOSTUS | I47: =IF(Lähtötiedot!$E$58="","",Lähtötiedot!$E$58) -> 39200 | J47: =IF(Lähtötiedot!$F$58="","",Lähtötiedot!$F$58) -> 0 | K47: =IF(Lähtötiedot!$G$58="","",Lähtötiedot!$G$58) -> 0 | L47: =IF(AND($J$47="",$K$47="",Lähtötiedot!$H$58=""),"",($E$14*$J$47+$E$15*$K$47+Lähtötiedot!$H$58)) -> 784 | M47: =IF(Lähtötiedot!$I$58="","",Lähtötiedot!$I$58) -> 30 | N47: =IF(AND($I$47="",$L$47=""),"",$I$47/-$L$47) -> -50 | O47: =IF($N$47="","",$M$47/$N$47) -> -0.6
B48: =IF(OR($N$48="",$N$48<0),"",RANK(Temp!$A$13,Temp!$A$3:$A$15,1)) -> 4 | C48: =IF(OR($O$48="",$O$48<0),"",RANK(Temp!$B$13,Temp!$B$3:$B$15,0)) -> 6 | D48: =IF($F$48>0,RANK(Temp!$C$13,Temp!$C$3:$C$15,0),"") -> 5 | F48: =IF($L$48="",0,RATE($M$48,$L$48,$I$48,,,0.9)) -> 0.1107626467 | G48: =Lähtötiedot!$C$59 -> IV1 | H48: =IF(Lähtötiedot!$D$59="","",Lähtötiedot!$D$59) -> KESKITETTY KONEELLINEN TULO- JA POISTOILMANVAIHTO LTO 50 % | I48: =IF(Lähtötiedot!$E$59="","",Lähtötiedot!$E$59-Lähtötiedot!$E$58) -> 78400 | J48: =IF(Lähtötiedot!$F$59="","",Lähtötiedot!$F$59) -> -259 | K48: =IF(Lähtötiedot!$G$59="","",Lähtötiedot!$G$59) -> 38.6 | L48: =IF(AND($J$48="",$K$48="",Lähtötiedot!$H$59=""),"",($E$14*$J$48+$E$15*$K$48+Lähtötiedot!$H$59)) -> -9072 | M48: =IF(Lähtötiedot!$I$59="","",Lähtötiedot!$I$59) -> 30 | N48: =IF(AND($I$48="",$L$48=""),"",$I$48/-$L$48) -> 8.641975309 | O48: =IF($N$48="","",$M$48/$N$48) -> 3.471428571
B49: =IF(OR($N$49="",$N$49<0),"",RANK(Temp!$A$14,Temp!$A$3:$A$15,1)) -> 7 | C49: =IF(OR($O$49="",$O$49<0),"",RANK(Temp!$B$14,Temp!$B$3:$B$15,0)) -> 7 | D49: =IF($F$49>0,RANK(Temp!$C$14,Temp!$C$3:$C$15,0),"") -> 7 | F49: =IF($L$49="",0,RATE($M$49,$L$49,$I$49,,,0.9)) -> 0.07487888638 | G49: =Lähtötiedot!$C$60 -> IV2 | H49: =IF(Lähtötiedot!$D$60="","",Lähtötiedot!$D$60) -> HAJAUTETTU KONEELLINEN TULO- JA POISTOILMANVAIHTO LTO 50 % | I49: =IF(Lähtötiedot!$E$60="","",Lähtötiedot!$E$60-Lähtötiedot!E58) -> 98000 | J49: =IF(Lähtötiedot!$F$60="","",Lähtötiedot!$F$60) -> -259 | K49: =IF(Lähtötiedot!$G$60="","",Lähtötiedot!$G$60) -> 38.6 | L49: =IF(AND($J$49="",$K$49="",Lähtötiedot!$H$60=""),"",($E$14*$J$49+$E$15*$K$49+Lähtötiedot!$H$60)) -> -8288 | M49: =IF(Lähtötiedot!$I$60="","",Lähtötiedot!$I$60) -> 30 | N49: =IF(AND($I$49="",$L$49=""),"",$I$49/-$L$49) -> 11.82432432 | O49: =IF($N$49="","",$M$49/$N$49) -> 2.537142857
B50: =IF(OR($N$50="",$N$50<0),"",RANK(Temp!$A$15,Temp!$A$3:$A$15,1)) ->  | C50: =IF(OR($O$50="",$O$50<0),"",RANK(Temp!$B$15,Temp!$B$3:$B$15,0)) ->  | D50: =IF(F50>0,RANK(Temp!$C$15,Temp!$C$3:$C$15,0),"") ->  | F50: =IF($L$50="",0,RATE($M$50,$L$50,$I$50,,,0.9)) -> 0 | G50: =Lähtötiedot!$C$61 -> IV3 | H50: =IF(Lähtötiedot!$D$61="","",Lähtötiedot!$D$61) ->  | I50: =IF(Lähtötiedot!$E$61="","",Lähtötiedot!$E$61) ->  | J50: =IF(Lähtötiedot!$F$61="","",Lähtötiedot!$F$61) ->  | K50: =IF(Lähtötiedot!$G$61="","",Lähtötiedot!$G$61) ->  | L50: =IF(AND($J$50="",$K$50="",Lähtötiedot!$H$61=""),"",($E$14*$J$50+$E$15*$K$50+Lähtötiedot!$H$61)) ->  | M50: =IF(Lähtötiedot!$I$61="","",Lähtötiedot!$I$61) ->  | N50: =IF(AND($I$50="",$L$50=""),"",$I$50/-$L$50) ->  | O50: =IF($N$50="","",$M$50/$N$50) -> 
B52: VALINTOJEN VAIKUTUKSET YHTEENSÄ
I53: 1142444 | J53: -620 | K53: 38.6 | L53: -36195
B58: TEHDYT VALINNAT LISTATTUNA
B60: =IF(OR($N$22="",$N$22<0),"",RANK(Temp!$A$3,Temp!$A$3:$A$15,1)) -> 5 | C60: =IF(OR($O$22="",$O$22<0),"",RANK(Temp!$B$3,Temp!$B$3:$B$15,0)) -> 3 | D60: =IF($F$22>0,RANK(Temp!$C$3,Temp!$C$3:$C$15,0),"") -> 4 | F60: =IF($L$22="",0,RATE($M$22,$L$22,$I$22,,,0.9)) -> 0.1125532469 | G60: =Lähtötiedot!$C$21 -> YP1 | H60: =IF(Lähtötiedot!$D$21="","",Lähtötiedot!$D$21) -> ERISTYS 200 + 50 mm | I60: =IF(Lähtötiedot!$E$21="","",Lähtötiedot!$E$21-Lähtötiedot!$E$20) -> 2628 | J60: =IF(Lähtötiedot!$F$21="","",Lähtötiedot!$F$21) -> -6 | K60: =IF(Lähtötiedot!$G$21="","",Lähtötiedot!$G$21) -> 0 | L60: =IF(AND($J$22="",$K$22="",Lähtötiedot!$H$21=""),"",($E$14*$J$22+$E$15*$K$22+Lähtötiedot!$H$21)) -> -300 | M60: =IF(Lähtötiedot!$I$21="","",Lähtötiedot!$I$21) -> 40 | N60: =IF(AND($I$22="",$L$22=""),"",$I$22/-$L$22) -> 8.76 | O60: =IF($N$22="","",$M$22/$N$22) -> 4.566210046
B61: =IF(OR($N$30="",$N$30<0),"",RANK(Temp!$A$6,Temp!$A$3:$A$15,1)) -> 6 | C61: =IF($O$30="","",RANK(Temp!$B$6,Temp!$B$3:$B$15,0)) -> 5 | D61: =IF($F$30>0,RANK(Temp!$C$6,Temp!$C$3:$C$15,0),"") -> 6 | F61: =IF($L$30="",0,RATE($M$30,$L$30,$I$30,,,0.9)) -> 0.08483877242 | G61: =Lähtötiedot!$C$32 -> US1 | H61: =IF(Lähtötiedot!$D$32="","",Lähtötiedot!$D$32) -> LISÄERISTYS 100 mm | I61: =IF(Lähtötiedot!$E$32="","",Lähtötiedot!$E$32-Lähtötiedot!$E$31) -> 5100 | J61: =IF(Lähtötiedot!$F$32="","",Lähtötiedot!$F$32) -> -9 | K61: =IF(Lähtötiedot!$G$32="","",Lähtötiedot!$G$32) -> 0 | L61: =IF(AND($J$30="",$K$30="",Lähtötiedot!$H$32=""),"",($E$14*$J$30+$E$15*$K$30+Lähtötiedot!$H$32)) -> -450 | M61: =IF(Lähtötiedot!$I$32="","",Lähtötiedot!$I$32) -> 40 | N61: =IF(AND($I$30="",$L$30=""),"",$I$30/-$L$30) -> 11.33333333 | O61: =IF($N$30="","",$M$30/$N$30) -> 3.529411765
B62: =IF(OR($N$40="",$N$40<0),"",RANK(Temp!$A$10,Temp!$A$3:$A$15,1)) -> 2 | C62: =IF(OR($O$40="",$O$40<0),"",RANK(Temp!$B$10,Temp!$B$3:$B$15,0)) -> 1 | D62: =IF($F$40>0,RANK(Temp!$C$10,Temp!$C$3:$C$15,0),"") -> 2 | F62: =IF($L$40="",0,RATE($M$40,$L$40,$I$40,,,0.9)) -> 0.2062841464 | G62: =Lähtötiedot!$C$45 -> IKK2 | H62: =IF(Lähtötiedot!$D$45="","",Lähtötiedot!$D$45) -> UUSI IKKUNA U=1,0 | I62: =IF(Lähtötiedot!$E$45="","",Lähtötiedot!$E$45-Lähtötiedot!$E$43) -> 10868 | J62: =IF(Lähtötiedot!$F$45="","",Lähtötiedot!$F$45) -> -45 | K62: =IF(Lähtötiedot!$G$45="","",Lähtötiedot!$G$45) -> 0 | L62: =IF(AND($J$40="",$K$40="",Lähtötiedot!$H$45=""),"",($E$14*$J$40+$E$15*$K$40+Lähtötiedot!$H$45)) -> -2250 | M62: =IF(Lähtötiedot!$I$45="","",Lähtötiedot!$I$45) -> 30 | N62: =IF(AND($I$40="",$L$40=""),"",$I$40/-$L$40) -> 4.830222222 | O62: =IF($N$40="","",$M$40/$N$40) -> 6.210894369
B63: =IF(OR($N$45="",$N$45<0),"",RANK(Temp!$A$12,Temp!$A$3:$A$15,1)) -> 1 | C63: =IF(OR($O$45="",$O$45<0),"",RANK(Temp!$B$12,Temp!$B$3:$B$15,0)) -> 4 | D63: =IF($F$45>0,RANK(Temp!$C$12,Temp!$C$3:$C$15,0),"") -> 1 | F63: =IF($L$45="",0,RATE($M$45,$L$45,$I$45,,,0.9)) -> 0.2308922848 | G63: =Lähtötiedot!$C$53 -> VKM | H63: =IF(Lähtötiedot!$D$53="","",Lähtötiedot!$D$53) -> ASUNTOKOHTAINEN MITTAUS | I63: =IF(Lähtötiedot!$E$53="","",Lähtötiedot!$E$53) -> 46800 | J63: =IF(Lähtötiedot!$F$53="","",Lähtötiedot!$F$53) -> -29 | K63: =IF(Lähtötiedot!$G$53="","",Lähtötiedot!$G$53) -> 0 | L63: =IF(AND($J$45="",$K$45="",Lähtötiedot!$H$53=""),"",($E$14*$J$45+$E$15*$K$45+Lähtötiedot!$H$53)) -> -11307 | M63: =IF(Lähtötiedot!$I$53="","",Lähtötiedot!$I$53) -> 15 | N63: =IF(AND($I$45="",$L$45=""),"",$I$45/-$L$45) -> 4.13902892 | O63: =IF($N$45="","",$M$45/$N$45) -> 3.624038462
B64: =IF(OR($N$48="",$N$48<0),"",RANK(Temp!$A$13,Temp!$A$3:$A$15,1)) -> 4 | C64: =IF(OR($O$48="",$O$48<0),"",RANK(Temp!$B$13,Temp!$B$3:$B$15,0)) -> 6 | D64: =IF($F$48>0,RANK(Temp!$C$13,Temp!$C$3:$C$15,0),"") -> 5 | F64: =IF($L$48="",0,RATE($M$48,$L$48,$I$48,,,0.9)) -> 0.1107626467 | G64: =Lähtötiedot!$C$59 -> IV1 | H64: =IF(Lähtötiedot!$D$59="","",Lähtötiedot!$D$59) -> KESKITETTY KONEELLINEN TULO- JA POISTOILMANVAIHTO LTO 50 % | I64: =IF(Lähtötiedot!$E$59="","",Lähtötiedot!$E$59-Lähtötiedot!$E$58) -> 78400 | J64: =IF(Lähtötiedot!$F$59="","",Lähtötiedot!$F$59) -> -259 | K64: =IF(Lähtötiedot!$G$59="","",Lähtötiedot!$G$59) -> 38.6 | L64: =IF(AND($J$48="",$K$48="",Lähtötiedot!$H$59=""),"",($E$14*$J$48+$E$15*$K$48+Lähtötiedot!$H$59)) -> -9072 | M64: =IF(Lähtötiedot!$I$59="","",Lähtötiedot!$I$59) -> 30 | N64: =IF(AND($I$48="",$L$48=""),"",$I$48/-$L$48) -> 8.641975309 | O64: =IF($N$48="","",$M$48/$N$48) -> 3.471428571

Sheet Yhteenveto valinnoista
C2: KERROSTALOJEN KORJAUSTOIMINNAN ENERGIATALOUDELLISTEN VALINTOJEN VERTAILU
F3: Rakenne- ja LVIS-teknisten energiansäästötoimenpiteiden valinta rakenne- ja laitetasolla
C5: Yhteenveto valinnoista
B10: VALINTAJÄRJESTYS | E10: VALINNAN SISÄINEN KORKO [%] | F10: TOIMEN- PITEEN TUNNUS | G10: HARKITTAVA ENERGIANSÄÄSTÖTOIMENPIDE | H10: RAKENNUS- KUSTANNUSERO [€] | I10: LÄMMITYSENERGIAN KULUTUKSEN MUUTOS [MWh/a] | J10: SÄHKÖENERGIAN KULUTUKSEN MUUTOS [MWh/a] | K10: KUSTANNUSTEN VUOSIMUUTOS [€/a] | L10: PITOAIKA [a] | M10: TAKAISIN- MAKSUAIKA [a] | N10: TAKAISIN- MAKSU- KERRAT PITOAIKANA
B11: TAKAISIN- MAKSU- AJAN MUKAAN | C11: TAKAISIN- MAKSU- KERTOJEN MUKAAN | D11: SISÄISEN KORON MUKAAN
B13: =Lähtötiedot!C18 -> YLÄPOHJA
B14: 5 | C14: 3 | D14: 4 | E14: 0.1125532469 | F14: YP1 | G14: ERISTYS 200 + 50 mm | H14: 2628 | I14: -6 | J14: 0 | K14: -300 | L14: 40 | M14: 8.76 | N14: 4.566210046
B16: =Lähtötiedot!C29 -> ULKOSEINÄ
B17: 6 | C17: 5 | D17: 6 | E17: 0.08483877242 | F17: US1 | G17: LISÄERISTYS 100 mm | H17: 5100 | I17: -9 | J17: 0 | K17: -450 | L17: 40 | M17: 11.33333333 | N17: 3.529411765
B19: =Lähtötiedot!C40 -> IKKUNAT
B20: 2 | C20: 1 | D20: 2 | E20: 0.2062841464 | F20: IKK2 | G20: UUSI IKKUNA U=1,0 | H20: 10868 | I20: -45 | J20: 0 | K20: -2250 | L20: 30 | M20: 4.830222222 | N20: 6.210894369
B22: =Lähtötiedot!C51 -> VEDENKULUTUKSEN MITTAUS
B23: 1 | C23: 4 | D23: 1 | E23: 0.2308922848 | F23: VKM | G23: ASUNTOKOHTAINEN MITTAUS | H23: 46800 | I23: -29 | J23: 0 | K23: -11307 | L23: 15 | M23: 4.13902892 | N23: 3.624038462
B25: =Lähtötiedot!C56 -> ILMANVAIHTOJÄRJESTELMÄ
B26: 4 | C26: 6 | D26: 5 | E26: 0.1107626467 | F26: IV1 | G26: KESKITETTY KONEELLINEN TULO- JA POISTOILMANVAIHTO LTO 50 % | H26: 78400 | I26: -259 | J26: 38.6 | K26: -9072 | L26: 30 | M26: 8.641975309 | N26: 3.471428571
B28: KAIKKI PARANNUKSET YHTEENSÄ
H29: 1142444 | I29: -620 | J29: 38.6 | K29: -36195
B32: ENERGIATALOUDELLISISTA LISÄVALINNOISTA | F32: ENERGIATALOUDELISILLA LISÄVALINNOILLA | I32: ENERGIATALOUDELLISILLA LISÄVALINNOILLA
B33: AIHEUTUVA KUSTANNUSERO | F33: SAAVUTETTAVA ENERGIANSÄÄSTÖ [MWh/a] | I33: VUOSITTAIN SAAVUTETTAVA KUSTANNUSSÄÄSTÖ
B34: =IF($F$14="","",$F$14) -> YP1 | C34: =IF($D$14="",0,$H$14) -> 2628 | F34: =IF(F14="","",F14) -> YP1 | G34: =IF(D14="",0,-(I14+J14)) -> 6 | I34: =IF($F14="","",$F14) -> YP1 | J34: =IF($D14="",0,-$K14) -> 300
B35: =IF($F$17="","",$F$17) -> US1 | C35: =IF($D$17="",0,$H$17) -> 5100 | F35: =IF(F17="","",F17) -> US1 | G35: =IF(D17="",0,-(I17+J17)) -> 9 | I35: =IF($F17="","",$F17) -> US1 | J35: =IF($D17="",0,-$K17) -> 450
B36: =IF($F$20="","",$F$20) -> IKK2 | C36: =IF($D$20="",0,$H$20) -> 10868 | F36: =IF(F20="","",F20) -> IKK2 | G36: =IF(D20="",0,-(I20+J20)) -> 45 | I36: =IF($F20="","",$F20) -> IKK2 | J36: =IF($D20="",0,-$K20) -> 2250
B37: =IF($F$23="","",$F$23) -> VKM | C37: =IF($D$23="",0,$H$23) -> 46800 | F37: =IF(F23="","",F23) -> VKM | G37: =IF(D23="",0,-(I23+J23)) -> 29 | I37: =IF($F23="","",$F23) -> VKM | J37: =IF($D23="",0,-$K23) -> 11307
B38: =IF($F$26="","",$F$26) -> IV1 | C38: =IF($D$26="",0,$H$26) -> 78400 | F38: =IF(F26="","",F26) -> IV1 | G38: =IF(D26="",0,-(I26+J26)) -> 220.4 | I38: =IF($F26="","",$F26) -> IV1 | J38: =IF($D26="",0,-$K26) -> 9072
B39: YHTEENSÄ | C39: =SUM(C34:D38) -> 143796 | F39: YHTEENSÄ | G39: =SUM(G34:G38) -> 309.4 | I39: YHTEENSÄ | J39: =SUM(J34:K38) -> 23379
B42: LISÄVALINTOJEN KUSTANNUS/brm2 | F42: LISÄVALINNOILLA SAAVUTETTAVA | I42: ENERGIATALOUDELLISTEN LISÄVALINTOJEN
B43: [€/brm2] | F43: ENERGIANSÄÄSTÖ/brm2 [kWh/brm2/a] | I43: KUSTANNUS/ENERGIANSÄÄSTÖ [€/(kWh/a)]
B44: =IF($F$14="","",$F$14) -> YP1 | C44: =IF(C34=0,0,C34/'Toimenpiteiden valitseminen'!$N$8) -> 0.3631840796 | F44: =IF($F$14="","",$F$14) -> YP1 | G44: =IF(G34=0,0,(1000*G34)/'Toimenpiteiden valitseminen'!$N$8) -> 0.8291873964 | I44: =IF($F$14="","",$F$14) -> YP1 | J44: =IF($G34=0,0,$C34/(1000*$G34)) -> 0.438
B45: =IF($F$17="","",$F$17) -> US1 | C45: =IF(C35=0,0,C35/'Toimenpiteiden valitseminen'!$N$8) -> 0.7048092869 | F45: =IF($F$17="","",$F$17) -> US1 | G45: =IF(G35=0,0,(1000*G35)/'Toimenpiteiden valitseminen'!$N$8) -> 1.243781095 | I45: =IF($F$17="","",$F$17) -> US1 | J45: =IF($G35=0,0,$C35/(1000*$G35)) -> 0.5666666667
B46: =IF($F$20="","",$F$20) -> IKK2 | C46: =IF(C36=0,0,C36/'Toimenpiteiden valitseminen'!$N$8) -> 1.501934771 | F46: =IF($F$20="","",$F$20) -> IKK2 | G46: =IF(G36=0,0,(1000*G36)/'Toimenpiteiden valitseminen'!$N$8) -> 6.218905473 | I46: =IF($F$20="","",$F$20) -> IKK2 | J46: =IF($G36=0,0,$C36/(1000*$G36)) -> 0.2415111111
B47: =IF($F$23="","",$F$23) -> VKM | C47: =IF(C37=0,0,C37/'Toimenpiteiden valitseminen'!$N$8) -> 6.467661692 | F47: =IF($F$23="","",$F$23) -> VKM | G47: =IF(G37=0,0,(1000*G37)/'Toimenpiteiden valitseminen'!$N$8) -> 4.007739082 | I47: =IF($F$23="","",$F$23) -> VKM | J47: =IF($G37=0,0,$C37/(1000*$G37)) -> 1.613793103
B48: =IF($F$26="","",$F$26) -> IV1 | C48: =IF(C38=0,0,C38/'Toimenpiteiden valitseminen'!$N$8) -> 10.83471531 | F48: =IF($F$26="","",$F$26) -> IV1 | G48: =IF(G38=0,0,(1000*G38)/'Toimenpiteiden valitseminen'!$N$8) -> 30.45881703 | I48: =IF($F$26="","",$F$26) -> IV1 | J48: =IF($G38=0,0,$C38/(1000*$G38)) -> 0.3557168784
B49: YHTEENSÄ | C49: =SUM(C44:D48) -> 19.87230514 | F49: YHTEENSÄ | G49: =SUM(G44:G48) -> 42.75843007 | I49: YHTEENSÄ | J49: =SUM(J44:K48) -> 3.21568776
B52: LISÄVALINTOJEN KUSTANNUS/hum2 | F52: LISÄVALINNOILLA SAAVUTETTAVA
B53: [€/hum2] | F53: ENERGIANSÄÄSTÖ/hum2 [kWh/hum2/a]
B54: =IF($F$14="","",$F$14) -> YP1 | C54: =IF(C34=0,0,C34/'Toimenpiteiden valitseminen'!$N$9) -> 0.5657696448 | F54: =IF($F$14="","",$F$14) -> YP1 | G54: =IF(G34=0,0,(1000*G34)/'Toimenpiteiden valitseminen'!$N$9) -> 1.291711518
B55: =IF($F$17="","",$F$17) -> US1 | C55: =IF(C35=0,0,C35/'Toimenpiteiden valitseminen'!$N$9) -> 1.09795479 | F55: =IF($F$17="","",$F$17) -> US1 | G55: =IF(G35=0,0,(1000*G35)/'Toimenpiteiden valitseminen'!$N$9) -> 1.937567277
B56: =IF($F$20="","",$F$20) -> IKK2 | C56: =IF(C36=0,0,C36/'Toimenpiteiden valitseminen'!$N$9) -> 2.339720129 | F56: =IF($F$20="","",$F$20) -> IKK2 | G56: =IF(G36=0,0,(1000*G36)/'Toimenpiteiden valitseminen'!$N$9) -> 9.687836383
B57: =IF($F$23="","",$F$23) -> VKM | C57: =IF(C37=0,0,C37/'Toimenpiteiden valitseminen'!$N$9) -> 10.07534984 | F57: =IF($F$23="","",$F$23) -> VKM | G57: =IF(G37=0,0,(1000*G37)/'Toimenpiteiden valitseminen'!$N$9) -> 6.243272336
B58: =IF($F$26="","",$F$26) -> IV1 | C58: =IF(C38=0,0,C38/'Toimenpiteiden valitseminen'!$N$9) -> 16.87836383 | F58: =IF($F$26="","",$F$26) -> IV1 | G58: =IF(G38=0,0,(1000*G38)/'Toimenpiteiden valitseminen'!$N$9) -> 47.44886975
B59: YHTEENSÄ | C59: =SUM(C54:D58) -> 30.95715823 | F59: YHTEENSÄ | G59: =SUM(G54:G58) -> 66.60925727
C62: PERUS- RATKAISUT | D62: EDELLISET VALINTATASOT | E62: VIIMEISIMMÄT VALINTATASOT | F62: YHTEENSÄ | I62: ENNEN KORJAUKSIA | J62: PERUSRATKAISUJEN JÄLKEEN | K62: LISÄVALINTOJEN JÄLKEEN
B63: KUSTANNUS/ LISÄKUSTANNUS | C63: =Temp!B44 -> 986108 | D63: =H29-(C63+E63) -> 12540 | E63: =C39 -> 143796 | F63: =C63+D63+E63 -> 1142444 | H63: ENERGIAN- KULUTUS [MWh/a] | I63: ='Toimenpiteiden valitseminen'!E11 -> 1179 | J63: =(('Toimenpiteiden valitseminen'!E12*Lähtötiedot!G14)/1000)-C64 -> 1334.212875 | K63: =('Toimenpiteiden valitseminen'!E12*Lähtötiedot!G14)/1000-(C64+D64+E64) -> 978.8128749
B64: ENERGIANSÄÄSTÖ [MWh/a] | C64: =Temp!E44 -> 226 | D64: =-(I29+J29)-(C64+E64) -> 46 | E64: =G39 -> 309.4 | F64: =C64+D64+E64 -> 581.4 | H64: ENERGIANKULUTUS / HUONEISTONELIÖ [kWh/hum2/a] | I64: =(1000*I63)/Lähtötiedot!K9 -> 359.0133983 | J64: =(1000*J63)/Lähtötiedot!G15 -> 287.2363563 | K64: =(1000*K63)/Lähtötiedot!G15 -> 210.7239774
B65: KUSTANNUS/ ENERGIANSÄÄSTÖ [€/(kWh/a)] | C65: =IF(C64=0,0,C63/(1000*C64)) -> 4.363309735 | D65: =IF(D64=0,0,D63/(1000*D64)) -> 0.2726086957 | E65: =IF(E64=0,0,E63/(1000*E64)) -> 0.4647575953 | F65: =IF(F64=0,0,F63/(1000*F64)) -> 1.96498796 | H65: ET-LUKU [kWh/brm2/a] | I65: ='Toimenpiteiden valitseminen'!E12 -> 215.6181419 | J65: =(1000*J63)/'Toimenpiteiden valitseminen'!$N$8 -> 184.3854167 | K65: =(1000*K63)/'Toimenpiteiden valitseminen'!$N$8 -> 135.2698832
B66: VUOSITTAISET KUSTANNUS- SÄÄSTÖT | C66: =Temp!F44 -> 10516 | D66: =-K29-(C66+E66) -> 2300 | E66: =J39 -> 23379 | F66: =C66+D66+E66 -> 36195 | H66: ET-LUOKKA | I66: =IF(I65="","",IF(I65<=100,"A",IF(I65<=120,"B",IF(I65<=140,"C",IF(I65<=180,"D",IF(I65<=230,"E",IF(I65<=280,"F","G"))))))) -> E | J66: =IF(J65="","",IF(J65<=100,"A",IF(J65<=120,"B",IF(J65<=140,"C",IF(J65<=180,"D",IF(J65<=230,"E",IF(J65<=280,"F","G"))))))) -> E | K66: =IF(K65="","",IF(K65<=100,"A",IF(K65<=120,"B",IF(K65<=140,"C",IF(K65<=180,"D",IF(K65<=230,"E",IF(K65<=280,"F","G"))))))) -> C
H67: RAKENNUS- KUSTANNUKSET | I67: 0 | J67: =C63 -> 986108 | K67: =C63+D63+E63 -> 1142444
H68: VUOSITTAISET KUSTANNUS- SÄÄSTÖT | I68: 0 | J68: =C66 -> 10516 | K68: =C66+D66+E66 -> 36195

Sheet Kuvaajat
C2: KERROSTALOJEN KORJAUSTOIMINNAN ENERGIATALOUDELLISTEN VALINTOJEN VERTAILU
E3: Rakenne- ja LVIS-teknisten energiansäästötoimenpiteiden valinta rakenne- ja laitetasolla
C5: Kuvaajat

Sheet Temp
A1: MUIDEN KUIN PERUSRATKAISUJEN
A2: TAKAISINMAKSUAJAT | B2: TAKAISINMAKSUKERRAT PITOAIKANA | C2: SISÄISET KOROT
A3: ='Toimenpiteiden valitseminen'!N22 -> 8.76 | B3: ='Toimenpiteiden valitseminen'!O22 -> 4.566210046 | C3: ='Toimenpiteiden valitseminen'!F22 -> 0.1125532469 | D3: YP1
A4: ='Toimenpiteiden valitseminen'!N24 -> 27.04 | B4: ='Toimenpiteiden valitseminen'!O24 -> 1.479289941 | C4: ='Toimenpiteiden valitseminen'!F24 -> 0.02066317746 | D4: YP2
A5: ='Toimenpiteiden valitseminen'!N26 ->  | B5: ='Toimenpiteiden valitseminen'!O26 ->  | C5: ='Toimenpiteiden valitseminen'!F26 -> 0 | D5: YP3
A6: ='Toimenpiteiden valitseminen'!N30 -> 11.33333333 | B6: ='Toimenpiteiden valitseminen'!O30 -> 3.529411765 | C6: ='Toimenpiteiden valitseminen'!F30 -> 0.08483877242 | D6: US1
A7: ='Toimenpiteiden valitseminen'!N32 -> 57.29411765 | B7: ='Toimenpiteiden valitseminen'!O32 -> 0.6981519507 | C7: ='Toimenpiteiden valitseminen'!F32 -> -0.01649445252 | D7: US2
A8: ='Toimenpiteiden valitseminen'!N34 ->  | B8: ='Toimenpiteiden valitseminen'!O34 ->  | C8: ='Toimenpiteiden valitseminen'!F34 -> 0 | D8: US3
A9: ='Toimenpiteiden valitseminen'!N38 -> 5.452173913 | B9: ='Toimenpiteiden valitseminen'!O38 -> 5.502392344 | C9: ='Toimenpiteiden valitseminen'!F38 -> 0.1822034163 | D9: IKK1
A10: ='Toimenpiteiden valitseminen'!N40 -> 4.830222222 | B10: ='Toimenpiteiden valitseminen'!O40 -> 6.210894369 | C10: ='Toimenpiteiden valitseminen'!F40 -> 0.2062841464 | D10: IKK2
A11: ='Toimenpiteiden valitseminen'!N42 ->  | B11: ='Toimenpiteiden valitseminen'!O42 ->  | C11: ='Toimenpiteiden valitseminen'!F42 -> 0 | D11: IKK3
A12: ='Toimenpiteiden valitseminen'!N45 -> 4.13902892 | B12: ='Toimenpiteiden valitseminen'!O45 -> 3.624038462 | C12: ='Toimenpiteiden valitseminen'!F45 -> 0.2308922848 | D12: VKM
A13: ='Toimenpiteiden valitseminen'!N48 -> 8.641975309 | B13: ='Toimenpiteiden valitseminen'!O48 -> 3.471428571 | C13: ='Toimenpiteiden valitseminen'!F48 -> 0.1107626467 | D13: IV1
A14: ='Toimenpiteiden valitseminen'!N49 -> 11.82432432 | B14: ='Toimenpiteiden valitseminen'!O49 -> 2.537142857 | C14: ='Toimenpiteiden valitseminen'!F49 -> 0.07487888638 | D14: IV2
A15: ='Toimenpiteiden valitseminen'!N50 ->  | B15: ='Toimenpiteiden valitseminen'!O50 ->  | C15: ='Toimenpiteiden valitseminen'!F50 -> 0 | D15: IV3
A18: =Vertailu!C11 -> VALINTA- JÄRJESTYS | B18: =Vertailu!D11 -> SISÄINEN KORKO | C18: =Vertailu!E11 -> TOIMENPITEEN TUNNUS | D18: =Vertailu!F11 -> KUSTANNUSTEN MUUTOS [€] | E18: =Vertailu!G11 -> LÄMMITYSENERGIAN KULUTUKSEN MUUTOS [MWh/a] | F18: =Vertailu!H11 -> SÄHKÖENERGIAN KULUTUKSEN MUUTOS [MWh/a] | G18: =Vertailu!J11 -> KUSTANNUSTEN VUOSIMUUTOS [€/a] | H18: =Vertailu!K11 -> PITOAIKA [a] | I18: =Vertailu!L11 -> KUSTANNUS / ENERGIANSÄÄSTÖ [€/(kWh/a)]
A19: =RANK(I19,$I$19:$I$35,1) -> 17 | B19: =IF(Vertailu!D12="",0,Vertailu!D12) -> 0.2308922848 | C19: =IF(Vertailu!E12="",0,Vertailu!E12) -> VKM | D19: =IF(Vertailu!F12="",0,Vertailu!F12) -> 46800 | E19: =IF(Vertailu!G12="",0,Vertailu!G12) -> -29 | F19: =IF(Vertailu!H12="",0,Vertailu!H12) -> 0 | G19: =IF(Vertailu!J12="",0,Vertailu!J12) -> -11307 | H19: =IF(Vertailu!K12="",0,Vertailu!K12) -> 15 | I19: =IF(Vertailu!L12="",0,Vertailu!L12) -> 1.613793103
A20: =RANK(I20,$I$19:$I$35,1) -> 10 | B20: =IF(Vertailu!D13="",0,Vertailu!D13) -> 0.2062841464 | C20: =IF(Vertailu!E13="",0,Vertailu!E13) -> IKK2 | D20: =IF(Vertailu!F13="",0,Vertailu!F13) -> 10868 | E20: =IF(Vertailu!G13="",0,Vertailu!G13) -> -45 | F20: =IF(Vertailu!H13="",0,Vertailu!H13) -> 0 | G20: =IF(Vertailu!J13="",0,Vertailu!J13) -> -2250 | H20: =IF(Vertailu!K13="",0,Vertailu!K13) -> 30 | I20: =IF(Vertailu!L13="",0,Vertailu!L13) -> 0.2415111111
A21: 11 | B21: =IF(Vertailu!D14="",0,Vertailu!D14) -> 0.1822034163 | C21: =IF(Vertailu!E14="",0,Vertailu!E14) -> IKK1 | D21: =IF(Vertailu!F14="",0,Vertailu!F14) -> 12540 | E21: =IF(Vertailu!G14="",0,Vertailu!G14) -> -46 | F21: =IF(Vertailu!H14="",0,Vertailu!H14) -> 0 | G21: =IF(Vertailu!J14="",0,Vertailu!J14) -> -2300 | H21: =IF(Vertailu!K14="",0,Vertailu!K14) -> 30 | I21: =IF(Vertailu!L14="",0,Vertailu!L14) -> 0.2726086957
A22: 13 | B22: =IF(Vertailu!D15="",0,Vertailu!D15) -> 0.1125532469 | C22: =IF(Vertailu!E15="",0,Vertailu!E15) -> YP1 | D22: =IF(Vertailu!F15="",0,Vertailu!F15) -> 2628 | E22: =IF(Vertailu!G15="",0,Vertailu!G15) -> -6 | F22: =IF(Vertailu!H15="",0,Vertailu!H15) -> 0 | G22: =IF(Vertailu!J15="",0,Vertailu!J15) -> -300 | H22: =IF(Vertailu!K15="",0,Vertailu!K15) -> 40 | I22: =IF(Vertailu!L15="",0,Vertailu!L15) -> 0.438
A23: 12 | B23: =IF(Vertailu!D16="",0,Vertailu!D16) -> 0.1107626467 | C23: =IF(Vertailu!E16="",0,Vertailu!E16) -> IV1 | D23: =IF(Vertailu!F16="",0,Vertailu!F16) -> 78400 | E23: =IF(Vertailu!G16="",0,Vertailu!G16) -> -259 | F23: =IF(Vertailu!H16="",0,Vertailu!H16) -> 38.6 | G23: =IF(Vertailu!J16="",0,Vertailu!J16) -> -9072 | H23: =IF(Vertailu!K16="",0,Vertailu!K16) -> 30 | I23: =IF(Vertailu!L16="",0,Vertailu!L16) -> 0.3557168784
A24: 15 | B24: =IF(Vertailu!D17="",0,Vertailu!D17) -> 0.08483877242 | C24: =IF(Vertailu!E17="",0,Vertailu!E17) -> US1 | D24: =IF(Vertailu!F17="",0,Vertailu!F17) -> 5100 | E24: =IF(Vertailu!G17="",0,Vertailu!G17) -> -9 | F24: =IF(Vertailu!H17="",0,Vertailu!H17) -> 0 | G24: =IF(Vertailu!J17="",0,Vertailu!J17) -> -450 | H24: =IF(Vertailu!K17="",0,Vertailu!K17) -> 40 | I24: =IF(Vertailu!L17="",0,Vertailu!L17) -> 0.5666666667
A25: 14 | B25: =IF(Vertailu!D18="",0,Vertailu!D18) -> 0.07487888638 | C25: =IF(Vertailu!E18="",0,Vertailu!E18) -> IV2 | D25: =IF(Vertailu!F18="",0,Vertailu!F18) -> 98000 | E25: =IF(Vertailu!G18="",0,Vertailu!G18) -> -259 | F25: =IF(Vertailu!H18="",0,Vertailu!H18) -> 38.6 | G25: =IF(Vertailu!J18="",0,Vertailu!J18) -> -8288 | H25: =IF(Vertailu!K18="",0,Vertailu!K18) -> 30 | I25: =IF(Vertailu!L18="",0,Vertailu!L18) -> 0.444646098
A26: 16 | B26: =IF(Vertailu!D19="",0,Vertailu!D19) -> 0.02066317746 | C26: =IF(Vertailu!E19="",0,Vertailu!E19) -> YP2 | D26: =IF(Vertailu!F19="",0,Vertailu!F19) -> 5408 | E26: =IF(Vertailu!G19="",0,Vertailu!G19) -> -4 | F26: =IF(Vertailu!H19="",0,Vertailu!H19) -> 0 | G26: =IF(Vertailu!J19="",0,Vertailu!J19) -> -200 | H26: =IF(Vertailu!K19="",0,Vertailu!K19) -> 40 | I26: =IF(Vertailu!L19="",0,Vertailu!L19) -> 1.352
A27: 1 | B27: =IF(Vertailu!D20="",0,Vertailu!D20) -> 0 | C27: =IF(Vertailu!E20="",0,Vertailu!E20) -> 0 | D27: =IF(Vertailu!F20="",0,Vertailu!F20) -> 0 | E27: =IF(Vertailu!G20="",0,Vertailu!G20) -> 0 | F27: =IF(Vertailu!H20="",0,Vertailu!H20) -> 0 | G27: =IF(Vertailu!J20="",0,Vertailu!J20) -> 0 | H27: =IF(Vertailu!K20="",0,Vertailu!K20) -> 0 | I27: =IF(Vertailu!L20="",0,Vertailu!L20) -> 0
A28: 1 | B28: =IF(Vertailu!D21="",0,Vertailu!D21) -> 0 | C28: =IF(Vertailu!E21="",0,Vertailu!E21) -> 0 | D28: =IF(Vertailu!F21="",0,Vertailu!F21) -> 0 | E28: =IF(Vertailu!G21="",0,Vertailu!G21) -> 0 | F28: =IF(Vertailu!H21="",0,Vertailu!H21) -> 0 | G28: =IF(Vertailu!J21="",0,Vertailu!J21) -> 0 | H28: =IF(Vertailu!K21="",0,Vertailu!K21) -> 0 | I28: =IF(Vertailu!L21="",0,Vertailu!L21) -> 0
A29: 1 | B29: =IF(Vertailu!D22="",0,Vertailu!D22) -> 0 | C29: =IF(Vertailu!E22="",0,Vertailu!E22) -> 0 | D29: =IF(Vertailu!F22="",0,Vertailu!F22) -> 0 | E29: =IF(Vertailu!G22="",0,Vertailu!G22) -> 0 | F29: =IF(Vertailu!H22="",0,Vertailu!H22) -> 0 | G29: =IF(Vertailu!J22="",0,Vertailu!J22) -> 0 | H29: =IF(Vertailu!K22="",0,Vertailu!K22) -> 0 | I29: =IF(Vertailu!L22="",0,Vertailu!L22) -> 0
A30: 1 | B30: =IF(Vertailu!D23="",0,Vertailu!D23) -> 0 | C30: =IF(Vertailu!E23="",0,Vertailu!E23) -> 0 | D30: =IF(Vertailu!F23="",0,Vertailu!F23) -> 0 | E30: =IF(Vertailu!G23="",0,Vertailu!G23) -> 0 | F30: =IF(Vertailu!H23="",0,Vertailu!H23) -> 0 | G30: =IF(Vertailu!J23="",0,Vertailu!J23) -> 0 | H30: =IF(Vertailu!K23="",0,Vertailu!K23) -> 0 | I30: =IF(Vertailu!L23="",0,Vertailu!L23) -> 0
A31: 1 | B31: =IF(Vertailu!D24="",0,Vertailu!D24) -> 0 | C31: =IF(Vertailu!E24="",0,Vertailu!E24) -> 0 | D31: =IF(Vertailu!F24="",0,Vertailu!F24) -> 0 | E31: =IF(Vertailu!G24="",0,Vertailu!G24) -> 0 | F31: =IF(Vertailu!H24="",0,Vertailu!H24) -> 0 | G31: =IF(Vertailu!J24="",0,Vertailu!J24) -> 0 | H31: =IF(Vertailu!K24="",0,Vertailu!K24) -> 0 | I31: =IF(Vertailu!L24="",0,Vertailu!L24) -> 0
A32: 1 | B32: =IF(Vertailu!D25="",0,Vertailu!D25) -> 0 | C32: =IF(Vertailu!E25="",0,Vertailu!E25) -> 0 | D32: =IF(Vertailu!F25="",0,Vertailu!F25) -> 0 | E32: =IF(Vertailu!G25="",0,Vertailu!G25) -> 0 | F32: =IF(Vertailu!H25="",0,Vertailu!H25) -> 0 | G32: =IF(Vertailu!J25="",0,Vertailu!J25) -> 0 | H32: =IF(Vertailu!K25="",0,Vertailu!K25) -> 0 | I32: =IF(Vertailu!L25="",0,Vertailu!L25) -> 0
A33: 1 | B33: =IF(Vertailu!D26="",0,Vertailu!D26) -> 0 | C33: =IF(Vertailu!E26="",0,Vertailu!E26) -> 0 | D33: =IF(Vertailu!F26="",0,Vertailu!F26) -> 0 | E33: =IF(Vertailu!G26="",0,Vertailu!G26) -> 0 | F33: =IF(Vertailu!H26="",0,Vertailu!H26) -> 0 | G33: =IF(Vertailu!J26="",0,Vertailu!J26) -> 0 | H33: =IF(Vertailu!K26="",0,Vertailu!K26) -> 0 | I33: =IF(Vertailu!L26="",0,Vertailu!L26) -> 0
A34: 1 | B34: =IF(Vertailu!D27="",0,Vertailu!D27) -> 0 | C34: =IF(Vertailu!E27="",0,Vertailu!E27) -> 0 | D34: =IF(Vertailu!F27="",0,Vertailu!F27) -> 0 | E34: =IF(Vertailu!G27="",0,Vertailu!G27) -> 0 | F34: =IF(Vertailu!H27="",0,Vertailu!H27) -> 0 | G34: =IF(Vertailu!J27="",0,Vertailu!J27) -> 0 | H34: =IF(Vertailu!K27="",0,Vertailu!K27) -> 0 | I34: =IF(Vertailu!L27="",0,Vertailu!L27) -> 0
A35: 1 | B35: =IF(Vertailu!D28="",0,Vertailu!D28) -> 0 | C35: =IF(Vertailu!E28="",0,Vertailu!E28) -> 0 | D35: =IF(Vertailu!F28="",0,Vertailu!F28) -> 0 | E35: =IF(Vertailu!G28="",0,Vertailu!G28) -> 0 | F35: =IF(Vertailu!H28="",0,Vertailu!H28) -> 0 | G35: =IF(Vertailu!J28="",0,Vertailu!J28) -> 0 | H35: =IF(Vertailu!K28="",0,Vertailu!K28) -> 0 | I35: =IF(Vertailu!L28="",0,Vertailu!L28) -> 0
A38: PERUSRATKAISUT
B39: RAKENNUSKUSTANNUS | C39: LÄMMITYSENERGIA | D39: SÄHKÖENERGIA | E39: ENERGIANSÄÄSTÖ | F39: KUSTANNUSMUUTOS
A40: PYP | B40: =Lähtötiedot!E20 -> 102828 | C40: =Lähtötiedot!F20 -> -35 | D40: =Lähtötiedot!G20 -> 0 | E40: =-(C40+D40) -> 35 | F40: =-'Toimenpiteiden valitseminen'!L21 -> 1750
A41: PUS | B41: =Lähtötiedot!E31 -> 484600 | C41: =Lähtötiedot!F31 -> -87 | D41: =Lähtötiedot!G31 -> 0 | E41: =-(C41+D41) -> 87 | F41: =-'Toimenpiteiden valitseminen'!L29 -> 4350
A42: PIKK | B42: =Lähtötiedot!E42 -> 359480 | C42: =Lähtötiedot!F42 -> -104 | D42: =Lähtötiedot!G42 -> 0 | E42: 104 | F42: =-'Toimenpiteiden valitseminen'!L37 -> 5200
A43: PIV | B43: =Lähtötiedot!E58 -> 39200 | C43: =Lähtötiedot!F58 -> 0 | D43: =Lähtötiedot!G58 -> 0 | E43: 0 | F43: =-'Toimenpiteiden valitseminen'!L47 -> -784
B44: =SUM(B40:B43) -> 986108 | C44: =SUM(C40:C43) -> -226 | D44: =SUM(D40:D43) -> 0 | E44: =SUM(E40:E43) -> 226 | F44: =SUM(F40:F43) -> 10516
A49: VALINTA- JÄRJESTYS | B49: SISÄINEN KORKO | C49: TOIMENPITEEN TUNNUS | D49: KUSTANNUSTEN MUUTOS [€] | E49: LÄMMITYSENERGIAN KULUTUKSEN MUUTOS [MWh/a] | F49: SÄHKÖENERGIAN KULUTUKSEN MUUTOS [MWh/a] | G49: VUOSITTAINEN KOKONAIS- ENERGIANSÄÄSTÖ [MWh/a] | H49: KUSTANNUSTEN VUOSIMUUTOS [€/a] | I49: PITOAIKA [a] | J49: KUSTANNUS / ENERGIANSÄÄSTÖ [€/(kWh/a)] | K49: KUMULATIIVINEN KUSTANNUS | L49: KUMULATIIVINEN ENERGIANSÄÄSTÖ | M49: KUSTANNUSTEN VUOSISÄÄSTÖT [€/a]
A50: 0 | B50: 0 | C50: 0 | D50: 0 | E50: 0 | F50: 0 | G50: 0 | H50: 0 | I50: 0 | J50: 0 | K50: =0/Lähtötiedot!G14 -> 0 | L50: 0 | M50: =-H50 -> 0
A51: 1 | B51: 0.2062841464 | C51: IKK2 | D51: 10868 | E51: -45 | F51: 0 | G51: 45 | H51: -2250 | I51: 30 | J51: 0.2415111111 | K51: =D51/Lähtötiedot!G14 -> 1.501934771 | L51: =(1000*G51)/Lähtötiedot!G14 -> 6.218905473 | M51: =-H51 -> 2250
A52: 2 | B52: 0.1822034163 | C52: IKK1 | D52: 12540 | E52: -46 | F52: 0 | G52: 46 | H52: -2300 | I52: 30 | J52: 0.2726086957 | K52: =K51+(D52/Lähtötiedot!$G$14) -> 3.234936429 | L52: =L51+((1000*G52)/Lähtötiedot!G14) -> 12.57600884 | M52: =-H52 -> 2300
A53: 3 | B53: 0.1107626467 | C53: IV1 | D53: 78400 | E53: -259 | F53: 38.6 | G53: 220.4 | H53: -9072 | I53: 30 | J53: 0.3557168784 | K53: =K52+(D53/Lähtötiedot!$G$14) -> 14.06965174 | L53: =L52+((1000*G53)/Lähtötiedot!G14) -> 43.03482587 | M53: 9072
A54: 4 | B54: 0.1125532469 | C54: YP1 | D54: 2628 | E54: -6 | F54: 0 | G54: 6 | H54: -300 | I54: 40 | J54: 0.438 | K54: =K53+(D54/Lähtötiedot!$G$14) -> 14.43283582 | L54: =L53+((1000*G54)/Lähtötiedot!G14) -> 43.86401327 | M54: 300
A55: 5 | B55: 0.07487888638 | C55: IV2 | D55: 98000 | E55: -259 | F55: 38.6 | G55: 220.4 | H55: -8288 | I55: 30 | J55: 0.444646098 | K55: =K54 -> 14.43283582 | L55: =L54 -> 43.86401327 | M55: 8288
A56: 6 | B56: 0.08483877242 | C56: US1 | D56: 5100 | E56: -9 | F56: 0 | G56: 9 | H56: -450 | I56: 40 | J56: 0.5666666667 | K56: =K55+(D56/Lähtötiedot!$G$14) -> 15.13764511 | L56: =L55+((1000*G56)/Lähtötiedot!G14) -> 45.10779436 | M56: 450
A57: 7 | B57: 0.02066317746 | C57: YP2 | D57: 5408 | E57: -4 | F57: 0 | G57: 4 | H57: -200 | I57: 40 | J57: 1.352 | K57: =K56+(D57/Lähtötiedot!$G$14) -> 15.88501935 | L57: =L56+((1000*G57)/Lähtötiedot!G14) -> 45.66058596 | M57: 200
A58: 8 | B58: 0.2308922848 | C58: VKM | D58: 46800 | E58: -29 | F58: 0 | G58: 29 | H58: -11307 | I58: 15 | J58: 1.613793103 | K58: =K57+(D58/Lähtötiedot!$G$14) -> 22.35268104 | L58: =L57+((1000*G58)/Lähtötiedot!G14) -> 49.66832504 | M58: 11307
K59: =K58+(D59/Lähtötiedot!$G$14) -> 22.35268104 | L59: =L58+((1000*G59)/Lähtötiedot!G14) -> 49.66832504 | M59: 0
K60: =K59+(D60/Lähtötiedot!$G$14) -> 22.35268104 | L60: =L59+((1000*G60)/Lähtötiedot!G14) -> 49.66832504 | M60: 0
K61: =K60+(D61/Lähtötiedot!$G$14) -> 22.35268104 | L61: =L60+((1000*G61)/Lähtötiedot!G14) -> 49.66832504 | M61: 0
K62: =K61+(D62/Lähtötiedot!$G$14) -> 22.35268104 | L62: =L61+((1000*G62)/Lähtötiedot!G14) -> 49.66832504 | M62: 0
K63: =K62+(D63/Lähtötiedot!$G$14) -> 22.35268104 | L63: =L62+((1000*G63)/Lähtötiedot!G14) -> 49.66832504 | M63: 0
K64: =K63+(D64/Lähtötiedot!$G$14) -> 22.35268104 | L64: =L63+((1000*G64)/Lähtötiedot!G14) -> 49.66832504 | M64: 0
K65: =K64+(D65/Lähtötiedot!$G$14) -> 22.35268104 | L65: =L64+((1000*G65)/Lähtötiedot!G14) -> 49.66832504 | M65: 0
K66: =K65+(D66/Lähtötiedot!$G$14) -> 22.35268104 | L66: =L65+((1000*G66)/Lähtötiedot!G14) -> 49.66832504 | M66: 0
K67: =K66+(D67/Lähtötiedot!$G$14) -> 22.35268104 | L67: =L66+((1000*G67)/Lähtötiedot!G14) -> 49.66832504 | M67: 0
A71: VALINTA- JÄRJESTYS | B71: SISÄINEN KORKO | C71: TOIMENPITEEN TUNNUS | D71: KUSTANNUSTEN MUUTOS [€] | E71: LÄMMITYSENERGIAN KULUTUKSEN MUUTOS [MWh/a] | F71: SÄHKÖENERGIAN KULUTUKSEN MUUTOS [MWh/a] | G71: VUOSITTAINEN KOKONAIS- ENERGIANSÄÄSTÖ [MWh/a] | H71: KUSTANNUSTEN VUOSIMUUTOS [€/a] | I71: PITOAIKA [a] | J71: KUSTANNUS / ENERGIANSÄÄSTÖ [€/(kWh/a)] | K71: KUSTANNUSTEN VUOSISÄÄSTÖT [€/a] | L71: TAKAISINMAKSUAIKA | M71: TAKAISINMAKSU- KERRAT PITOAIKANA
A72: =IF(ISNA(VLOOKUP(1,'Toimenpiteiden valitseminen'!$D$21:$O$50,1,FALSE)),"",VLOOKUP(1,'Toimenpiteiden valitseminen'!$D$21:$O$50,1,FALSE)) -> 1 | B72: =IF(ISNA(VLOOKUP(1,'Toimenpiteiden valitseminen'!$D$21:$O$50,3,FALSE)),"",VLOOKUP(1,'Toimenpiteiden valitseminen'!$D$21:$O$50,3,FALSE)) -> 0.2308922848 | C72: =IF(ISNA(VLOOKUP(1,'Toimenpiteiden valitseminen'!$D$21:$O$50,4,FALSE)),"",VLOOKUP(1,'Toimenpiteiden valitseminen'!$D$21:$O$50,4,FALSE)) -> VKM | D72: =IF(ISNA(VLOOKUP(1,'Toimenpiteiden valitseminen'!$D$21:$O$50,6,FALSE)),"",VLOOKUP(1,'Toimenpiteiden valitseminen'!$D$21:$O$50,6,FALSE)) -> 46800 | E72: =IF(ISNA(VLOOKUP(1,'Toimenpiteiden valitseminen'!$D$21:$O$50,7,FALSE)),"",VLOOKUP(1,'Toimenpiteiden valitseminen'!$D$21:$O$50,7,FALSE)) -> -29 | F72: =IF(ISNA(VLOOKUP(1,'Toimenpiteiden valitseminen'!$D$21:$O$50,8,FALSE)),"",VLOOKUP(1,'Toimenpiteiden valitseminen'!$D$21:$O$50,8,FALSE)) -> 0 | G72: =IF(AND(E72="",F72=""),"",-(E72+F72)) -> 29 | H72: =IF(ISNA(VLOOKUP(1,'Toimenpiteiden valitseminen'!$D$21:$O$50,9,FALSE)),"",VLOOKUP(1,'Toimenpiteiden valitseminen'!$D$21:$O$50,9,FALSE)) -> -11307 | I72: =IF(ISNA(VLOOKUP(1,'Toimenpiteiden valitseminen'!$D$21:$O$50,10,FALSE)),"",VLOOKUP(1,'Toimenpiteiden valitseminen'!$D$21:$O$50,10,FALSE)) -> 15 | J72: =IF(AND(E72="",F72=""),"",D72/(1000*G72)) -> 1.613793103 | K72: =-H72 -> 11307 | L72: =D72/K72 -> 4.13902892 | M72: =I72/L72 -> 3.624038462
A73: =IF(ISNA(VLOOKUP(2,'Toimenpiteiden valitseminen'!$D$21:$O$50,1,FALSE)),"",VLOOKUP(2,'Toimenpiteiden valitseminen'!$D$21:$O$50,1,FALSE)) -> 2 | B73: =IF(ISNA(VLOOKUP(2,'Toimenpiteiden valitseminen'!$D$21:$O$50,3,FALSE)),"",VLOOKUP(2,'Toimenpiteiden valitseminen'!$D$21:$O$50,3,FALSE)) -> 0.2062841464 | C73: =IF(ISNA(VLOOKUP(2,'Toimenpiteiden valitseminen'!$D$21:$O$50,4,FALSE)),"",VLOOKUP(2,'Toimenpiteiden valitseminen'!$D$21:$O$50,4,FALSE)) -> IKK2 | D73: =IF(ISNA(VLOOKUP(2,'Toimenpiteiden valitseminen'!$D$21:$O$50,6,FALSE)),"",VLOOKUP(2,'Toimenpiteiden valitseminen'!$D$21:$O$50,6,FALSE)) -> 10868 | E73: =IF(ISNA(VLOOKUP(2,'Toimenpiteiden valitseminen'!$D$21:$O$50,7,FALSE)),"",VLOOKUP(2,'Toimenpiteiden valitseminen'!$D$21:$O$50,7,FALSE)) -> -45 | F73: =IF(ISNA(VLOOKUP(2,'Toimenpiteiden valitseminen'!$D$21:$O$50,8,FALSE)),"",VLOOKUP(2,'Toimenpiteiden valitseminen'!$D$21:$O$50,8,FALSE)) -> 0 | G73: =IF(AND(E73="",F73=""),"",-(E73+F73)) -> 45 | H73: =IF(ISNA(VLOOKUP(2,'Toimenpiteiden valitseminen'!$D$21:$O$50,9,FALSE)),"",VLOOKUP(2,'Toimenpiteiden valitseminen'!$D$21:$O$50,9,FALSE)) -> -2250 | I73: =IF(ISNA(VLOOKUP(2,'Toimenpiteiden valitseminen'!$D$21:$O$50,10,FALSE)),"",VLOOKUP(2,'Toimenpiteiden valitseminen'!$D$21:$O$50,10,FALSE)) -> 30 | J73: =IF(AND(E73="",F73=""),"",D73/(1000*G73)) -> 0.2415111111 | K73: =-H73 -> 2250 | L73: =D73/K73 -> 4.830222222 | M73: =I73/L73 -> 6.210894369
A74: =IF(ISNA(VLOOKUP(3,'Toimenpiteiden valitseminen'!$D$21:$O$50,1,FALSE)),"",VLOOKUP(3,'Toimenpiteiden valitseminen'!$D$21:$O$50,1,FALSE)) -> 3 | B74: =IF(ISNA(VLOOKUP(3,'Toimenpiteiden valitseminen'!$D$21:$O$50,3,FALSE)),"",VLOOKUP(3,'Toimenpiteiden valitseminen'!$D$21:$O$50,3,FALSE)) -> 0.1822034163 | C74: =IF(ISNA(VLOOKUP(3,'Toimenpiteiden valitseminen'!$D$21:$O$50,4,FALSE)),"",VLOOKUP(3,'Toimenpiteiden valitseminen'!$D$21:$O$50,4,FALSE)) -> IKK1 | D74: =IF(ISNA(VLOOKUP(3,'Toimenpiteiden valitseminen'!$D$21:$O$50,6,FALSE)),"",VLOOKUP(3,'Toimenpiteiden valitseminen'!$D$21:$O$50,6,FALSE)) -> 12540 | E74: =IF(ISNA(VLOOKUP(3,'Toimenpiteiden valitseminen'!$D$21:$O$50,7,FALSE)),"",VLOOKUP(3,'Toimenpiteiden valitseminen'!$D$21:$O$50,7,FALSE)) -> -46 | F74: =IF(ISNA(VLOOKUP(3,'Toimenpiteiden valitseminen'!$D$21:$O$50,8,FALSE)),"",VLOOKUP(3,'Toimenpiteiden valitseminen'!$D$21:$O$50,8,FALSE)) -> 0 | G74: =IF(AND(E74="",F74=""),"",-(E74+F74)) -> 46 | H74: =IF(ISNA(VLOOKUP(3,'Toimenpiteiden valitseminen'!$D$21:$O$50,9,FALSE)),"",VLOOKUP(3,'Toimenpiteiden valitseminen'!$D$21:$O$50,9,FALSE)) -> -2300 | I74: =IF(ISNA(VLOOKUP(3,'Toimenpiteiden valitseminen'!$D$21:$O$50,10,FALSE)),"",VLOOKUP(3,'Toimenpiteiden valitseminen'!$D$21:$O$50,10,FALSE)) -> 30 | J74: 0.2726086957 | K74: 2300 | L74: 5.452173913 | M74: 5.502392344
A75: =IF(ISNA(VLOOKUP(4,'Toimenpiteiden valitseminen'!$D$21:$O$50,1,FALSE)),"",VLOOKUP(4,'Toimenpiteiden valitseminen'!$D$21:$O$50,1,FALSE)) -> 4 | B75: =IF(ISNA(VLOOKUP(4,'Toimenpiteiden valitseminen'!$D$21:$O$50,3,FALSE)),"",VLOOKUP(4,'Toimenpiteiden valitseminen'!$D$21:$O$50,3,FALSE)) -> 0.1125532469 | C75: =IF(ISNA(VLOOKUP(4,'Toimenpiteiden valitseminen'!$D$21:$O$50,4,FALSE)),"",VLOOKUP(4,'Toimenpiteiden valitseminen'!$D$21:$O$50,4,FALSE)) -> YP1 | D75: =IF(ISNA(VLOOKUP(4,'Toimenpiteiden valitseminen'!$D$21:$O$50,6,FALSE)),"",VLOOKUP(4,'Toimenpiteiden valitseminen'!$D$21:$O$50,6,FALSE)) -> 2628 | E75: =IF(ISNA(VLOOKUP(4,'Toimenpiteiden valitseminen'!$D$21:$O$50,7,FALSE)),"",VLOOKUP(4,'Toimenpiteiden valitseminen'!$D$21:$O$50,7,FALSE)) -> -6 | F75: =IF(ISNA(VLOOKUP(4,'Toimenpiteiden valitseminen'!$D$21:$O$50,8,FALSE)),"",VLOOKUP(4,'Toimenpiteiden valitseminen'!$D$21:$O$50,8,FALSE)) -> 0 | G75: 6 | H75: =IF(ISNA(VLOOKUP(4,'Toimenpiteiden valitseminen'!$D$21:$O$50,9,FALSE)),"",VLOOKUP(4,'Toimenpiteiden valitseminen'!$D$21:$O$50,9,FALSE)) -> -300 | I75: =IF(ISNA(VLOOKUP(4,'Toimenpiteiden valitseminen'!$D$21:$O$50,10,FALSE)),"",VLOOKUP(4,'Toimenpiteiden valitseminen'!$D$21:$O$50,10,FALSE)) -> 40 | J75: 0.438 | K75: 300 | L75: 8.76 | M75: 4.566210046
A76: =IF(ISNA(VLOOKUP(5,'Toimenpiteiden valitseminen'!$D$21:$O$50,1,FALSE)),"",VLOOKUP(5,'Toimenpiteiden valitseminen'!$D$21:$O$50,1,FALSE)) -> 5 | B76: =IF(ISNA(VLOOKUP(5,'Toimenpiteiden valitseminen'!$D$21:$O$50,3,FALSE)),"",VLOOKUP(5,'Toimenpiteiden valitseminen'!$D$21:$O$50,3,FALSE)) -> 0.1107626467 | C76: =IF(ISNA(VLOOKUP(5,'Toimenpiteiden valitseminen'!$D$21:$O$50,4,FALSE)),"",VLOOKUP(5,'Toimenpiteiden valitseminen'!$D$21:$O$50,4,FALSE)) -> IV1 | D76: =IF(ISNA(VLOOKUP(5,'Toimenpiteiden valitseminen'!$D$21:$O$50,6,FALSE)),"",VLOOKUP(5,'Toimenpiteiden valitseminen'!$D$21:$O$50,6,FALSE)) -> 78400 | E76: =IF(ISNA(VLOOKUP(5,'Toimenpiteiden valitseminen'!$D$21:$O$50,7,FALSE)),"",VLOOKUP(5,'Toimenpiteiden valitseminen'!$D$21:$O$50,7,FALSE)) -> -259 | F76: =IF(ISNA(VLOOKUP(5,'Toimenpiteiden valitseminen'!$D$21:$O$50,8,FALSE)),"",VLOOKUP(5,'Toimenpiteiden valitseminen'!$D$21:$O$50,8,FALSE)) -> 38.6 | G76: 220.4 | H76: =IF(ISNA(VLOOKUP(5,'Toimenpiteiden valitseminen'!$D$21:$O$50,9,FALSE)),"",VLOOKUP(5,'Toimenpiteiden valitseminen'!$D$21:$O$50,9,FALSE)) -> -9072 | I76: =IF(ISNA(VLOOKUP(5,'Toimenpiteiden valitseminen'!$D$21:$O$50,10,FALSE)),"",VLOOKUP(5,'Toimenpiteiden valitseminen'!$D$21:$O$50,10,FALSE)) -> 30 | J76: 0.3557168784 | K76: 9072 | L76: 8.641975309 | M76: 3.471428571
A77: =IF(ISNA(VLOOKUP(6,'Toimenpiteiden valitseminen'!$D$21:$O$50,1,FALSE)),"",VLOOKUP(6,'Toimenpiteiden valitseminen'!$D$21:$O$50,1,FALSE)) -> 6 | B77: =IF(ISNA(VLOOKUP(6,'Toimenpiteiden valitseminen'!$D$21:$O$50,3,FALSE)),"",VLOOKUP(6,'Toimenpiteiden valitseminen'!$D$21:$O$50,3,FALSE)) -> 0.08483877242 | C77: =IF(ISNA(VLOOKUP(6,'Toimenpiteiden valitseminen'!$D$21:$O$50,4,FALSE)),"",VLOOKUP(6,'Toimenpiteiden valitseminen'!$D$21:$O$50,4,FALSE)) -> US1 | D77: =IF(ISNA(VLOOKUP(6,'Toimenpiteiden valitseminen'!$D$21:$O$50,6,FALSE)),"",VLOOKUP(6,'Toimenpiteiden valitseminen'!$D$21:$O$50,6,FALSE)) -> 5100 | E77: =IF(ISNA(VLOOKUP(6,'Toimenpiteiden valitseminen'!$D$21:$O$50,7,FALSE)),"",VLOOKUP(6,'Toimenpiteiden valitseminen'!$D$21:$O$50,7,FALSE)) -> -9 | F77: =IF(ISNA(VLOOKUP(6,'Toimenpiteiden valitseminen'!$D$21:$O$50,8,FALSE)),"",VLOOKUP(6,'Toimenpiteiden valitseminen'!$D$21:$O$50,8,FALSE)) -> 0 | G77: 9 | H77: =IF(ISNA(VLOOKUP(6,'Toimenpiteiden valitseminen'!$D$21:$O$50,9,FALSE)),"",VLOOKUP(6,'Toimenpiteiden valitseminen'!$D$21:$O$50,9,FALSE)) -> -450 | I77: =IF(ISNA(VLOOKUP(6,'Toimenpiteiden valitseminen'!$D$21:$O$50,10,FALSE)),"",VLOOKUP(6,'Toimenpiteiden valitseminen'!$D$21:$O$50,10,FALSE)) -> 40 | J77: 0.5666666667 | K77: 450 | L77: 11.33333333 | M77: 3.529411765
A78: =IF(ISNA(VLOOKUP(7,'Toimenpiteiden valitseminen'!$D$21:$O$50,1,FALSE)),"",VLOOKUP(7,'Toimenpiteiden valitseminen'!$D$21:$O$50,1,FALSE)) -> 7 | B78: =IF(ISNA(VLOOKUP(7,'Toimenpiteiden valitseminen'!$D$21:$O$50,3,FALSE)),"",VLOOKUP(7,'Toimenpiteiden valitseminen'!$D$21:$O$50,3,FALSE)) -> 0.07487888638 | C78: =IF(ISNA(VLOOKUP(7,'Toimenpiteiden valitseminen'!$D$21:$O$50,4,FALSE)),"",VLOOKUP(7,'Toimenpiteiden valitseminen'!$D$21:$O$50,4,FALSE)) -> IV2 | D78: =IF(ISNA(VLOOKUP(7,'Toimenpiteiden valitseminen'!$D$21:$O$50,6,FALSE)),"",VLOOKUP(7,'Toimenpiteiden valitseminen'!$D$21:$O$50,6,FALSE)) -> 98000 | E78: =IF(ISNA(VLOOKUP(7,'Toimenpiteiden valitseminen'!$D$21:$O$50,7,FALSE)),"",VLOOKUP(7,'Toimenpiteiden valitseminen'!$D$21:$O$50,7,FALSE)) -> -259 | F78: =IF(ISNA(VLOOKUP(7,'Toimenpiteiden valitseminen'!$D$21:$O$50,8,FALSE)),"",VLOOKUP(7,'Toimenpiteiden valitseminen'!$D$21:$O$50,8,FALSE)) -> 38.6 | G78: 220.4 | H78: =IF(ISNA(VLOOKUP(7,'Toimenpiteiden valitseminen'!$D$21:$O$50,9,FALSE)),"",VLOOKUP(7,'Toimenpiteiden valitseminen'!$D$21:$O$50,9,FALSE)) -> -8288 | I78: =IF(ISNA(VLOOKUP(7,'Toimenpiteiden valitseminen'!$D$21:$O$50,10,FALSE)),"",VLOOKUP(7,'Toimenpiteiden valitseminen'!$D$21:$O$50,10,FALSE)) -> 30 | J78: 0.444646098 | K78: 8288 | L78: 11.82432432 | M78: 2.537142857
A79: =IF(ISNA(VLOOKUP(8,'Toimenpiteiden valitseminen'!$D$21:$O$50,1,FALSE)),"",VLOOKUP(8,'Toimenpiteiden valitseminen'!$D$21:$O$50,1,FALSE)) -> 8 | B79: =IF(ISNA(VLOOKUP(8,'Toimenpiteiden valitseminen'!$D$21:$O$50,3,FALSE)),"",VLOOKUP(8,'Toimenpiteiden valitseminen'!$D$21:$O$50,3,FALSE)) -> 0.02066317746 | C79: =IF(ISNA(VLOOKUP(8,'Toimenpiteiden valitseminen'!$D$21:$O$50,4,FALSE)),"",VLOOKUP(8,'Toimenpiteiden valitseminen'!$D$21:$O$50,4,FALSE)) -> YP2 | D79: =IF(ISNA(VLOOKUP(8,'Toimenpiteiden valitseminen'!$D$21:$O$50,6,FALSE)),"",VLOOKUP(8,'Toimenpiteiden valitseminen'!$D$21:$O$50,6,FALSE)) -> 5408 | E79: =IF(ISNA(VLOOKUP(8,'Toimenpiteiden valitseminen'!$D$21:$O$50,7,FALSE)),"",VLOOKUP(8,'Toimenpiteiden valitseminen'!$D$21:$O$50,7,FALSE)) -> -4 | F79: =IF(ISNA(VLOOKUP(8,'Toimenpiteiden valitseminen'!$D$21:$O$50,8,FALSE)),"",VLOOKUP(8,'Toimenpiteiden valitseminen'!$D$21:$O$50,8,FALSE)) -> 0 | G79: 4 | H79: =IF(ISNA(VLOOKUP(8,'Toimenpiteiden valitseminen'!$D$21:$O$50,9,FALSE)),"",VLOOKUP(8,'Toimenpiteiden valitseminen'!$D$21:$O$50,9,FALSE)) -> -200 | I79: =IF(ISNA(VLOOKUP(8,'Toimenpiteiden valitseminen'!$D$21:$O$50,10,FALSE)),"",VLOOKUP(8,'Toimenpiteiden valitseminen'!$D$21:$O$50,10,FALSE)) -> 40 | J79: 1.352 | K79: 200 | L79: 27.04 | M79: 1.479289941
A80: =IF(ISNA(VLOOKUP(9,'Toimenpiteiden valitseminen'!$D$21:$O$50,1,FALSE)),"",VLOOKUP(9,'Toimenpiteiden valitseminen'!$D$21:$O$50,1,FALSE)) ->  | B80: =IF(ISNA(VLOOKUP(9,'Toimenpiteiden valitseminen'!$D$21:$O$50,3,FALSE)),"",VLOOKUP(9,'Toimenpiteiden valitseminen'!$D$21:$O$50,3,FALSE)) ->  | C80: =IF(ISNA(VLOOKUP(9,'Toimenpiteiden valitseminen'!$D$21:$O$50,4,FALSE)),"",VLOOKUP(9,'Toimenpiteiden valitseminen'!$D$21:$O$50,4,FALSE)) ->  | D80: =IF(ISNA(VLOOKUP(9,'Toimenpiteiden valitseminen'!$D$21:$O$50,6,FALSE)),"",VLOOKUP(9,'Toimenpiteiden valitseminen'!$D$21:$O$50,6,FALSE)) ->  | E80: =IF(ISNA(VLOOKUP(9,'Toimenpiteiden valitseminen'!$D$21:$O$50,7,FALSE)),"",VLOOKUP(9,'Toimenpiteiden valitseminen'!$D$21:$O$50,7,FALSE)) ->  | F80: =IF(ISNA(VLOOKUP(9,'Toimenpiteiden valitseminen'!$D$21:$O$50,8,FALSE)),"",VLOOKUP(9,'Toimenpiteiden valitseminen'!$D$21:$O$50,8,FALSE)) ->  | H80: =IF(ISNA(VLOOKUP(9,'Toimenpiteiden valitseminen'!$D$21:$O$50,9,FALSE)),"",VLOOKUP(9,'Toimenpiteiden valitseminen'!$D$21:$O$50,9,FALSE)) ->  | I80: =IF(ISNA(VLOOKUP(9,'Toimenpiteiden valitseminen'!$D$21:$O$50,10,FALSE)),"",VLOOKUP(9,'Toimenpiteiden valitseminen'!$D$21:$O$50,10,FALSE)) -> 
A81: =IF(ISNA(VLOOKUP(10,'Toimenpiteiden valitseminen'!$D$21:$O$50,1,FALSE)),"",VLOOKUP(10,'Toimenpiteiden valitseminen'!$D$21:$O$50,1,FALSE)) ->  | B81: =IF(ISNA(VLOOKUP(10,'Toimenpiteiden valitseminen'!$D$21:$O$50,3,FALSE)),"",VLOOKUP(10,'Toimenpiteiden valitseminen'!$D$21:$O$50,3,FALSE)) ->  | C81: =IF(ISNA(VLOOKUP(10,'Toimenpiteiden valitseminen'!$D$21:$O$50,4,FALSE)),"",VLOOKUP(10,'Toimenpiteiden valitseminen'!$D$21:$O$50,4,FALSE)) ->  | D81: =IF(ISNA(VLOOKUP(10,'Toimenpiteiden valitseminen'!$D$21:$O$50,6,FALSE)),"",VLOOKUP(10,'Toimenpiteiden valitseminen'!$D$21:$O$50,6,FALSE)) ->  | E81: =IF(ISNA(VLOOKUP(10,'Toimenpiteiden valitseminen'!$D$21:$O$50,7,FALSE)),"",VLOOKUP(10,'Toimenpiteiden valitseminen'!$D$21:$O$50,7,FALSE)) ->  | F81: =IF(ISNA(VLOOKUP(10,'Toimenpiteiden valitseminen'!$D$21:$O$50,8,FALSE)),"",VLOOKUP(10,'Toimenpiteiden valitseminen'!$D$21:$O$50,8,FALSE)) ->  | H81: =IF(ISNA(VLOOKUP(10,'Toimenpiteiden valitseminen'!$D$21:$O$50,9,FALSE)),"",VLOOKUP(10,'Toimenpiteiden valitseminen'!$D$21:$O$50,9,FALSE)) ->  | I81: =IF(ISNA(VLOOKUP(10,'Toimenpiteiden valitseminen'!$D$21:$O$50,10,FALSE)),"",VLOOKUP(10,'Toimenpiteiden valitseminen'!$D$21:$O$50,10,FALSE)) -> 
A82: =IF(ISNA(VLOOKUP(11,'Toimenpiteiden valitseminen'!$D$21:$O$50,1,FALSE)),"",VLOOKUP(11,'Toimenpiteiden valitseminen'!$D$21:$O$50,1,FALSE)) ->  | B82: =IF(ISNA(VLOOKUP(11,'Toimenpiteiden valitseminen'!$D$21:$O$50,3,FALSE)),"",VLOOKUP(11,'Toimenpiteiden valitseminen'!$D$21:$O$50,3,FALSE)) ->  | C82: =IF(ISNA(VLOOKUP(11,'Toimenpiteiden valitseminen'!$D$21:$O$50,4,FALSE)),"",VLOOKUP(11,'Toimenpiteiden valitseminen'!$D$21:$O$50,4,FALSE)) ->  | D82: =IF(ISNA(VLOOKUP(11,'Toimenpiteiden valitseminen'!$D$21:$O$50,6,FALSE)),"",VLOOKUP(11,'Toimenpiteiden valitseminen'!$D$21:$O$50,6,FALSE)) ->  | E82: =IF(ISNA(VLOOKUP(11,'Toimenpiteiden valitseminen'!$D$21:$O$50,7,FALSE)),"",VLOOKUP(11,'Toimenpiteiden valitseminen'!$D$21:$O$50,7,FALSE)) ->  | F82: =IF(ISNA(VLOOKUP(11,'Toimenpiteiden valitseminen'!$D$21:$O$50,8,FALSE)),"",VLOOKUP(11,'Toimenpiteiden valitseminen'!$D$21:$O$50,8,FALSE)) ->  | H82: =IF(ISNA(VLOOKUP(11,'Toimenpiteiden valitseminen'!$D$21:$O$50,9,FALSE)),"",VLOOKUP(11,'Toimenpiteiden valitseminen'!$D$21:$O$50,9,FALSE)) ->  | I82: =IF(ISNA(VLOOKUP(11,'Toimenpiteiden valitseminen'!$D$21:$O$50,10,FALSE)),"",VLOOKUP(11,'Toimenpiteiden valitseminen'!$D$21:$O$50,10,FALSE)) -> 
A83: =IF(ISNA(VLOOKUP(12,'Toimenpiteiden valitseminen'!$D$21:$O$50,1,FALSE)),"",VLOOKUP(12,'Toimenpiteiden valitseminen'!$D$21:$O$50,1,FALSE)) ->  | B83: =IF(ISNA(VLOOKUP(12,'Toimenpiteiden valitseminen'!$D$21:$O$50,3,FALSE)),"",VLOOKUP(12,'Toimenpiteiden valitseminen'!$D$21:$O$50,3,FALSE)) ->  | C83: =IF(ISNA(VLOOKUP(12,'Toimenpiteiden valitseminen'!$D$21:$O$50,4,FALSE)),"",VLOOKUP(12,'Toimenpiteiden valitseminen'!$D$21:$O$50,4,FALSE)) ->  | D83: =IF(ISNA(VLOOKUP(12,'Toimenpiteiden valitseminen'!$D$21:$O$50,6,FALSE)),"",VLOOKUP(12,'Toimenpiteiden valitseminen'!$D$21:$O$50,6,FALSE)) ->  | E83: =IF(ISNA(VLOOKUP(12,'Toimenpiteiden valitseminen'!$D$21:$O$50,7,FALSE)),"",VLOOKUP(12,'Toimenpiteiden valitseminen'!$D$21:$O$50,7,FALSE)) ->  | F83: =IF(ISNA(VLOOKUP(12,'Toimenpiteiden valitseminen'!$D$21:$O$50,8,FALSE)),"",VLOOKUP(12,'Toimenpiteiden valitseminen'!$D$21:$O$50,8,FALSE)) ->  | H83: =IF(ISNA(VLOOKUP(12,'Toimenpiteiden valitseminen'!$D$21:$O$50,9,FALSE)),"",VLOOKUP(12,'Toimenpiteiden valitseminen'!$D$21:$O$50,9,FALSE)) ->  | I83: =IF(ISNA(VLOOKUP(12,'Toimenpiteiden valitseminen'!$D$21:$O$50,10,FALSE)),"",VLOOKUP(12,'Toimenpiteiden valitseminen'!$D$21:$O$50,10,FALSE)) -> 
A84: =IF(ISNA(VLOOKUP(13,'Toimenpiteiden valitseminen'!$D$21:$O$50,1,FALSE)),"",VLOOKUP(13,'Toimenpiteiden valitseminen'!$D$21:$O$50,1,FALSE)) ->  | B84: =IF(ISNA(VLOOKUP(13,'Toimenpiteiden valitseminen'!$D$21:$O$50,3,FALSE)),"",VLOOKUP(13,'Toimenpiteiden valitseminen'!$D$21:$O$50,3,FALSE)) ->  | C84: =IF(ISNA(VLOOKUP(13,'Toimenpiteiden valitseminen'!$D$21:$O$50,4,FALSE)),"",VLOOKUP(13,'Toimenpiteiden valitseminen'!$D$21:$O$50,4,FALSE)) ->  | D84: =IF(ISNA(VLOOKUP(13,'Toimenpiteiden valitseminen'!$D$21:$O$50,6,FALSE)),"",VLOOKUP(13,'Toimenpiteiden valitseminen'!$D$21:$O$50,6,FALSE)) ->  | E84: =IF(ISNA(VLOOKUP(13,'Toimenpiteiden valitseminen'!$D$21:$O$50,7,FALSE)),"",VLOOKUP(13,'Toimenpiteiden valitseminen'!$D$21:$O$50,7,FALSE)) ->  | F84: =IF(ISNA(VLOOKUP(13,'Toimenpiteiden valitseminen'!$D$21:$O$50,8,FALSE)),"",VLOOKUP(13,'Toimenpiteiden valitseminen'!$D$21:$O$50,8,FALSE)) ->  | H84: =IF(ISNA(VLOOKUP(13,'Toimenpiteiden valitseminen'!$D$21:$O$50,9,FALSE)),"",VLOOKUP(13,'Toimenpiteiden valitseminen'!$D$21:$O$50,9,FALSE)) ->  | I84: =IF(ISNA(VLOOKUP(13,'Toimenpiteiden valitseminen'!$D$21:$O$50,10,FALSE)),"",VLOOKUP(13,'Toimenpiteiden valitseminen'!$D$21:$O$50,10,FALSE)) -> 
A85: =IF(ISNA(VLOOKUP(14,'Toimenpiteiden valitseminen'!$D$21:$O$50,1,FALSE)),"",VLOOKUP(14,'Toimenpiteiden valitseminen'!$D$21:$O$50,1,FALSE)) ->  | B85: =IF(ISNA(VLOOKUP(14,'Toimenpiteiden valitseminen'!$D$21:$O$50,3,FALSE)),"",VLOOKUP(14,'Toimenpiteiden valitseminen'!$D$21:$O$50,3,FALSE)) ->  | C85: =IF(ISNA(VLOOKUP(14,'Toimenpiteiden valitseminen'!$D$21:$O$50,4,FALSE)),"",VLOOKUP(14,'Toimenpiteiden valitseminen'!$D$21:$O$50,4,FALSE)) ->  | D85: =IF(ISNA(VLOOKUP(14,'Toimenpiteiden valitseminen'!$D$21:$O$50,6,FALSE)),"",VLOOKUP(14,'Toimenpiteiden valitseminen'!$D$21:$O$50,6,FALSE)) ->  | E85: =IF(ISNA(VLOOKUP(14,'Toimenpiteiden valitseminen'!$D$21:$O$50,7,FALSE)),"",VLOOKUP(14,'Toimenpiteiden valitseminen'!$D$21:$O$50,7,FALSE)) ->  | F85: =IF(ISNA(VLOOKUP(14,'Toimenpiteiden valitseminen'!$D$21:$O$50,8,FALSE)),"",VLOOKUP(14,'Toimenpiteiden valitseminen'!$D$21:$O$50,8,FALSE)) ->  | H85: =IF(ISNA(VLOOKUP(14,'Toimenpiteiden valitseminen'!$D$21:$O$50,9,FALSE)),"",VLOOKUP(14,'Toimenpiteiden valitseminen'!$D$21:$O$50,9,FALSE)) ->  | I85: =IF(ISNA(VLOOKUP(14,'Toimenpiteiden valitseminen'!$D$21:$O$50,10,FALSE)),"",VLOOKUP(14,'Toimenpiteiden valitseminen'!$D$21:$O$50,10,FALSE)) -> 
A86: =IF(ISNA(VLOOKUP(15,'Toimenpiteiden valitseminen'!$D$21:$O$50,1,FALSE)),"",VLOOKUP(15,'Toimenpiteiden valitseminen'!$D$21:$O$50,1,FALSE)) ->  | B86: =IF(ISNA(VLOOKUP(15,'Toimenpiteiden valitseminen'!$D$21:$O$50,3,FALSE)),"",VLOOKUP(15,'Toimenpiteiden valitseminen'!$D$21:$O$50,3,FALSE)) ->  | C86: =IF(ISNA(VLOOKUP(15,'Toimenpiteiden valitseminen'!$D$21:$O$50,4,FALSE)),"",VLOOKUP(15,'Toimenpiteiden valitseminen'!$D$21:$O$50,4,FALSE)) ->  | D86: =IF(ISNA(VLOOKUP(15,'Toimenpiteiden valitseminen'!$D$21:$O$50,6,FALSE)),"",VLOOKUP(15,'Toimenpiteiden valitseminen'!$D$21:$O$50,6,FALSE)) ->  | E86: =IF(ISNA(VLOOKUP(15,'Toimenpiteiden valitseminen'!$D$21:$O$50,7,FALSE)),"",VLOOKUP(15,'Toimenpiteiden valitseminen'!$D$21:$O$50,7,FALSE)) ->  | F86: =IF(ISNA(VLOOKUP(15,'Toimenpiteiden valitseminen'!$D$21:$O$50,8,FALSE)),"",VLOOKUP(15,'Toimenpiteiden valitseminen'!$D$21:$O$50,8,FALSE)) ->  | H86: =IF(ISNA(VLOOKUP(15,'Toimenpiteiden valitseminen'!$D$21:$O$50,9,FALSE)),"",VLOOKUP(15,'Toimenpiteiden valitseminen'!$D$21:$O$50,9,FALSE)) ->  | I86: =IF(ISNA(VLOOKUP(15,'Toimenpiteiden valitseminen'!$D$21:$O$50,10,FALSE)),"",VLOOKUP(15,'Toimenpiteiden valitseminen'!$D$21:$O$50,10,FALSE)) -> 
A87: =IF(ISNA(VLOOKUP(16,'Toimenpiteiden valitseminen'!$D$21:$O$50,1,FALSE)),"",VLOOKUP(16,'Toimenpiteiden valitseminen'!$D$21:$O$50,1,FALSE)) ->  | B87: =IF(ISNA(VLOOKUP(16,'Toimenpiteiden valitseminen'!$D$21:$O$50,3,FALSE)),"",VLOOKUP(16,'Toimenpiteiden valitseminen'!$D$21:$O$50,3,FALSE)) ->  | C87: =IF(ISNA(VLOOKUP(16,'Toimenpiteiden valitseminen'!$D$21:$O$50,4,FALSE)),"",VLOOKUP(16,'Toimenpiteiden valitseminen'!$D$21:$O$50,4,FALSE)) ->  | D87: =IF(ISNA(VLOOKUP(16,'Toimenpiteiden valitseminen'!$D$21:$O$50,6,FALSE)),"",VLOOKUP(16,'Toimenpiteiden valitseminen'!$D$21:$O$50,6,FALSE)) ->  | E87: =IF(ISNA(VLOOKUP(16,'Toimenpiteiden valitseminen'!$D$21:$O$50,7,FALSE)),"",VLOOKUP(16,'Toimenpiteiden valitseminen'!$D$21:$O$50,7,FALSE)) ->  | F87: =IF(ISNA(VLOOKUP(16,'Toimenpiteiden valitseminen'!$D$21:$O$50,8,FALSE)),"",VLOOKUP(16,'Toimenpiteiden valitseminen'!$D$21:$O$50,8,FALSE)) ->  | H87: =IF(ISNA(VLOOKUP(16,'Toimenpiteiden valitseminen'!$D$21:$O$50,9,FALSE)),"",VLOOKUP(16,'Toimenpiteiden valitseminen'!$D$21:$O$50,9,FALSE)) ->  | I87: =IF(ISNA(VLOOKUP(16,'Toimenpiteiden valitseminen'!$D$21:$O$50,10,FALSE)),"",VLOOKUP(16,'Toimenpiteiden valitseminen'!$D$21:$O$50,10,FALSE)) -> 
A88: =IF(ISNA(VLOOKUP(17,'Toimenpiteiden valitseminen'!$D$21:$O$50,1,FALSE)),"",VLOOKUP(17,'Toimenpiteiden valitseminen'!$D$21:$O$50,1,FALSE)) ->  | B88: =IF(ISNA(VLOOKUP(17,'Toimenpiteiden valitseminen'!$D$21:$O$50,3,FALSE)),"",VLOOKUP(17,'Toimenpiteiden valitseminen'!$D$21:$O$50,3,FALSE)) ->  | C88: =IF(ISNA(VLOOKUP(17,'Toimenpiteiden valitseminen'!$D$21:$O$50,4,FALSE)),"",VLOOKUP(17,'Toimenpiteiden valitseminen'!$D$21:$O$50,4,FALSE)) ->  | D88: =IF(ISNA(VLOOKUP(17,'Toimenpiteiden valitseminen'!$D$21:$O$50,6,FALSE)),"",VLOOKUP(17,'Toimenpiteiden valitseminen'!$D$21:$O$50,6,FALSE)) ->  | E88: =IF(ISNA(VLOOKUP(17,'Toimenpiteiden valitseminen'!$D$21:$O$50,7,FALSE)),"",VLOOKUP(17,'Toimenpiteiden valitseminen'!$D$21:$O$50,7,FALSE)) ->  | F88: =IF(ISNA(VLOOKUP(17,'Toimenpiteiden valitseminen'!$D$21:$O$50,8,FALSE)),"",VLOOKUP(17,'Toimenpiteiden valitseminen'!$D$21:$O$50,8,FALSE)) ->  | H88: =IF(ISNA(VLOOKUP(17,'Toimenpiteiden valitseminen'!$D$21:$O$50,9,FALSE)),"",VLOOKUP(17,'Toimenpiteiden valitseminen'!$D$21:$O$50,9,FALSE)) ->  | I88: =IF(ISNA(VLOOKUP(17,'Toimenpiteiden valitseminen'!$D$21:$O$50,10,FALSE)),"",VLOOKUP(17,'Toimenpiteiden valitseminen'!$D$21:$O$50,10,FALSE)) -> 
A91: VALINTA- JÄRJESTYS | B91: TAKAISIN- MAKSU- AIKA | C91: TOIMENPITEEN TUNNUS | D91: KUSTANNUSTEN MUUTOS [€] | E91: LÄMMITYSENERGIAN KULUTUKSEN MUUTOS [MWh/a] | F91: SÄHKÖENERGIAN KULUTUKSEN MUUTOS [MWh/a] | G91: VUOSITTAINEN KOKONAIS- ENERGIANSÄÄSTÖ [MWh/a] | H91: KUSTANNUSTEN VUOSIMUUTOS [€/a] | I91: PITOAIKA [a] | J91: KUSTANNUS / ENERGIANSÄÄSTÖ [€/(kWh/a)] | K91: KUSTANNUSTEN VUOSISÄÄSTÖT [€/a]
A92: =IF(ISNA(VLOOKUP(1,'Toimenpiteiden valitseminen'!$B$21:$O$50,1,FALSE)),"",VLOOKUP(1,'Toimenpiteiden valitseminen'!$B$21:$O$50,1,FALSE)) -> 1 | B92: =IF(ISNA(VLOOKUP(1,'Toimenpiteiden valitseminen'!$B$21:$O$50,13,FALSE)),"",VLOOKUP(1,'Toimenpiteiden valitseminen'!$B$21:$O$50,13,FALSE)) -> 4.13902892 | C92: =IF(ISNA(VLOOKUP(1,'Toimenpiteiden valitseminen'!$B$21:$O$50,6,FALSE)),"",VLOOKUP(1,'Toimenpiteiden valitseminen'!$B$21:$O$50,6,FALSE)) -> VKM | D92: =IF(ISNA(VLOOKUP(1,'Toimenpiteiden valitseminen'!$B$21:$O$50,8,FALSE)),"",VLOOKUP(1,'Toimenpiteiden valitseminen'!$B$21:$O$50,8,FALSE)) -> 46800 | E92: =IF(ISNA(VLOOKUP(1,'Toimenpiteiden valitseminen'!$B$21:$O$50,9,FALSE)),"",VLOOKUP(1,'Toimenpiteiden valitseminen'!$B$21:$O$50,9,FALSE)) -> -29 | F92: =IF(ISNA(VLOOKUP(1,'Toimenpiteiden valitseminen'!$B$21:$O$50,10,FALSE)),"",VLOOKUP(1,'Toimenpiteiden valitseminen'!$B$21:$O$50,10,FALSE)) -> 0 | G92: =IF(AND(E92="",F92=""),"",-(E92+F92)) -> 29 | H92: =IF(ISNA(VLOOKUP(1,'Toimenpiteiden valitseminen'!$B$21:$O$50,11,FALSE)),"",VLOOKUP(1,'Toimenpiteiden valitseminen'!$B$21:$O$50,11,FALSE)) -> -11307 | I92: =IF(ISNA(VLOOKUP(1,'Toimenpiteiden valitseminen'!$B$21:$O$50,12,FALSE)),"",VLOOKUP(1,'Toimenpiteiden valitseminen'!$B$21:$O$50,12,FALSE)) -> 15 | J92: =IF(AND(E92="",F92=""),"",D92/(1000*G92)) -> 1.613793103 | K92: =-H92 -> 11307
A93: =IF(ISNA(VLOOKUP(2,'Toimenpiteiden valitseminen'!$B$21:$O$50,1,FALSE)),"",VLOOKUP(2,'Toimenpiteiden valitseminen'!$B$21:$O$50,1,FALSE)) -> 2 | B93: =IF(ISNA(VLOOKUP(2,'Toimenpiteiden valitseminen'!$B$21:$O$50,13,FALSE)),"",VLOOKUP(2,'Toimenpiteiden valitseminen'!$B$21:$O$50,13,FALSE)) -> 4.830222222 | C93: =IF(ISNA(VLOOKUP(2,'Toimenpiteiden valitseminen'!$B$21:$O$50,6,FALSE)),"",VLOOKUP(2,'Toimenpiteiden valitseminen'!$B$21:$O$50,6,FALSE)) -> IKK2 | D93: =IF(ISNA(VLOOKUP(2,'Toimenpiteiden valitseminen'!$B$21:$O$50,8,FALSE)),"",VLOOKUP(2,'Toimenpiteiden valitseminen'!$B$21:$O$50,8,FALSE)) -> 10868 | E93: =IF(ISNA(VLOOKUP(2,'Toimenpiteiden valitseminen'!$B$21:$O$50,9,FALSE)),"",VLOOKUP(2,'Toimenpiteiden valitseminen'!$B$21:$O$50,9,FALSE)) -> -45 | F93: =IF(ISNA(VLOOKUP(2,'Toimenpiteiden valitseminen'!$B$21:$O$50,10,FALSE)),"",VLOOKUP(2,'Toimenpiteiden valitseminen'!$B$21:$O$50,10,FALSE)) -> 0 | G93: =IF(AND(E93="",F93=""),"",-(E93+F93)) -> 45 | H93: =IF(ISNA(VLOOKUP(2,'Toimenpiteiden valitseminen'!$B$21:$O$50,11,FALSE)),"",VLOOKUP(2,'Toimenpiteiden valitseminen'!$B$21:$O$50,11,FALSE)) -> -2250 | I93: =IF(ISNA(VLOOKUP(2,'Toimenpiteiden valitseminen'!$B$21:$O$50,12,FALSE)),"",VLOOKUP(2,'Toimenpiteiden valitseminen'!$B$21:$O$50,12,FALSE)) -> 30 | J93: =IF(AND(E93="",F93=""),"",D93/(1000*G93)) -> 0.2415111111 | K93: =-H93 -> 2250
A94: =IF(ISNA(VLOOKUP(3,'Toimenpiteiden valitseminen'!$B$21:$O$50,1,FALSE)),"",VLOOKUP(3,'Toimenpiteiden valitseminen'!$B$21:$O$50,1,FALSE)) -> 3 | B94: =IF(ISNA(VLOOKUP(3,'Toimenpiteiden valitseminen'!$B$21:$O$50,13,FALSE)),"",VLOOKUP(3,'Toimenpiteiden valitseminen'!$B$21:$O$50,13,FALSE)) -> 5.452173913 | C94: =IF(ISNA(VLOOKUP(3,'Toimenpiteiden valitseminen'!$B$21:$O$50,6,FALSE)),"",VLOOKUP(3,'Toimenpiteiden valitseminen'!$B$21:$O$50,6,FALSE)) -> IKK1 | D94: =IF(ISNA(VLOOKUP(3,'Toimenpiteiden valitseminen'!$B$21:$O$50,8,FALSE)),"",VLOOKUP(3,'Toimenpiteiden valitseminen'!$B$21:$O$50,8,FALSE)) -> 12540 | E94: =IF(ISNA(VLOOKUP(3,'Toimenpiteiden valitseminen'!$B$21:$O$50,9,FALSE)),"",VLOOKUP(3,'Toimenpiteiden valitseminen'!$B$21:$O$50,9,FALSE)) -> -46 | F94: =IF(ISNA(VLOOKUP(3,'Toimenpiteiden valitseminen'!$B$21:$O$50,10,FALSE)),"",VLOOKUP(3,'Toimenpiteiden valitseminen'!$B$21:$O$50,10,FALSE)) -> 0 | G94: =IF(AND(E94="",F94=""),"",-(E94+F94)) -> 46 | H94: =IF(ISNA(VLOOKUP(3,'Toimenpiteiden valitseminen'!$B$21:$O$50,11,FALSE)),"",VLOOKUP(3,'Toimenpiteiden valitseminen'!$B$21:$O$50,11,FALSE)) -> -2300 | I94: =IF(ISNA(VLOOKUP(3,'Toimenpiteiden valitseminen'!$B$21:$O$50,12,FALSE)),"",VLOOKUP(3,'Toimenpiteiden valitseminen'!$B$21:$O$50,12,FALSE)) -> 30 | J94: 0.2726086957 | K94: 2300
A95: =IF(ISNA(VLOOKUP(4,'Toimenpiteiden valitseminen'!$B$21:$O$50,1,FALSE)),"",VLOOKUP(4,'Toimenpiteiden valitseminen'!$B$21:$O$50,1,FALSE)) -> 4 | B95: =IF(ISNA(VLOOKUP(4,'Toimenpiteiden valitseminen'!$B$21:$O$50,13,FALSE)),"",VLOOKUP(4,'Toimenpiteiden valitseminen'!$B$21:$O$50,13,FALSE)) -> 8.641975309 | C95: =IF(ISNA(VLOOKUP(4,'Toimenpiteiden valitseminen'!$B$21:$O$50,6,FALSE)),"",VLOOKUP(4,'Toimenpiteiden valitseminen'!$B$21:$O$50,6,FALSE)) -> IV1 | D95: =IF(ISNA(VLOOKUP(4,'Toimenpiteiden valitseminen'!$B$21:$O$50,8,FALSE)),"",VLOOKUP(4,'Toimenpiteiden valitseminen'!$B$21:$O$50,8,FALSE)) -> 78400 | E95: =IF(ISNA(VLOOKUP(4,'Toimenpiteiden valitseminen'!$B$21:$O$50,9,FALSE)),"",VLOOKUP(4,'Toimenpiteiden valitseminen'!$B$21:$O$50,9,FALSE)) -> -259 | F95: =IF(ISNA(VLOOKUP(4,'Toimenpiteiden valitseminen'!$B$21:$O$50,10,FALSE)),"",VLOOKUP(4,'Toimenpiteiden valitseminen'!$B$21:$O$50,10,FALSE)) -> 38.6 | G95: 220.4 | H95: =IF(ISNA(VLOOKUP(4,'Toimenpiteiden valitseminen'!$B$21:$O$50,11,FALSE)),"",VLOOKUP(4,'Toimenpiteiden valitseminen'!$B$21:$O$50,11,FALSE)) -> -9072 | I95: =IF(ISNA(VLOOKUP(4,'Toimenpiteiden valitseminen'!$B$21:$O$50,12,FALSE)),"",VLOOKUP(4,'Toimenpiteiden valitseminen'!$B$21:$O$50,12,FALSE)) -> 30 | J95: 0.3557168784 | K95: 9072
A96: =IF(ISNA(VLOOKUP(5,'Toimenpiteiden valitseminen'!$B$21:$O$50,1,FALSE)),"",VLOOKUP(5,'Toimenpiteiden valitseminen'!$B$21:$O$50,1,FALSE)) -> 5 | B96: =IF(ISNA(VLOOKUP(5,'Toimenpiteiden valitseminen'!$B$21:$O$50,13,FALSE)),"",VLOOKUP(5,'Toimenpiteiden valitseminen'!$B$21:$O$50,13,FALSE)) -> 8.76 | C96: =IF(ISNA(VLOOKUP(5,'Toimenpiteiden valitseminen'!$B$21:$O$50,6,FALSE)),"",VLOOKUP(5,'Toimenpiteiden valitseminen'!$B$21:$O$50,6,FALSE)) -> YP1 | D96: =IF(ISNA(VLOOKUP(5,'Toimenpiteiden valitseminen'!$B$21:$O$50,8,FALSE)),"",VLOOKUP(5,'Toimenpiteiden valitseminen'!$B$21:$O$50,8,FALSE)) -> 2628 | E96: =IF(ISNA(VLOOKUP(5,'Toimenpiteiden valitseminen'!$B$21:$O$50,9,FALSE)),"",VLOOKUP(5,'Toimenpiteiden valitseminen'!$B$21:$O$50,9,FALSE)) -> -6 | F96: =IF(ISNA(VLOOKUP(5,'Toimenpiteiden valitseminen'!$B$21:$O$50,10,FALSE)),"",VLOOKUP(5,'Toimenpiteiden valitseminen'!$B$21:$O$50,10,FALSE)) -> 0 | G96: 6 | H96: =IF(ISNA(VLOOKUP(5,'Toimenpiteiden valitseminen'!$B$21:$O$50,11,FALSE)),"",VLOOKUP(5,'Toimenpiteiden valitseminen'!$B$21:$O$50,11,FALSE)) -> -300 | I96: =IF(ISNA(VLOOKUP(5,'Toimenpiteiden valitseminen'!$B$21:$O$50,12,FALSE)),"",VLOOKUP(5,'Toimenpiteiden valitseminen'!$B$21:$O$50,12,FALSE)) -> 40 | J96: 0.438 | K96: 300
A97: =IF(ISNA(VLOOKUP(6,'Toimenpiteiden valitseminen'!$B$21:$O$50,1,FALSE)),"",VLOOKUP(6,'Toimenpiteiden valitseminen'!$B$21:$O$50,1,FALSE)) -> 6 | B97: =IF(ISNA(VLOOKUP(6,'Toimenpiteiden valitseminen'!$B$21:$O$50,13,FALSE)),"",VLOOKUP(6,'Toimenpiteiden valitseminen'!$B$21:$O$50,13,FALSE)) -> 11.33333333 | C97: =IF(ISNA(VLOOKUP(6,'Toimenpiteiden valitseminen'!$B$21:$O$50,6,FALSE)),"",VLOOKUP(6,'Toimenpiteiden valitseminen'!$B$21:$O$50,6,FALSE)) -> US1 | D97: =IF(ISNA(VLOOKUP(6,'Toimenpiteiden valitseminen'!$B$21:$O$50,8,FALSE)),"",VLOOKUP(6,'Toimenpiteiden valitseminen'!$B$21:$O$50,8,FALSE)) -> 5100 | E97: =IF(ISNA(VLOOKUP(6,'Toimenpiteiden valitseminen'!$B$21:$O$50,9,FALSE)),"",VLOOKUP(6,'Toimenpiteiden valitseminen'!$B$21:$O$50,9,FALSE)) -> -9 | F97: =IF(ISNA(VLOOKUP(6,'Toimenpiteiden valitseminen'!$B$21:$O$50,10,FALSE)),"",VLOOKUP(6,'Toimenpiteiden valitseminen'!$B$21:$O$50,10,FALSE)) -> 0 | G97: 9 | H97: =IF(ISNA(VLOOKUP(6,'Toimenpiteiden valitseminen'!$B$21:$O$50,11,FALSE)),"",VLOOKUP(6,'Toimenpiteiden valitseminen'!$B$21:$O$50,11,FALSE)) -> -450 | I97: =IF(ISNA(VLOOKUP(6,'Toimenpiteiden valitseminen'!$B$21:$O$50,12,FALSE)),"",VLOOKUP(6,'Toimenpiteiden valitseminen'!$B$21:$O$50,12,FALSE)) -> 40 | J97: 0.5666666667 | K97: 450
A98: =IF(ISNA(VLOOKUP(7,'Toimenpiteiden valitseminen'!$B$21:$O$50,1,FALSE)),"",VLOOKUP(7,'Toimenpiteiden valitseminen'!$B$21:$O$50,1,FALSE)) -> 7 | B98: =IF(ISNA(VLOOKUP(7,'Toimenpiteiden valitseminen'!$B$21:$O$50,13,FALSE)),"",VLOOKUP(7,'Toimenpiteiden valitseminen'!$B$21:$O$50,13,FALSE)) -> 11.82432432 | C98: =IF(ISNA(VLOOKUP(7,'Toimenpiteiden valitseminen'!$B$21:$O$50,6,FALSE)),"",VLOOKUP(7,'Toimenpiteiden valitseminen'!$B$21:$O$50,6,FALSE)) -> IV2 | D98: =IF(ISNA(VLOOKUP(7,'Toimenpiteiden valitseminen'!$B$21:$O$50,8,FALSE)),"",VLOOKUP(7,'Toimenpiteiden valitseminen'!$B$21:$O$50,8,FALSE)) -> 98000 | E98: =IF(ISNA(VLOOKUP(7,'Toimenpiteiden valitseminen'!$B$21:$O$50,9,FALSE)),"",VLOOKUP(7,'Toimenpiteiden valitseminen'!$B$21:$O$50,9,FALSE)) -> -259 | F98: =IF(ISNA(VLOOKUP(7,'Toimenpiteiden valitseminen'!$B$21:$O$50,10,FALSE)),"",VLOOKUP(7,'Toimenpiteiden valitseminen'!$B$21:$O$50,10,FALSE)) -> 38.6 | G98: 220.4 | H98: =IF(ISNA(VLOOKUP(7,'Toimenpiteiden valitseminen'!$B$21:$O$50,11,FALSE)),"",VLOOKUP(7,'Toimenpiteiden valitseminen'!$B$21:$O$50,11,FALSE)) -> -8288 | I98: =IF(ISNA(VLOOKUP(7,'Toimenpiteiden valitseminen'!$B$21:$O$50,12,FALSE)),"",VLOOKUP(7,'Toimenpiteiden valitseminen'!$B$21:$O$50,12,FALSE)) -> 30 | J98: 0.444646098 | K98: 8288
A99: =IF(ISNA(VLOOKUP(8,'Toimenpiteiden valitseminen'!$B$21:$O$50,1,FALSE)),"",VLOOKUP(8,'Toimenpiteiden valitseminen'!$B$21:$O$50,1,FALSE)) -> 8 | B99: =IF(ISNA(VLOOKUP(8,'Toimenpiteiden valitseminen'!$B$21:$O$50,13,FALSE)),"",VLOOKUP(8,'Toimenpiteiden valitseminen'!$B$21:$O$50,13,FALSE)) -> 27.04 | C99: =IF(ISNA(VLOOKUP(8,'Toimenpiteiden valitseminen'!$B$21:$O$50,6,FALSE)),"",VLOOKUP(8,'Toimenpiteiden valitseminen'!$B$21:$O$50,6,FALSE)) -> YP2 | D99: =IF(ISNA(VLOOKUP(8,'Toimenpiteiden valitseminen'!$B$21:$O$50,8,FALSE)),"",VLOOKUP(8,'Toimenpiteiden valitseminen'!$B$21:$O$50,8,FALSE)) -> 5408 | E99: =IF(ISNA(VLOOKUP(8,'Toimenpiteiden valitseminen'!$B$21:$O$50,9,FALSE)),"",VLOOKUP(8,'Toimenpiteiden valitseminen'!$B$21:$O$50,9,FALSE)) -> -4 | F99: =IF(ISNA(VLOOKUP(8,'Toimenpiteiden valitseminen'!$B$21:$O$50,10,FALSE)),"",VLOOKUP(8,'Toimenpiteiden valitseminen'!$B$21:$O$50,10,FALSE)) -> 0 | G99: 4 | H99: =IF(ISNA(VLOOKUP(8,'Toimenpiteiden valitseminen'!$B$21:$O$50,11,FALSE)),"",VLOOKUP(8,'Toimenpiteiden valitseminen'!$B$21:$O$50,11,FALSE)) -> -200 | I99: =IF(ISNA(VLOOKUP(8,'Toimenpiteiden valitseminen'!$B$21:$O$50,12,FALSE)),"",VLOOKUP(8,'Toimenpiteiden valitseminen'!$B$21:$O$50,12,FALSE)) -> 40 | J99: 1.352 | K99: 200
A100: =IF(ISNA(VLOOKUP(9,'Toimenpiteiden valitseminen'!$B$21:$O$50,1,FALSE)),"",VLOOKUP(9,'Toimenpiteiden valitseminen'!$B$21:$O$50,1,FALSE)) -> 9 | B100: =IF(ISNA(VLOOKUP(9,'Toimenpiteiden valitseminen'!$B$21:$O$50,13,FALSE)),"",VLOOKUP(9,'Toimenpiteiden valitseminen'!$B$21:$O$50,13,FALSE)) -> 57.29411765 | C100: =IF(ISNA(VLOOKUP(9,'Toimenpiteiden valitseminen'!$B$21:$O$50,6,FALSE)),"",VLOOKUP(9,'Toimenpiteiden valitseminen'!$B$21:$O$50,6,FALSE)) -> US2 | D100: =IF(ISNA(VLOOKUP(9,'Toimenpiteiden valitseminen'!$B$21:$O$50,8,FALSE)),"",VLOOKUP(9,'Toimenpiteiden valitseminen'!$B$21:$O$50,8,FALSE)) -> 48700 | E100: =IF(ISNA(VLOOKUP(9,'Toimenpiteiden valitseminen'!$B$21:$O$50,9,FALSE)),"",VLOOKUP(9,'Toimenpiteiden valitseminen'!$B$21:$O$50,9,FALSE)) -> -17 | F100: =IF(ISNA(VLOOKUP(9,'Toimenpiteiden valitseminen'!$B$21:$O$50,10,FALSE)),"",VLOOKUP(9,'Toimenpiteiden valitseminen'!$B$21:$O$50,10,FALSE)) -> 0 | G100: 17 | H100: =IF(ISNA(VLOOKUP(9,'Toimenpiteiden valitseminen'!$B$21:$O$50,11,FALSE)),"",VLOOKUP(9,'Toimenpiteiden valitseminen'!$B$21:$O$50,11,FALSE)) -> -850 | I100: =IF(ISNA(VLOOKUP(9,'Toimenpiteiden valitseminen'!$B$21:$O$50,12,FALSE)),"",VLOOKUP(9,'Toimenpiteiden valitseminen'!$B$21:$O$50,12,FALSE)) -> 40 | J100: 2.864705882 | K100: 850
A101: =IF(ISNA(VLOOKUP(10,'Toimenpiteiden valitseminen'!$B$21:$O$50,1,FALSE)),"",VLOOKUP(10,'Toimenpiteiden valitseminen'!$B$21:$O$50,1,FALSE)) ->  | B101: =IF(ISNA(VLOOKUP(10,'Toimenpiteiden valitseminen'!$B$21:$O$50,13,FALSE)),"",VLOOKUP(10,'Toimenpiteiden valitseminen'!$B$21:$O$50,13,FALSE)) ->  | C101: =IF(ISNA(VLOOKUP(10,'Toimenpiteiden valitseminen'!$B$21:$O$50,6,FALSE)),"",VLOOKUP(10,'Toimenpiteiden valitseminen'!$B$21:$O$50,6,FALSE)) ->  | D101: =IF(ISNA(VLOOKUP(10,'Toimenpiteiden valitseminen'!$B$21:$O$50,8,FALSE)),"",VLOOKUP(10,'Toimenpiteiden valitseminen'!$B$21:$O$50,8,FALSE)) ->  | E101: =IF(ISNA(VLOOKUP(10,'Toimenpiteiden valitseminen'!$B$21:$O$50,9,FALSE)),"",VLOOKUP(10,'Toimenpiteiden valitseminen'!$B$21:$O$50,9,FALSE)) ->  | F101: =IF(ISNA(VLOOKUP(10,'Toimenpiteiden valitseminen'!$B$21:$O$50,10,FALSE)),"",VLOOKUP(10,'Toimenpiteiden valitseminen'!$B$21:$O$50,10,FALSE)) ->  | H101: =IF(ISNA(VLOOKUP(10,'Toimenpiteiden valitseminen'!$B$21:$O$50,11,FALSE)),"",VLOOKUP(10,'Toimenpiteiden valitseminen'!$B$21:$O$50,11,FALSE)) ->  | I101: =IF(ISNA(VLOOKUP(10,'Toimenpiteiden valitseminen'!$B$21:$O$50,12,FALSE)),"",VLOOKUP(10,'Toimenpiteiden valitseminen'!$B$21:$O$50,12,FALSE)) -> 
A102: =IF(ISNA(VLOOKUP(11,'Toimenpiteiden valitseminen'!$B$21:$O$50,1,FALSE)),"",VLOOKUP(11,'Toimenpiteiden valitseminen'!$B$21:$O$50,1,FALSE)) ->  | B102: =IF(ISNA(VLOOKUP(11,'Toimenpiteiden valitseminen'!$B$21:$O$50,13,FALSE)),"",VLOOKUP(11,'Toimenpiteiden valitseminen'!$B$21:$O$50,13,FALSE)) ->  | C102: =IF(ISNA(VLOOKUP(11,'Toimenpiteiden valitseminen'!$B$21:$O$50,6,FALSE)),"",VLOOKUP(11,'Toimenpiteiden valitseminen'!$B$21:$O$50,6,FALSE)) ->  | D102: =IF(ISNA(VLOOKUP(11,'Toimenpiteiden valitseminen'!$B$21:$O$50,8,FALSE)),"",VLOOKUP(11,'Toimenpiteiden valitseminen'!$B$21:$O$50,8,FALSE)) ->  | E102: =IF(ISNA(VLOOKUP(11,'Toimenpiteiden valitseminen'!$B$21:$O$50,9,FALSE)),"",VLOOKUP(11,'Toimenpiteiden valitseminen'!$B$21:$O$50,9,FALSE)) ->  | F102: =IF(ISNA(VLOOKUP(11,'Toimenpiteiden valitseminen'!$B$21:$O$50,10,FALSE)),"",VLOOKUP(11,'Toimenpiteiden valitseminen'!$B$21:$O$50,10,FALSE)) ->  | H102: =IF(ISNA(VLOOKUP(11,'Toimenpiteiden valitseminen'!$B$21:$O$50,11,FALSE)),"",VLOOKUP(11,'Toimenpiteiden valitseminen'!$B$21:$O$50,11,FALSE)) ->  | I102: =IF(ISNA(VLOOKUP(11,'Toimenpiteiden valitseminen'!$B$21:$O$50,12,FALSE)),"",VLOOKUP(11,'Toimenpiteiden valitseminen'!$B$21:$O$50,12,FALSE)) -> 
A103: =IF(ISNA(VLOOKUP(12,'Toimenpiteiden valitseminen'!$B$21:$O$50,1,FALSE)),"",VLOOKUP(12,'Toimenpiteiden valitseminen'!$B$21:$O$50,1,FALSE)) ->  | B103: =IF(ISNA(VLOOKUP(12,'Toimenpiteiden valitseminen'!$B$21:$O$50,13,FALSE)),"",VLOOKUP(12,'Toimenpiteiden valitseminen'!$B$21:$O$50,13,FALSE)) ->  | C103: =IF(ISNA(VLOOKUP(12,'Toimenpiteiden valitseminen'!$B$21:$O$50,6,FALSE)),"",VLOOKUP(12,'Toimenpiteiden valitseminen'!$B$21:$O$50,6,FALSE)) ->  | D103: =IF(ISNA(VLOOKUP(12,'Toimenpiteiden valitseminen'!$B$21:$O$50,8,FALSE)),"",VLOOKUP(12,'Toimenpiteiden valitseminen'!$B$21:$O$50,8,FALSE)) ->  | E103: =IF(ISNA(VLOOKUP(12,'Toimenpiteiden valitseminen'!$B$21:$O$50,9,FALSE)),"",VLOOKUP(12,'Toimenpiteiden valitseminen'!$B$21:$O$50,9,FALSE)) ->  | F103: =IF(ISNA(VLOOKUP(12,'Toimenpiteiden valitseminen'!$B$21:$O$50,10,FALSE)),"",VLOOKUP(12,'Toimenpiteiden valitseminen'!$B$21:$O$50,10,FALSE)) ->  | H103: =IF(ISNA(VLOOKUP(12,'Toimenpiteiden valitseminen'!$B$21:$O$50,11,FALSE)),"",VLOOKUP(12,'Toimenpiteiden valitseminen'!$B$21:$O$50,11,FALSE)) ->  | I103: =IF(ISNA(VLOOKUP(12,'Toimenpiteiden valitseminen'!$B$21:$O$50,12,FALSE)),"",VLOOKUP(12,'Toimenpiteiden valitseminen'!$B$21:$O$50,12,FALSE)) -> 
A104: =IF(ISNA(VLOOKUP(13,'Toimenpiteiden valitseminen'!$B$21:$O$50,1,FALSE)),"",VLOOKUP(13,'Toimenpiteiden valitseminen'!$B$21:$O$50,1,FALSE)) ->  | B104: =IF(ISNA(VLOOKUP(13,'Toimenpiteiden valitseminen'!$B$21:$O$50,13,FALSE)),"",VLOOKUP(13,'Toimenpiteiden valitseminen'!$B$21:$O$50,13,FALSE)) ->  | C104: =IF(ISNA(VLOOKUP(13,'Toimenpiteiden valitseminen'!$B$21:$O$50,6,FALSE)),"",VLOOKUP(13,'Toimenpiteiden valitseminen'!$B$21:$O$50,6,FALSE)) ->  | D104: =IF(ISNA(VLOOKUP(13,'Toimenpiteiden valitseminen'!$B$21:$O$50,8,FALSE)),"",VLOOKUP(13,'Toimenpiteiden valitseminen'!$B$21:$O$50,8,FALSE)) ->  | E104: =IF(ISNA(VLOOKUP(13,'Toimenpiteiden valitseminen'!$B$21:$O$50,9,FALSE)),"",VLOOKUP(13,'Toimenpiteiden valitseminen'!$B$21:$O$50,9,FALSE)) ->  | F104: =IF(ISNA(VLOOKUP(13,'Toimenpiteiden valitseminen'!$B$21:$O$50,10,FALSE)),"",VLOOKUP(13,'Toimenpiteiden valitseminen'!$B$21:$O$50,10,FALSE)) ->  | H104: =IF(ISNA(VLOOKUP(13,'Toimenpiteiden valitseminen'!$B$21:$O$50,11,FALSE)),"",VLOOKUP(13,'Toimenpiteiden valitseminen'!$B$21:$O$50,11,FALSE)) ->  | I104: =IF(ISNA(VLOOKUP(13,'Toimenpiteiden valitseminen'!$B$21:$O$50,12,FALSE)),"",VLOOKUP(13,'Toimenpiteiden valitseminen'!$B$21:$O$50,12,FALSE)) -> 
A105: =IF(ISNA(VLOOKUP(14,'Toimenpiteiden valitseminen'!$B$21:$O$50,1,FALSE)),"",VLOOKUP(14,'Toimenpiteiden valitseminen'!$B$21:$O$50,1,FALSE)) ->  | B105: =IF(ISNA(VLOOKUP(14,'Toimenpiteiden valitseminen'!$B$21:$O$50,13,FALSE)),"",VLOOKUP(14,'Toimenpiteiden valitseminen'!$B$21:$O$50,13,FALSE)) ->  | C105: =IF(ISNA(VLOOKUP(14,'Toimenpiteiden valitseminen'!$B$21:$O$50,6,FALSE)),"",VLOOKUP(14,'Toimenpiteiden valitseminen'!$B$21:$O$50,6,FALSE)) ->  | D105: =IF(ISNA(VLOOKUP(14,'Toimenpiteiden valitseminen'!$B$21:$O$50,8,FALSE)),"",VLOOKUP(14,'Toimenpiteiden valitseminen'!$B$21:$O$50,8,FALSE)) ->  | E105: =IF(ISNA(VLOOKUP(14,'Toimenpiteiden valitseminen'!$B$21:$O$50,9,FALSE)),"",VLOOKUP(14,'Toimenpiteiden valitseminen'!$B$21:$O$50,9,FALSE)) ->  | F105: =IF(ISNA(VLOOKUP(14,'Toimenpiteiden valitseminen'!$B$21:$O$50,10,FALSE)),"",VLOOKUP(14,'Toimenpiteiden valitseminen'!$B$21:$O$50,10,FALSE)) ->  | H105: =IF(ISNA(VLOOKUP(14,'Toimenpiteiden valitseminen'!$B$21:$O$50,11,FALSE)),"",VLOOKUP(14,'Toimenpiteiden valitseminen'!$B$21:$O$50,11,FALSE)) ->  | I105: =IF(ISNA(VLOOKUP(14,'Toimenpiteiden valitseminen'!$B$21:$O$50,12,FALSE)),"",VLOOKUP(14,'Toimenpiteiden valitseminen'!$B$21:$O$50,12,FALSE)) -> 
A106: =IF(ISNA(VLOOKUP(15,'Toimenpiteiden valitseminen'!$B$21:$O$50,1,FALSE)),"",VLOOKUP(15,'Toimenpiteiden valitseminen'!$B$21:$O$50,1,FALSE)) ->  | B106: =IF(ISNA(VLOOKUP(15,'Toimenpiteiden valitseminen'!$B$21:$O$50,13,FALSE)),"",VLOOKUP(15,'Toimenpiteiden valitseminen'!$B$21:$O$50,13,FALSE)) ->  | C106: =IF(ISNA(VLOOKUP(15,'Toimenpiteiden valitseminen'!$B$21:$O$50,6,FALSE)),"",VLOOKUP(15,'Toimenpiteiden valitseminen'!$B$21:$O$50,6,FALSE)) ->  | D106: =IF(ISNA(VLOOKUP(15,'Toimenpiteiden valitseminen'!$B$21:$O$50,8,FALSE)),"",VLOOKUP(15,'Toimenpiteiden valitseminen'!$B$21:$O$50,8,FALSE)) ->  | E106: =IF(ISNA(VLOOKUP(15,'Toimenpiteiden valitseminen'!$B$21:$O$50,9,FALSE)),"",VLOOKUP(15,'Toimenpiteiden valitseminen'!$B$21:$O$50,9,FALSE)) ->  | F106: =IF(ISNA(VLOOKUP(15,'Toimenpiteiden valitseminen'!$B$21:$O$50,10,FALSE)),"",VLOOKUP(15,'Toimenpiteiden valitseminen'!$B$21:$O$50,10,FALSE)) ->  | H106: =IF(ISNA(VLOOKUP(15,'Toimenpiteiden valitseminen'!$B$21:$O$50,11,FALSE)),"",VLOOKUP(15,'Toimenpiteiden valitseminen'!$B$21:$O$50,11,FALSE)) ->  | I106: =IF(ISNA(VLOOKUP(15,'Toimenpiteiden valitseminen'!$B$21:$O$50,12,FALSE)),"",VLOOKUP(15,'Toimenpiteiden valitseminen'!$B$21:$O$50,12,FALSE)) -> 
A107: =IF(ISNA(VLOOKUP(16,'Toimenpiteiden valitseminen'!$B$21:$O$50,1,FALSE)),"",VLOOKUP(16,'Toimenpiteiden valitseminen'!$B$21:$O$50,1,FALSE)) ->  | B107: =IF(ISNA(VLOOKUP(16,'Toimenpiteiden valitseminen'!$B$21:$O$50,13,FALSE)),"",VLOOKUP(16,'Toimenpiteiden valitseminen'!$B$21:$O$50,13,FALSE)) ->  | C107: =IF(ISNA(VLOOKUP(16,'Toimenpiteiden valitseminen'!$B$21:$O$50,6,FALSE)),"",VLOOKUP(16,'Toimenpiteiden valitseminen'!$B$21:$O$50,6,FALSE)) ->  | D107: =IF(ISNA(VLOOKUP(16,'Toimenpiteiden valitseminen'!$B$21:$O$50,8,FALSE)),"",VLOOKUP(16,'Toimenpiteiden valitseminen'!$B$21:$O$50,8,FALSE)) ->  | E107: =IF(ISNA(VLOOKUP(16,'Toimenpiteiden valitseminen'!$B$21:$O$50,9,FALSE)),"",VLOOKUP(16,'Toimenpiteiden valitseminen'!$B$21:$O$50,9,FALSE)) ->  | F107: =IF(ISNA(VLOOKUP(16,'Toimenpiteiden valitseminen'!$B$21:$O$50,10,FALSE)),"",VLOOKUP(16,'Toimenpiteiden valitseminen'!$B$21:$O$50,10,FALSE)) ->  | H107: =IF(ISNA(VLOOKUP(16,'Toimenpiteiden valitseminen'!$B$21:$O$50,11,FALSE)),"",VLOOKUP(16,'Toimenpiteiden valitseminen'!$B$21:$O$50,11,FALSE)) ->  | I107: =IF(ISNA(VLOOKUP(16,'Toimenpiteiden valitseminen'!$B$21:$O$50,12,FALSE)),"",VLOOKUP(16,'Toimenpiteiden valitseminen'!$B$21:$O$50,12,FALSE)) -> 
A108: =IF(ISNA(VLOOKUP(17,'Toimenpiteiden valitseminen'!$B$21:$O$50,1,FALSE)),"",VLOOKUP(17,'Toimenpiteiden valitseminen'!$B$21:$O$50,1,FALSE)) ->  | B108: =IF(ISNA(VLOOKUP(17,'Toimenpiteiden valitseminen'!$B$21:$O$50,13,FALSE)),"",VLOOKUP(17,'Toimenpiteiden valitseminen'!$B$21:$O$50,13,FALSE)) ->  | C108: =IF(ISNA(VLOOKUP(17,'Toimenpiteiden valitseminen'!$B$21:$O$50,6,FALSE)),"",VLOOKUP(17,'Toimenpiteiden valitseminen'!$B$21:$O$50,6,FALSE)) ->  | D108: =IF(ISNA(VLOOKUP(17,'Toimenpiteiden valitseminen'!$B$21:$O$50,8,FALSE)),"",VLOOKUP(17,'Toimenpiteiden valitseminen'!$B$21:$O$50,8,FALSE)) ->  | E108: =IF(ISNA(VLOOKUP(17,'Toimenpiteiden valitseminen'!$B$21:$O$50,9,FALSE)),"",VLOOKUP(17,'Toimenpiteiden valitseminen'!$B$21:$O$50,9,FALSE)) ->  | F108: =IF(ISNA(VLOOKUP(17,'Toimenpiteiden valitseminen'!$B$21:$O$50,10,FALSE)),"",VLOOKUP(17,'Toimenpiteiden valitseminen'!$B$21:$O$50,10,FALSE)) ->  | H108: =IF(ISNA(VLOOKUP(17,'Toimenpiteiden valitseminen'!$B$21:$O$50,11,FALSE)),"",VLOOKUP(17,'Toimenpiteiden valitseminen'!$B$21:$O$50,11,FALSE)) ->  | I108: =IF(ISNA(VLOOKUP(17,'Toimenpiteiden valitseminen'!$B$21:$O$50,12,FALSE)),"",VLOOKUP(17,'Toimenpiteiden valitseminen'!$B$21:$O$50,12,FALSE)) -> 
A111: VALINTA- JÄRJESTYS | B111: TAKAISIN- MAKSU- KERRAT PITOAIKANA | C111: TOIMENPITEEN TUNNUS | D111: KUSTANNUSTEN MUUTOS [€] | E111: LÄMMITYSENERGIAN KULUTUKSEN MUUTOS [MWh/a] | F111: SÄHKÖENERGIAN KULUTUKSEN MUUTOS [MWh/a] | G111: VUOSITTAINEN KOKONAIS- ENERGIANSÄÄSTÖ [MWh/a] | H111: KUSTANNUSTEN VUOSIMUUTOS [€/a] | I111: PITOAIKA [a] | J111: KUSTANNUS / ENERGIANSÄÄSTÖ [€/(kWh/a)] | K111: KUSTANNUSTEN VUOSISÄÄSTÖT [€/a]
A112: =IF(ISNA(VLOOKUP(1,'Toimenpiteiden valitseminen'!$C$21:$O$50,1,FALSE)),"",VLOOKUP(1,'Toimenpiteiden valitseminen'!$C$21:$O$50,1,FALSE)) -> 1 | B112: =IF(ISNA(VLOOKUP(1,'Toimenpiteiden valitseminen'!$C$21:$O$50,13,FALSE)),"",VLOOKUP(1,'Toimenpiteiden valitseminen'!$C$21:$O$50,13,FALSE)) -> 6.210894369 | C112: =IF(ISNA(VLOOKUP(1,'Toimenpiteiden valitseminen'!$C$21:$O$50,5,FALSE)),"",VLOOKUP(1,'Toimenpiteiden valitseminen'!$C$21:$O$50,5,FALSE)) -> IKK2 | D112: =IF(ISNA(VLOOKUP(1,'Toimenpiteiden valitseminen'!$C$21:$O$50,7,FALSE)),"",VLOOKUP(1,'Toimenpiteiden valitseminen'!$C$21:$O$50,7,FALSE)) -> 10868 | E112: =IF(ISNA(VLOOKUP(1,'Toimenpiteiden valitseminen'!$C$21:$O$50,8,FALSE)),"",VLOOKUP(1,'Toimenpiteiden valitseminen'!$C$21:$O$50,8,FALSE)) -> -45 | F112: =IF(ISNA(VLOOKUP(1,'Toimenpiteiden valitseminen'!$C$21:$O$50,9,FALSE)),"",VLOOKUP(1,'Toimenpiteiden valitseminen'!$C$21:$O$50,9,FALSE)) -> 0 | G112: =IF(AND(E112="",F112=""),"",-(E112+F112)) -> 45 | H112: =IF(ISNA(VLOOKUP(1,'Toimenpiteiden valitseminen'!$C$21:$O$50,10,FALSE)),"",VLOOKUP(1,'Toimenpiteiden valitseminen'!$C$21:$O$50,10,FALSE)) -> -2250 | I112: =IF(ISNA(VLOOKUP(1,'Toimenpiteiden valitseminen'!$C$21:$O$50,11,FALSE)),"",VLOOKUP(1,'Toimenpiteiden valitseminen'!$C$21:$O$50,11,FALSE)) -> 30 | J112: =IF(AND(E112="",F112=""),"",D112/(1000*G112)) -> 0.2415111111 | K112: =-H112 -> 2250
A113: =IF(ISNA(VLOOKUP(2,'Toimenpiteiden valitseminen'!$C$21:$O$50,1,FALSE)),"",VLOOKUP(2,'Toimenpiteiden valitseminen'!$C$21:$O$50,1,FALSE)) -> 2 | B113: =IF(ISNA(VLOOKUP(2,'Toimenpiteiden valitseminen'!$C$21:$O$50,13,FALSE)),"",VLOOKUP(2,'Toimenpiteiden valitseminen'!$C$21:$O$50,13,FALSE)) -> 5.502392344 | C113: =IF(ISNA(VLOOKUP(2,'Toimenpiteiden valitseminen'!$C$21:$O$50,5,FALSE)),"",VLOOKUP(2,'Toimenpiteiden valitseminen'!$C$21:$O$50,5,FALSE)) -> IKK1 | D113: =IF(ISNA(VLOOKUP(2,'Toimenpiteiden valitseminen'!$C$21:$O$50,7,FALSE)),"",VLOOKUP(2,'Toimenpiteiden valitseminen'!$C$21:$O$50,7,FALSE)) -> 12540 | E113: =IF(ISNA(VLOOKUP(2,'Toimenpiteiden valitseminen'!$C$21:$O$50,8,FALSE)),"",VLOOKUP(2,'Toimenpiteiden valitseminen'!$C$21:$O$50,8,FALSE)) -> -46 | F113: =IF(ISNA(VLOOKUP(2,'Toimenpiteiden valitseminen'!$C$21:$O$50,9,FALSE)),"",VLOOKUP(2,'Toimenpiteiden valitseminen'!$C$21:$O$50,9,FALSE)) -> 0 | G113: =IF(AND(E113="",F113=""),"",-(E113+F113)) -> 46 | H113: =IF(ISNA(VLOOKUP(2,'Toimenpiteiden valitseminen'!$C$21:$O$50,10,FALSE)),"",VLOOKUP(2,'Toimenpiteiden valitseminen'!$C$21:$O$50,10,FALSE)) -> -2300 | I113: =IF(ISNA(VLOOKUP(2,'Toimenpiteiden valitseminen'!$C$21:$O$50,11,FALSE)),"",VLOOKUP(2,'Toimenpiteiden valitseminen'!$C$21:$O$50,11,FALSE)) -> 30 | J113: =IF(AND(E113="",F113=""),"",D113/(1000*G113)) -> 0.2726086957 | K113: =-H113 -> 2300
A114: =IF(ISNA(VLOOKUP(3,'Toimenpiteiden valitseminen'!$C$21:$O$50,1,FALSE)),"",VLOOKUP(3,'Toimenpiteiden valitseminen'!$C$21:$O$50,1,FALSE)) -> 3 | B114: =IF(ISNA(VLOOKUP(3,'Toimenpiteiden valitseminen'!$C$21:$O$50,13,FALSE)),"",VLOOKUP(3,'Toimenpiteiden valitseminen'!$C$21:$O$50,13,FALSE)) -> 4.566210046 | C114: =IF(ISNA(VLOOKUP(3,'Toimenpiteiden valitseminen'!$C$21:$O$50,5,FALSE)),"",VLOOKUP(3,'Toimenpiteiden valitseminen'!$C$21:$O$50,5,FALSE)) -> YP1 | D114: =IF(ISNA(VLOOKUP(3,'Toimenpiteiden valitseminen'!$C$21:$O$50,7,FALSE)),"",VLOOKUP(3,'Toimenpiteiden valitseminen'!$C$21:$O$50,7,FALSE)) -> 2628 | E114: =IF(ISNA(VLOOKUP(3,'Toimenpiteiden valitseminen'!$C$21:$O$50,8,FALSE)),"",VLOOKUP(3,'Toimenpiteiden valitseminen'!$C$21:$O$50,8,FALSE)) -> -6 | F114: =IF(ISNA(VLOOKUP(3,'Toimenpiteiden valitseminen'!$C$21:$O$50,9,FALSE)),"",VLOOKUP(3,'Toimenpiteiden valitseminen'!$C$21:$O$50,9,FALSE)) -> 0 | G114: =IF(AND(E114="",F114=""),"",-(E114+F114)) -> 6 | H114: =IF(ISNA(VLOOKUP(3,'Toimenpiteiden valitseminen'!$C$21:$O$50,10,FALSE)),"",VLOOKUP(3,'Toimenpiteiden valitseminen'!$C$21:$O$50,10,FALSE)) -> -300 | I114: =IF(ISNA(VLOOKUP(3,'Toimenpiteiden valitseminen'!$C$21:$O$50,11,FALSE)),"",VLOOKUP(3,'Toimenpiteiden valitseminen'!$C$21:$O$50,11,FALSE)) -> 40 | J114: 0.438 | K114: 300
A115: =IF(ISNA(VLOOKUP(4,'Toimenpiteiden valitseminen'!$C$21:$O$50,1,FALSE)),"",VLOOKUP(4,'Toimenpiteiden valitseminen'!$C$21:$O$50,1,FALSE)) -> 4 | B115: =IF(ISNA(VLOOKUP(4,'Toimenpiteiden valitseminen'!$C$21:$O$50,13,FALSE)),"",VLOOKUP(4,'Toimenpiteiden valitseminen'!$C$21:$O$50,13,FALSE)) -> 3.624038462 | C115: =IF(ISNA(VLOOKUP(4,'Toimenpiteiden valitseminen'!$C$21:$O$50,5,FALSE)),"",VLOOKUP(4,'Toimenpiteiden valitseminen'!$C$21:$O$50,5,FALSE)) -> VKM | D115: =IF(ISNA(VLOOKUP(4,'Toimenpiteiden valitseminen'!$C$21:$O$50,7,FALSE)),"",VLOOKUP(4,'Toimenpiteiden valitseminen'!$C$21:$O$50,7,FALSE)) -> 46800 | E115: =IF(ISNA(VLOOKUP(4,'Toimenpiteiden valitseminen'!$C$21:$O$50,8,FALSE)),"",VLOOKUP(4,'Toimenpiteiden valitseminen'!$C$21:$O$50,8,FALSE)) -> -29 | F115: =IF(ISNA(VLOOKUP(4,'Toimenpiteiden valitseminen'!$C$21:$O$50,9,FALSE)),"",VLOOKUP(4,'Toimenpiteiden valitseminen'!$C$21:$O$50,9,FALSE)) -> 0 | G115: 29 | H115: =IF(ISNA(VLOOKUP(4,'Toimenpiteiden valitseminen'!$C$21:$O$50,10,FALSE)),"",VLOOKUP(4,'Toimenpiteiden valitseminen'!$C$21:$O$50,10,FALSE)) -> -11307 | I115: =IF(ISNA(VLOOKUP(4,'Toimenpiteiden valitseminen'!$C$21:$O$50,11,FALSE)),"",VLOOKUP(4,'Toimenpiteiden valitseminen'!$C$21:$O$50,11,FALSE)) -> 15 | J115: 1.613793103 | K115: 11307
A116: =IF(ISNA(VLOOKUP(5,'Toimenpiteiden valitseminen'!$C$21:$O$50,1,FALSE)),"",VLOOKUP(5,'Toimenpiteiden valitseminen'!$C$21:$O$50,1,FALSE)) -> 5 | B116: =IF(ISNA(VLOOKUP(5,'Toimenpiteiden valitseminen'!$C$21:$O$50,13,FALSE)),"",VLOOKUP(5,'Toimenpiteiden valitseminen'!$C$21:$O$50,13,FALSE)) -> 3.529411765 | C116: =IF(ISNA(VLOOKUP(5,'Toimenpiteiden valitseminen'!$C$21:$O$50,5,FALSE)),"",VLOOKUP(5,'Toimenpiteiden valitseminen'!$C$21:$O$50,5,FALSE)) -> US1 | D116: =IF(ISNA(VLOOKUP(5,'Toimenpiteiden valitseminen'!$C$21:$O$50,7,FALSE)),"",VLOOKUP(5,'Toimenpiteiden valitseminen'!$C$21:$O$50,7,FALSE)) -> 5100 | E116: =IF(ISNA(VLOOKUP(5,'Toimenpiteiden valitseminen'!$C$21:$O$50,8,FALSE)),"",VLOOKUP(5,'Toimenpiteiden valitseminen'!$C$21:$O$50,8,FALSE)) -> -9 | F116: =IF(ISNA(VLOOKUP(5,'Toimenpiteiden valitseminen'!$C$21:$O$50,9,FALSE)),"",VLOOKUP(5,'Toimenpiteiden valitseminen'!$C$21:$O$50,9,FALSE)) -> 0 | G116: 9 | H116: =IF(ISNA(VLOOKUP(5,'Toimenpiteiden valitseminen'!$C$21:$O$50,10,FALSE)),"",VLOOKUP(5,'Toimenpiteiden valitseminen'!$C$21:$O$50,10,FALSE)) -> -450 | I116: =IF(ISNA(VLOOKUP(5,'Toimenpiteiden valitseminen'!$C$21:$O$50,11,FALSE)),"",VLOOKUP(5,'Toimenpiteiden valitseminen'!$C$21:$O$50,11,FALSE)) -> 40 | J116: 0.5666666667 | K116: 450
A117: =IF(ISNA(VLOOKUP(6,'Toimenpiteiden valitseminen'!$C$21:$O$50,1,FALSE)),"",VLOOKUP(6,'Toimenpiteiden valitseminen'!$C$21:$O$50,1,FALSE)) -> 6 | B117: =IF(ISNA(VLOOKUP(6,'Toimenpiteiden valitseminen'!$C$21:$O$50,13,FALSE)),"",VLOOKUP(6,'Toimenpiteiden valitseminen'!$C$21:$O$50,13,FALSE)) -> 3.471428571 | C117: =IF(ISNA(VLOOKUP(6,'Toimenpiteiden valitseminen'!$C$21:$O$50,5,FALSE)),"",VLOOKUP(6,'Toimenpiteiden valitseminen'!$C$21:$O$50,5,FALSE)) -> IV1 | D117: =IF(ISNA(VLOOKUP(6,'Toimenpiteiden valitseminen'!$C$21:$O$50,7,FALSE)),"",VLOOKUP(6,'Toimenpiteiden valitseminen'!$C$21:$O$50,7,FALSE)) -> 78400 | E117: =IF(ISNA(VLOOKUP(6,'Toimenpiteiden valitseminen'!$C$21:$O$50,8,FALSE)),"",VLOOKUP(6,'Toimenpiteiden valitseminen'!$C$21:$O$50,8,FALSE)) -> -259 | F117: =IF(ISNA(VLOOKUP(6,'Toimenpiteiden valitseminen'!$C$21:$O$50,9,FALSE)),"",VLOOKUP(6,'Toimenpiteiden valitseminen'!$C$21:$O$50,9,FALSE)) -> 38.6 | G117: 220.4 | H117: =IF(ISNA(VLOOKUP(6,'Toimenpiteiden valitseminen'!$C$21:$O$50,10,FALSE)),"",VLOOKUP(6,'Toimenpiteiden valitseminen'!$C$21:$O$50,10,FALSE)) -> -9072 | I117: =IF(ISNA(VLOOKUP(6,'Toimenpiteiden valitseminen'!$C$21:$O$50,11,FALSE)),"",VLOOKUP(6,'Toimenpiteiden valitseminen'!$C$21:$O$50,11,FALSE)) -> 30 | J117: 0.3557168784 | K117: 9072
A118: =IF(ISNA(VLOOKUP(7,'Toimenpiteiden valitseminen'!$C$21:$O$50,1,FALSE)),"",VLOOKUP(7,'Toimenpiteiden valitseminen'!$C$21:$O$50,1,FALSE)) -> 7 | B118: =IF(ISNA(VLOOKUP(7,'Toimenpiteiden valitseminen'!$C$21:$O$50,13,FALSE)),"",VLOOKUP(7,'Toimenpiteiden valitseminen'!$C$21:$O$50,13,FALSE)) -> 2.537142857 | C118: =IF(ISNA(VLOOKUP(7,'Toimenpiteiden valitseminen'!$C$21:$O$50,5,FALSE)),"",VLOOKUP(7,'Toimenpiteiden valitseminen'!$C$21:$O$50,5,FALSE)) -> IV2 | D118: =IF(ISNA(VLOOKUP(7,'Toimenpiteiden valitseminen'!$C$21:$O$50,7,FALSE)),"",VLOOKUP(7,'Toimenpiteiden valitseminen'!$C$21:$O$50,7,FALSE)) -> 98000 | E118: =IF(ISNA(VLOOKUP(7,'Toimenpiteiden valitseminen'!$C$21:$O$50,8,FALSE)),"",VLOOKUP(7,'Toimenpiteiden valitseminen'!$C$21:$O$50,8,FALSE)) -> -259 | F118: =IF(ISNA(VLOOKUP(7,'Toimenpiteiden valitseminen'!$C$21:$O$50,9,FALSE)),"",VLOOKUP(7,'Toimenpiteiden valitseminen'!$C$21:$O$50,9,FALSE)) -> 38.6 | G118: 220.4 | H118: =IF(ISNA(VLOOKUP(7,'Toimenpiteiden valitseminen'!$C$21:$O$50,10,FALSE)),"",VLOOKUP(7,'Toimenpiteiden valitseminen'!$C$21:$O$50,10,FALSE)) -> -8288 | I118: =IF(ISNA(VLOOKUP(7,'Toimenpiteiden valitseminen'!$C$21:$O$50,11,FALSE)),"",VLOOKUP(7,'Toimenpiteiden valitseminen'!$C$21:$O$50,11,FALSE)) -> 30 | J118: 0.444646098 | K118: 8288
A119: =IF(ISNA(VLOOKUP(8,'Toimenpiteiden valitseminen'!$C$21:$O$50,1,FALSE)),"",VLOOKUP(8,'Toimenpiteiden valitseminen'!$C$21:$O$50,1,FALSE)) -> 8 | B119: =IF(ISNA(VLOOKUP(8,'Toimenpiteiden valitseminen'!$C$21:$O$50,13,FALSE)),"",VLOOKUP(8,'Toimenpiteiden valitseminen'!$C$21:$O$50,13,FALSE)) -> 1.479289941 | C119: =IF(ISNA(VLOOKUP(8,'Toimenpiteiden valitseminen'!$C$21:$O$50,5,FALSE)),"",VLOOKUP(8,'Toimenpiteiden valitseminen'!$C$21:$O$50,5,FALSE)) -> YP2 | D119: =IF(ISNA(VLOOKUP(8,'Toimenpiteiden valitseminen'!$C$21:$O$50,7,FALSE)),"",VLOOKUP(8,'Toimenpiteiden valitseminen'!$C$21:$O$50,7,FALSE)) -> 5408 | E119: =IF(ISNA(VLOOKUP(8,'Toimenpiteiden valitseminen'!$C$21:$O$50,8,FALSE)),"",VLOOKUP(8,'Toimenpiteiden valitseminen'!$C$21:$O$50,8,FALSE)) -> -4 | F119: =IF(ISNA(VLOOKUP(8,'Toimenpiteiden valitseminen'!$C$21:$O$50,9,FALSE)),"",VLOOKUP(8,'Toimenpiteiden valitseminen'!$C$21:$O$50,9,FALSE)) -> 0 | G119: 4 | H119: =IF(ISNA(VLOOKUP(8,'Toimenpiteiden valitseminen'!$C$21:$O$50,10,FALSE)),"",VLOOKUP(8,'Toimenpiteiden valitseminen'!$C$21:$O$50,10,FALSE)) -> -200 | I119: =IF(ISNA(VLOOKUP(8,'Toimenpiteiden valitseminen'!$C$21:$O$50,11,FALSE)),"",VLOOKUP(8,'Toimenpiteiden valitseminen'!$C$21:$O$50,11,FALSE)) -> 40 | J119: 1.352 | K119: 200
A120: =IF(ISNA(VLOOKUP(9,'Toimenpiteiden valitseminen'!$C$21:$O$50,1,FALSE)),"",VLOOKUP(9,'Toimenpiteiden valitseminen'!$C$21:$O$50,1,FALSE)) -> 9 | B120: =IF(ISNA(VLOOKUP(9,'Toimenpiteiden valitseminen'!$C$21:$O$50,13,FALSE)),"",VLOOKUP(9,'Toimenpiteiden valitseminen'!$C$21:$O$50,13,FALSE)) -> 0.6981519507 | C120: =IF(ISNA(VLOOKUP(9,'Toimenpiteiden valitseminen'!$C$21:$O$50,5,FALSE)),"",VLOOKUP(9,'Toimenpiteiden valitseminen'!$C$21:$O$50,5,FALSE)) -> US2 | D120: =IF(ISNA(VLOOKUP(9,'Toimenpiteiden valitseminen'!$C$21:$O$50,7,FALSE)),"",VLOOKUP(9,'Toimenpiteiden valitseminen'!$C$21:$O$50,7,FALSE)) -> 48700 | E120: =IF(ISNA(VLOOKUP(9,'Toimenpiteiden valitseminen'!$C$21:$O$50,8,FALSE)),"",VLOOKUP(9,'Toimenpiteiden valitseminen'!$C$21:$O$50,8,FALSE)) -> -17 | F120: =IF(ISNA(VLOOKUP(9,'Toimenpiteiden valitseminen'!$C$21:$O$50,9,FALSE)),"",VLOOKUP(9,'Toimenpiteiden valitseminen'!$C$21:$O$50,9,FALSE)) -> 0 | G120: 17 | H120: =IF(ISNA(VLOOKUP(9,'Toimenpiteiden valitseminen'!$C$21:$O$50,10,FALSE)),"",VLOOKUP(9,'Toimenpiteiden valitseminen'!$C$21:$O$50,10,FALSE)) -> -850 | I120: =IF(ISNA(VLOOKUP(9,'Toimenpiteiden valitseminen'!$C$21:$O$50,11,FALSE)),"",VLOOKUP(9,'Toimenpiteiden valitseminen'!$C$21:$O$50,11,FALSE)) -> 40 | J120: 2.864705882 | K120: 850
A121: =IF(ISNA(VLOOKUP(10,'Toimenpiteiden valitseminen'!$C$21:$O$50,1,FALSE)),"",VLOOKUP(10,'Toimenpiteiden valitseminen'!$C$21:$O$50,1,FALSE)) ->  | B121: =IF(ISNA(VLOOKUP(10,'Toimenpiteiden valitseminen'!$C$21:$O$50,13,FALSE)),"",VLOOKUP(10,'Toimenpiteiden valitseminen'!$C$21:$O$50,13,FALSE)) ->  | C121: =IF(ISNA(VLOOKUP(10,'Toimenpiteiden valitseminen'!$C$21:$O$50,5,FALSE)),"",VLOOKUP(10,'Toimenpiteiden valitseminen'!$C$21:$O$50,5,FALSE)) ->  | D121: =IF(ISNA(VLOOKUP(10,'Toimenpiteiden valitseminen'!$C$21:$O$50,7,FALSE)),"",VLOOKUP(10,'Toimenpiteiden valitseminen'!$C$21:$O$50,7,FALSE)) ->  | E121: =IF(ISNA(VLOOKUP(10,'Toimenpiteiden valitseminen'!$C$21:$O$50,8,FALSE)),"",VLOOKUP(10,'Toimenpiteiden valitseminen'!$C$21:$O$50,8,FALSE)) ->  | F121: =IF(ISNA(VLOOKUP(10,'Toimenpiteiden valitseminen'!$C$21:$O$50,9,FALSE)),"",VLOOKUP(10,'Toimenpiteiden valitseminen'!$C$21:$O$50,9,FALSE)) ->  | H121: =IF(ISNA(VLOOKUP(10,'Toimenpiteiden valitseminen'!$C$21:$O$50,10,FALSE)),"",VLOOKUP(10,'Toimenpiteiden valitseminen'!$C$21:$O$50,10,FALSE)) ->  | I121: =IF(ISNA(VLOOKUP(10,'Toimenpiteiden valitseminen'!$C$21:$O$50,11,FALSE)),"",VLOOKUP(10,'Toimenpiteiden valitseminen'!$C$21:$O$50,11,FALSE)) -> 
A122: =IF(ISNA(VLOOKUP(11,'Toimenpiteiden valitseminen'!$C$21:$O$50,1,FALSE)),"",VLOOKUP(11,'Toimenpiteiden valitseminen'!$C$21:$O$50,1,FALSE)) ->  | B122: =IF(ISNA(VLOOKUP(11,'Toimenpiteiden valitseminen'!$C$21:$O$50,13,FALSE)),"",VLOOKUP(11,'Toimenpiteiden valitseminen'!$C$21:$O$50,13,FALSE)) ->  | C122: =IF(ISNA(VLOOKUP(11,'Toimenpiteiden valitseminen'!$C$21:$O$50,5,FALSE)),"",VLOOKUP(11,'Toimenpiteiden valitseminen'!$C$21:$O$50,5,FALSE)) ->  | D122: =IF(ISNA(VLOOKUP(11,'Toimenpiteiden valitseminen'!$C$21:$O$50,7,FALSE)),"",VLOOKUP(11,'Toimenpiteiden valitseminen'!$C$21:$O$50,7,FALSE)) ->  | E122: =IF(ISNA(VLOOKUP(11,'Toimenpiteiden valitseminen'!$C$21:$O$50,8,FALSE)),"",VLOOKUP(11,'Toimenpiteiden valitseminen'!$C$21:$O$50,8,FALSE)) ->  | F122: =IF(ISNA(VLOOKUP(11,'Toimenpiteiden valitseminen'!$C$21:$O$50,9,FALSE)),"",VLOOKUP(11,'Toimenpiteiden valitseminen'!$C$21:$O$50,9,FALSE)) ->  | H122: =IF(ISNA(VLOOKUP(11,'Toimenpiteiden valitseminen'!$C$21:$O$50,10,FALSE)),"",VLOOKUP(11,'Toimenpiteiden valitseminen'!$C$21:$O$50,10,FALSE)) ->  | I122: =IF(ISNA(VLOOKUP(11,'Toimenpiteiden valitseminen'!$C$21:$O$50,11,FALSE)),"",VLOOKUP(11,'Toimenpiteiden valitseminen'!$C$21:$O$50,11,FALSE)) -> 
A123: =IF(ISNA(VLOOKUP(12,'Toimenpiteiden valitseminen'!$C$21:$O$50,1,FALSE)),"",VLOOKUP(12,'Toimenpiteiden valitseminen'!$C$21:$O$50,1,FALSE)) ->  | B123: =IF(ISNA(VLOOKUP(12,'Toimenpiteiden valitseminen'!$C$21:$O$50,13,FALSE)),"",VLOOKUP(12,'Toimenpiteiden valitseminen'!$C$21:$O$50,13,FALSE)) ->  | C123: =IF(ISNA(VLOOKUP(12,'Toimenpiteiden valitseminen'!$C$21:$O$50,5,FALSE)),"",VLOOKUP(12,'Toimenpiteiden valitseminen'!$C$21:$O$50,5,FALSE)) ->  | D123: =IF(ISNA(VLOOKUP(12,'Toimenpiteiden valitseminen'!$C$21:$O$50,7,FALSE)),"",VLOOKUP(12,'Toimenpiteiden valitseminen'!$C$21:$O$50,7,FALSE)) ->  | E123: =IF(ISNA(VLOOKUP(12,'Toimenpiteiden valitseminen'!$C$21:$O$50,8,FALSE)),"",VLOOKUP(12,'Toimenpiteiden valitseminen'!$C$21:$O$50,8,FALSE)) ->  | F123: =IF(ISNA(VLOOKUP(12,'Toimenpiteiden valitseminen'!$C$21:$O$50,9,FALSE)),"",VLOOKUP(12,'Toimenpiteiden valitseminen'!$C$21:$O$50,9,FALSE)) ->  | H123: =IF(ISNA(VLOOKUP(12,'Toimenpiteiden valitseminen'!$C$21:$O$50,10,FALSE)),"",VLOOKUP(12,'Toimenpiteiden valitseminen'!$C$21:$O$50,10,FALSE)) ->  | I123: =IF(ISNA(VLOOKUP(12,'Toimenpiteiden valitseminen'!$C$21:$O$50,11,FALSE)),"",VLOOKUP(12,'Toimenpiteiden valitseminen'!$C$21:$O$50,11,FALSE)) -> 
A124: =IF(ISNA(VLOOKUP(13,'Toimenpiteiden valitseminen'!$C$21:$O$50,1,FALSE)),"",VLOOKUP(13,'Toimenpiteiden valitseminen'!$C$21:$O$50,1,FALSE)) ->  | B124: =IF(ISNA(VLOOKUP(13,'Toimenpiteiden valitseminen'!$C$21:$O$50,13,FALSE)),"",VLOOKUP(13,'Toimenpiteiden valitseminen'!$C$21:$O$50,13,FALSE)) ->  | C124: =IF(ISNA(VLOOKUP(13,'Toimenpiteiden valitseminen'!$C$21:$O$50,5,FALSE)),"",VLOOKUP(13,'Toimenpiteiden valitseminen'!$C$21:$O$50,5,FALSE)) ->  | D124: =IF(ISNA(VLOOKUP(13,'Toimenpiteiden valitseminen'!$C$21:$O$50,7,FALSE)),"",VLOOKUP(13,'Toimenpiteiden valitseminen'!$C$21:$O$50,7,FALSE)) ->  | E124: =IF(ISNA(VLOOKUP(13,'Toimenpiteiden valitseminen'!$C$21:$O$50,8,FALSE)),"",VLOOKUP(13,'Toimenpiteiden valitseminen'!$C$21:$O$50,8,FALSE)) ->  | F124: =IF(ISNA(VLOOKUP(13,'Toimenpiteiden valitseminen'!$C$21:$O$50,9,FALSE)),"",VLOOKUP(13,'Toimenpiteiden valitseminen'!$C$21:$O$50,9,FALSE)) ->  | H124: =IF(ISNA(VLOOKUP(13,'Toimenpiteiden valitseminen'!$C$21:$O$50,10,FALSE)),"",VLOOKUP(13,'Toimenpiteiden valitseminen'!$C$21:$O$50,10,FALSE)) ->  | I124: =IF(ISNA(VLOOKUP(13,'Toimenpiteiden valitseminen'!$C$21:$O$50,11,FALSE)),"",VLOOKUP(13,'Toimenpiteiden valitseminen'!$C$21:$O$50,11,FALSE)) -> 
A125: =IF(ISNA(VLOOKUP(14,'Toimenpiteiden valitseminen'!$C$21:$O$50,1,FALSE)),"",VLOOKUP(14,'Toimenpiteiden valitseminen'!$C$21:$O$50,1,FALSE)) ->  | B125: =IF(ISNA(VLOOKUP(14,'Toimenpiteiden valitseminen'!$C$21:$O$50,13,FALSE)),"",VLOOKUP(14,'Toimenpiteiden valitseminen'!$C$21:$O$50,13,FALSE)) ->  | C125: =IF(ISNA(VLOOKUP(14,'Toimenpiteiden valitseminen'!$C$21:$O$50,5,FALSE)),"",VLOOKUP(14,'Toimenpiteiden valitseminen'!$C$21:$O$50,5,FALSE)) ->  | D125: =IF(ISNA(VLOOKUP(14,'Toimenpiteiden valitseminen'!$C$21:$O$50,7,FALSE)),"",VLOOKUP(14,'Toimenpiteiden valitseminen'!$C$21:$O$50,7,FALSE)) ->  | E125: =IF(ISNA(VLOOKUP(14,'Toimenpiteiden valitseminen'!$C$21:$O$50,8,FALSE)),"",VLOOKUP(14,'Toimenpiteiden valitseminen'!$C$21:$O$50,8,FALSE)) ->  | F125: =IF(ISNA(VLOOKUP(14,'Toimenpiteiden valitseminen'!$C$21:$O$50,9,FALSE)),"",VLOOKUP(14,'Toimenpiteiden valitseminen'!$C$21:$O$50,9,FALSE)) ->  | H125: =IF(ISNA(VLOOKUP(14,'Toimenpiteiden valitseminen'!$C$21:$O$50,10,FALSE)),"",VLOOKUP(14,'Toimenpiteiden valitseminen'!$C$21:$O$50,10,FALSE)) ->  | I125: =IF(ISNA(VLOOKUP(14,'Toimenpiteiden valitseminen'!$C$21:$O$50,11,FALSE)),"",VLOOKUP(14,'Toimenpiteiden valitseminen'!$C$21:$O$50,11,FALSE)) -> 
A126: =IF(ISNA(VLOOKUP(15,'Toimenpiteiden valitseminen'!$C$21:$O$50,1,FALSE)),"",VLOOKUP(15,'Toimenpiteiden valitseminen'!$C$21:$O$50,1,FALSE)) ->  | B126: =IF(ISNA(VLOOKUP(15,'Toimenpiteiden valitseminen'!$C$21:$O$50,13,FALSE)),"",VLOOKUP(15,'Toimenpiteiden valitseminen'!$C$21:$O$50,13,FALSE)) ->  | C126: =IF(ISNA(VLOOKUP(15,'Toimenpiteiden valitseminen'!$C$21:$O$50,5,FALSE)),"",VLOOKUP(15,'Toimenpiteiden valitseminen'!$C$21:$O$50,5,FALSE)) ->  | D126: =IF(ISNA(VLOOKUP(15,'Toimenpiteiden valitseminen'!$C$21:$O$50,7,FALSE)),"",VLOOKUP(15,'Toimenpiteiden valitseminen'!$C$21:$O$50,7,FALSE)) ->  | E126: =IF(ISNA(VLOOKUP(15,'Toimenpiteiden valitseminen'!$C$21:$O$50,8,FALSE)),"",VLOOKUP(15,'Toimenpiteiden valitseminen'!$C$21:$O$50,8,FALSE)) ->  | F126: =IF(ISNA(VLOOKUP(15,'Toimenpiteiden valitseminen'!$C$21:$O$50,9,FALSE)),"",VLOOKUP(15,'Toimenpiteiden valitseminen'!$C$21:$O$50,9,FALSE)) ->  | H126: =IF(ISNA(VLOOKUP(15,'Toimenpiteiden valitseminen'!$C$21:$O$50,10,FALSE)),"",VLOOKUP(15,'Toimenpiteiden valitseminen'!$C$21:$O$50,10,FALSE)) ->  | I126: =IF(ISNA(VLOOKUP(15,'Toimenpiteiden valitseminen'!$C$21:$O$50,11,FALSE)),"",VLOOKUP(15,'Toimenpiteiden valitseminen'!$C$21:$O$50,11,FALSE)) -> 
A127: =IF(ISNA(VLOOKUP(16,'Toimenpiteiden valitseminen'!$C$21:$O$50,1,FALSE)),"",VLOOKUP(16,'Toimenpiteiden valitseminen'!$C$21:$O$50,1,FALSE)) ->  | B127: =IF(ISNA(VLOOKUP(16,'Toimenpiteiden valitseminen'!$C$21:$O$50,13,FALSE)),"",VLOOKUP(16,'Toimenpiteiden valitseminen'!$C$21:$O$50,13,FALSE)) ->  | C127: =IF(ISNA(VLOOKUP(16,'Toimenpiteiden valitseminen'!$C$21:$O$50,5,FALSE)),"",VLOOKUP(16,'Toimenpiteiden valitseminen'!$C$21:$O$50,5,FALSE)) ->  | D127: =IF(ISNA(VLOOKUP(16,'Toimenpiteiden valitseminen'!$C$21:$O$50,7,FALSE)),"",VLOOKUP(16,'Toimenpiteiden valitseminen'!$C$21:$O$50,7,FALSE)) ->  | E127: =IF(ISNA(VLOOKUP(16,'Toimenpiteiden valitseminen'!$C$21:$O$50,8,FALSE)),"",VLOOKUP(16,'Toimenpiteiden valitseminen'!$C$21:$O$50,8,FALSE)) ->  | F127: =IF(ISNA(VLOOKUP(16,'Toimenpiteiden valitseminen'!$C$21:$O$50,9,FALSE)),"",VLOOKUP(16,'Toimenpiteiden valitseminen'!$C$21:$O$50,9,FALSE)) ->  | H127: =IF(ISNA(VLOOKUP(16,'Toimenpiteiden valitseminen'!$C$21:$O$50,10,FALSE)),"",VLOOKUP(16,'Toimenpiteiden valitseminen'!$C$21:$O$50,10,FALSE)) ->  | I127: =IF(ISNA(VLOOKUP(16,'Toimenpiteiden valitseminen'!$C$21:$O$50,11,FALSE)),"",VLOOKUP(16,'Toimenpiteiden valitseminen'!$C$21:$O$50,11,FALSE)) -> 
A128: =IF(ISNA(VLOOKUP(17,'Toimenpiteiden valitseminen'!$C$21:$O$50,1,FALSE)),"",VLOOKUP(17,'Toimenpiteiden valitseminen'!$C$21:$O$50,1,FALSE)) ->  | B128: =IF(ISNA(VLOOKUP(17,'Toimenpiteiden valitseminen'!$C$21:$O$50,13,FALSE)),"",VLOOKUP(17,'Toimenpiteiden valitseminen'!$C$21:$O$50,13,FALSE)) ->  | C128: =IF(ISNA(VLOOKUP(17,'Toimenpiteiden valitseminen'!$C$21:$O$50,5,FALSE)),"",VLOOKUP(17,'Toimenpiteiden valitseminen'!$C$21:$O$50,5,FALSE)) ->  | D128: =IF(ISNA(VLOOKUP(17,'Toimenpiteiden valitseminen'!$C$21:$O$50,7,FALSE)),"",VLOOKUP(17,'Toimenpiteiden valitseminen'!$C$21:$O$50,7,FALSE)) ->  | E128: =IF(ISNA(VLOOKUP(17,'Toimenpiteiden valitseminen'!$C$21:$O$50,8,FALSE)),"",VLOOKUP(17,'Toimenpiteiden valitseminen'!$C$21:$O$50,8,FALSE)) ->  | F128: =IF(ISNA(VLOOKUP(17,'Toimenpiteiden valitseminen'!$C$21:$O$50,9,FALSE)),"",VLOOKUP(17,'Toimenpiteiden valitseminen'!$C$21:$O$50,9,FALSE)) ->  | H128: =IF(ISNA(VLOOKUP(17,'Toimenpiteiden valitseminen'!$C$21:$O$50,10,FALSE)),"",VLOOKUP(17,'Toimenpiteiden valitseminen'!$C$21:$O$50,10,FALSE)) ->  | I128: =IF(ISNA(VLOOKUP(17,'Toimenpiteiden valitseminen'!$C$21:$O$50,11,FALSE)),"",VLOOKUP(17,'Toimenpiteiden valitseminen'!$C$21:$O$50,11,FALSE)) -> 
